Workbook

Sheet BUSCAR FECHA
A1: DIA | B1: SEMANA | C1: SEMANA REAL | D1: MES REAL | E1: FECHA | F1: SEMANA | G1: SEMANA REAL | H1: MES REAL | I1: SEM TEXTO
A2: 2009-02-02 | B2: 906 | C2: =RIGHT(B2,2) -> 06 | D2: =MONTH(A2) -> 2 | E2: ='GEST CHEQ SEM'!C12 -> 00:00:00 | F2: =VLOOKUP($E2,$A$2:$D$30000,2, FALSE) ->  | G2: =VALUE(I2) ->  | H2: =VLOOKUP($E2,$A$2:$D$30000,4, FALSE) ->  | I2: =VLOOKUP($E2,$A$2:$D$30000,3, FALSE) ->  | J2: CHEQUEO SEMANAL
A3: 2009-02-03 | B3: 906 | C3: =RIGHT(B3,2) -> 06 | D3: =MONTH(A3) -> 2 | E3: ='GEST CHEQ MES'!C12 -> 00:00:00 | F3: =VLOOKUP($E3,$A$2:$D$30000,2, FALSE) ->  | G3: =VALUE(I3) ->  | H3: =VLOOKUP($E3,$A$2:$D$30000,4, FALSE) ->  | I3: =VLOOKUP($E3,$A$2:$D$30000,3, FALSE) ->  | J3: CHEQUEO MENSUAL
A4: 2009-02-04 | B4: 906 | C4: 06 | D4: 2 | E4: ='GEST RUMEN'!B9 -> 00:00:00 | F4: =VLOOKUP($E4,$A$2:$D$30000,2, FALSE) ->  | G4: =VALUE(I4) ->  | H4: =VLOOKUP($E4,$A$2:$D$30000,4, FALSE) ->  | I4: =VLOOKUP($E4,$A$2:$D$30000,3, FALSE) ->  | J4: CHEQUEO SALUD RUMINAL
A5: 2009-02-05 | B5: 906 | C5: 06 | D5: 2 | E5: ='GEST CALIDAD CANAL'!B9 -> 00:00:00 | F5: =VLOOKUP($E5,$A$2:$D$30000,2, FALSE) ->  | G5: =VALUE(I5) ->  | H5: =VLOOKUP($E5,$A$2:$D$30000,4, FALSE) ->  | I5: =VLOOKUP($E5,$A$2:$D$30000,3, FALSE) ->  | J5: CHEQUEO CALIDAD CANAL
A6: 2009-02-06 | B6: 906 | C6: 06 | D6: 2 | E6: ='GEST EE'!B9 -> 00:00:00 | F6: =VLOOKUP($E6,$A$2:$D$30000,2, FALSE) ->  | G6: =VALUE(I6) ->  | H6: =VLOOKUP($E6,$A$2:$D$30000,4, FALSE) ->  | I6: =VLOOKUP($E6,$A$2:$D$30000,3, FALSE) ->  | J6: CHEQUEO ESTADO ENGRASAMIENTO
A7: 2009-02-07 | B7: 906 | C7: 06 | D7: 2
A8: 2009-02-08 | B8: 906 | C8: 06 | D8: 2
A9: 2009-02-09 | B9: 907 | C9: 07 | D9: 2
A10: 2009-02-10 | B10: 907 | C10: 07 | D10: 2
A11: 2009-02-11 | B11: 907 | C11: 07 | D11: 2
A12: 2009-02-12 | B12: 907 | C12: 07 | D12: 2
A13: 2009-02-13 | B13: 907 | C13: 07 | D13: 2
A14: 2009-02-14 | B14: 907 | C14: 07 | D14: 2
A15: 2009-02-15 | B15: 907 | C15: 07 | D15: 2
A16: 2009-02-16 | B16: 908 | C16: 08 | D16: 2
A17: 2009-02-17 | B17: 908 | C17: 08 | D17: 2
A18: 2009-02-18 | B18: 908 | C18: 08 | D18: 2
A19: 2009-02-19 | B19: 908 | C19: 08 | D19: 2
A20: 2009-02-20 | B20: 908 | C20: 08 | D20: 2
A21: 2009-02-21 | B21: 908 | C21: 08 | D21: 2
A22: 2009-02-22 | B22: 908 | C22: 08 | D22: 2
A23: 2009-02-23 | B23: 909 | C23: 09 | D23: 2
A24: 2009-02-24 | B24: 909 | C24: 09 | D24: 2
A25: 2009-02-25 | B25: 909 | C25: 09 | D25: 2
A26: 2009-02-26 | B26: 909 | C26: 09 | D26: 2
A27: 2009-02-27 | B27: 909 | C27: 09 | D27: 2
A28: 2009-02-28 | B28: 909 | C28: 09 | D28: 2
A29: 2009-03-01 | B29: 909 | C29: 09 | D29: 3
A30: 2009-03-02 | B30: 910 | C30: 10 | D30: 3
A31: 2009-03-03 | B31: 910 | C31: 10 | D31: 3
A32: 2009-03-04 | B32: 910 | C32: 10 | D32: 3
A33: 2009-03-05 | B33: 910 | C33: 10 | D33: 3
A34: 2009-03-06 | B34: 910 | C34: 10 | D34: 3
A35: 2009-03-07 | B35: 910 | C35: 10 | D35: 3
A36: 2009-03-08 | B36: 910 | C36: 10 | D36: 3
A37: 2009-03-09 | B37: 911 | C37: 11 | D37: 3
A38: 2009-03-10 | B38: 911 | C38: 11 | D38: 3
A39: 2009-03-11 | B39: 911 | C39: 11 | D39: 3
A40: 2009-03-12 | B40: 911 | C40: 11 | D40: 3
A41: 2009-03-13 | B41: 911 | C41: 11 | D41: 3
A42: 2009-03-14 | B42: 911 | C42: 11 | D42: 3
A43: 2009-03-15 | B43: 911 | C43: 11 | D43: 3
A44: 2009-03-16 | B44: 912 | C44: 12 | D44: 3
A45: 2009-03-17 | B45: 912 | C45: 12 | D45: 3
A46: 2009-03-18 | B46: 912 | C46: 12 | D46: 3
A47: 2009-03-19 | B47: 912 | C47: 12 | D47: 3
A48: 2009-03-20 | B48: 912 | C48: 12 | D48: 3
A49: 2009-03-21 | B49: 912 | C49: 12 | D49: 3
A50: 2009-03-22 | B50: 912 | C50: 12 | D50: 3
A51: 2009-03-23 | B51: 913 | C51: 13 | D51: 3
A52: 2009-03-24 | B52: 913 | C52: 13 | D52: 3
A53: 2009-03-25 | B53: 913 | C53: 13 | D53: 3
A54: 2009-03-26 | B54: 913 | C54: 13 | D54: 3
A55: 2009-03-27 | B55: 913 | C55: 13 | D55: 3
A56: 2009-03-28 | B56: 913 | C56: 13 | D56: 3
A57: 2009-03-29 | B57: 913 | C57: 13 | D57: 3
A58: 2009-03-30 | B58: 914 | C58: 14 | D58: 3
A59: 2009-03-31 | B59: 914 | C59: 14 | D59: 3
A60: 2009-04-01 | B60: 914 | C60: 14 | D60: 4
A61: 2009-04-02 | B61: 914 | C61: 14 | D61: 4
A62: 2009-04-03 | B62: 914 | C62: 14 | D62: 4
A63: 2009-04-04 | B63: 914 | C63: 14 | D63: 4
A64: 2009-04-05 | B64: 914 | C64: 14 | D64: 4
A65: 2009-04-06 | B65: 915 | C65: 15 | D65: 4
A66: 2009-04-07 | B66: 915 | C66: 15 | D66: 4
A67: 2009-04-08 | B67: 915 | C67: =RIGHT(B67,2) -> 15 | D67: =MONTH(A67) -> 4
A68: 2009-04-09 | B68: 915 | C68: 15 | D68: 4
A69: 2009-04-10 | B69: 915 | C69: 15 | D69: 4
A70: 2009-04-11 | B70: 915 | C70: 15 | D70: 4
A71: 2009-04-12 | B71: 915 | C71: 15 | D71: 4
A72: 2009-04-13 | B72: 916 | C72: 16 | D72: 4
A73: 2009-04-14 | B73: 916 | C73: 16 | D73: 4
A74: 2009-04-15 | B74: 916 | C74: 16 | D74: 4
A75: 2009-04-16 | B75: 916 | C75: 16 | D75: 4
A76: 2009-04-17 | B76: 916 | C76: 16 | D76: 4
A77: 2009-04-18 | B77: 916 | C77: 16 | D77: 4
A78: 2009-04-19 | B78: 916 | C78: 16 | D78: 4
A79: 2009-04-20 | B79: 917 | C79: 17 | D79: 4
A80: 2009-04-21 | B80: 917 | C80: 17 | D80: 4
A81: 2009-04-22 | B81: 917 | C81: 17 | D81: 4
A82: 2009-04-23 | B82: 917 | C82: 17 | D82: 4
A83: 2009-04-24 | B83: 917 | C83: 17 | D83: 4
A84: 2009-04-25 | B84: 917 | C84: 17 | D84: 4
A85: 2009-04-26 | B85: 917 | C85: 17 | D85: 4
A86: 2009-04-27 | B86: 918 | C86: 18 | D86: 4
A87: 2009-04-28 | B87: 918 | C87: 18 | D87: 4
A88: 2009-04-29 | B88: 918 | C88: 18 | D88: 4
A89: 2009-04-30 | B89: 918 | C89: 18 | D89: 4
A90: 2009-05-01 | B90: 918 | C90: 18 | D90: 5
A91: 2009-05-02 | B91: 918 | C91: 18 | D91: 5
A92: 2009-05-03 | B92: 918 | C92: 18 | D92: 5
A93: 2009-05-04 | B93: 919 | C93: 19 | D93: 5
A94: 2009-05-05 | B94: 919 | C94: 19 | D94: 5
A95: 2009-05-06 | B95: 919 | C95: 19 | D95: 5
A96: 2009-05-07 | B96: 919 | C96: 19 | D96: 5
A97: 2009-05-08 | B97: 919 | C97: 19 | D97: 5
A98: 2009-05-09 | B98: 919 | C98: 19 | D98: 5
A99: 2009-05-10 | B99: 919 | C99: 19 | D99: 5
A100: 2009-05-11 | B100: 920 | C100: 20 | D100: 5
A101: 2009-05-12 | B101: 920 | C101: 20 | D101: 5
A102: 2009-05-13 | B102: 920 | C102: 20 | D102: 5
A103: 2009-05-14 | B103: 920 | C103: 20 | D103: 5
A104: 2009-05-15 | B104: 920 | C104: 20 | D104: 5
A105: 2009-05-16 | B105: 920 | C105: 20 | D105: 5
A106: 2009-05-17 | B106: 920 | C106: 20 | D106: 5
A107: 2009-05-18 | B107: 921 | C107: 21 | D107: 5
A108: 2009-05-19 | B108: 921 | C108: 21 | D108: 5
A109: 2009-05-20 | B109: 921 | C109: 21 | D109: 5
A110: 2009-05-21 | B110: 921 | C110: 21 | D110: 5
A111: 2009-05-22 | B111: 921 | C111: 21 | D111: 5
A112: 2009-05-23 | B112: 921 | C112: 21 | D112: 5
A113: 2009-05-24 | B113: 921 | C113: 21 | D113: 5
A114: 2009-05-25 | B114: 922 | C114: 22 | D114: 5
A115: 2009-05-26 | B115: 922 | C115: 22 | D115: 5
A116: 2009-05-27 | B116: 922 | C116: 22 | D116: 5
A117: 2009-05-28 | B117: 922 | C117: 22 | D117: 5
A118: 2009-05-29 | B118: 922 | C118: 22 | D118: 5
A119: 2009-05-30 | B119: 922 | C119: 22 | D119: 5
A120: 2009-05-31 | B120: 922 | C120: 22 | D120: 5
A121: 2009-06-01 | B121: 923 | C121: 23 | D121: 6
A122: 2009-06-02 | B122: 923 | C122: 23 | D122: 6
A123: 2009-06-03 | B123: 923 | C123: 23 | D123: 6
A124: 2009-06-04 | B124: 923 | C124: 23 | D124: 6
A125: 2009-06-05 | B125: 923 | C125: 23 | D125: 6
A126: 2009-06-06 | B126: 923 | C126: 23 | D126: 6
A127: 2009-06-07 | B127: 923 | C127: 23 | D127: 6
A128: 2009-06-08 | B128: 924 | C128: 24 | D128: 6
A129: 2009-06-09 | B129: 924 | C129: 24 | D129: 6
A130: 2009-06-10 | B130: 924 | C130: 24 | D130: 6
A131: 2009-06-11 | B131: 924 | C131: =RIGHT(B131,2) -> 24 | D131: =MONTH(A131) -> 6
A132: 2009-06-12 | B132: 924 | C132: 24 | D132: 6
A133: 2009-06-13 | B133: 924 | C133: 24 | D133: 6
A134: 2009-06-14 | B134: 924 | C134: 24 | D134: 6
A135: 2009-06-15 | B135: 925 | C135: 25 | D135: 6
A136: 2009-06-16 | B136: 925 | C136: 25 | D136: 6
A137: 2009-06-17 | B137: 925 | C137: 25 | D137: 6
A138: 2009-06-18 | B138: 925 | C138: 25 | D138: 6
A139: 2009-06-19 | B139: 925 | C139: 25 | D139: 6
A140: 2009-06-20 | B140: 925 | C140: 25 | D140: 6
A141: 2009-06-21 | B141: 925 | C141: 25 | D141: 6
A142: 2009-06-22 | B142: 926 | C142: 26 | D142: 6
A143: 2009-06-23 | B143: 926 | C143: 26 | D143: 6
A144: 2009-06-24 | B144: 926 | C144: 26 | D144: 6
A145: 2009-06-25 | B145: 926 | C145: 26 | D145: 6
A146: 2009-06-26 | B146: 926 | C146: 26 | D146: 6
A147: 2009-06-27 | B147: 926 | C147: 26 | D147: 6
A148: 2009-06-28 | B148: 926 | C148: 26 | D148: 6
A149: 2009-06-29 | B149: 927 | C149: 27 | D149: 6
A150: 2009-06-30 | B150: 927 | C150: 27 | D150: 6
A151: 2009-07-01 | B151: 927 | C151: 27 | D151: 7
A152: 2009-07-02 | B152: 927 | C152: 27 | D152: 7
A153: 2009-07-03 | B153: 927 | C153: 27 | D153: 7
A154: 2009-07-04 | B154: 927 | C154: 27 | D154: 7
A155: 2009-07-05 | B155: 927 | C155: 27 | D155: 7
A156: 2009-07-06 | B156: 928 | C156: 28 | D156: 7
A157: 2009-07-07 | B157: 928 | C157: 28 | D157: 7
A158: 2009-07-08 | B158: 928 | C158: 28 | D158: 7
A159: 2009-07-09 | B159: 928 | C159: 28 | D159: 7
A160: 2009-07-10 | B160: 928 | C160: 28 | D160: 7
A161: 2009-07-11 | B161: 928 | C161: 28 | D161: 7
A162: 2009-07-12 | B162: 928 | C162: 28 | D162: 7
A163: 2009-07-13 | B163: 929 | C163: 29 | D163: 7
A164: 2009-07-14 | B164: 929 | C164: 29 | D164: 7
A165: 2009-07-15 | B165: 929 | C165: 29 | D165: 7
A166: 2009-07-16 | B166: 929 | C166: 29 | D166: 7
A167: 2009-07-17 | B167: 929 | C167: 29 | D167: 7
A168: 2009-07-18 | B168: 929 | C168: 29 | D168: 7
A169: 2009-07-19 | B169: 929 | C169: 29 | D169: 7
A170: 2009-07-20 | B170: 930 | C170: 30 | D170: 7
A171: 2009-07-21 | B171: 930 | C171: 30 | D171: 7
A172: 2009-07-22 | B172: 930 | C172: 30 | D172: 7
A173: 2009-07-23 | B173: 930 | C173: 30 | D173: 7
A174: 2009-07-24 | B174: 930 | C174: 30 | D174: 7
A175: 2009-07-25 | B175: 930 | C175: 30 | D175: 7
A176: 2009-07-26 | B176: 930 | C176: 30 | D176: 7
A177: 2009-07-27 | B177: 931 | C177: 31 | D177: 7
A178: 2009-07-28 | B178: 931 | C178: 31 | D178: 7
A179: 2009-07-29 | B179: 931 | C179: 31 | D179: 7
A180: 2009-07-30 | B180: 931 | C180: 31 | D180: 7
A181: 2009-07-31 | B181: 931 | C181: 31 | D181: 7
A182: 2009-08-01 | B182: 931 | C182: 31 | D182: 8
A183: 2009-08-02 | B183: 931 | C183: 31 | D183: 8
A184: 2009-08-03 | B184: 932 | C184: 32 | D184: 8
A185: 2009-08-04 | B185: 932 | C185: 32 | D185: 8
A186: 2009-08-05 | B186: 932 | C186: 32 | D186: 8
A187: 2009-08-06 | B187: 932 | C187: 32 | D187: 8
A188: 2009-08-07 | B188: 932 | C188: 32 | D188: 8
A189: 2009-08-08 | B189: 932 | C189: 32 | D189: 8
A190: 2009-08-09 | B190: 932 | C190: 32 | D190: 8
A191: 2009-08-10 | B191: 933 | C191: 33 | D191: 8
A192: 2009-08-11 | B192: 933 | C192: 33 | D192: 8
A193: 2009-08-12 | B193: 933 | C193: 33 | D193: 8
A194: 2009-08-13 | B194: 933 | C194: 33 | D194: 8
A195: 2009-08-14 | B195: 933 | C195: =RIGHT(B195,2) -> 33 | D195: =MONTH(A195) -> 8
A196: 2009-08-15 | B196: 933 | C196: 33 | D196: 8
A197: 2009-08-16 | B197: 933 | C197: 33 | D197: 8
A198: 2009-08-17 | B198: 934 | C198: 34 | D198: 8
A199: 2009-08-18 | B199: 934 | C199: 34 | D199: 8
A200: 2009-08-19 | B200: 934 | C200: 34 | D200: 8
... 5280 more rows

Sheet HOJA GENERAL DE DATOS
A1: MODULO SALUD | B1: 0 | C1: 0 | D1: 0 | E1: 0 | F1: 0 | G1: 0 | H1: 0 | I1: 0 | J1: TOTAL LARGO | K1: 0.1165854783 | L1: 0 | M1: 0 | N1: 0
A2: MORTALIDAD SEMANAL | B2: 0 | C2: 0 | D2: 0 | E2: 0 | F2: 0 | G2: 0 | H2: 0 | I2: 0 | J2: TOTAL CORTO | K2: 0.1007943704 | L2: 0 | M2: 0 | N2: 0
A3: SEMANA REAL | B3: TIPO CEBO | C3: SEMANA | D3: %BAJAS SEMANAL | E3: %BAJAS SEM MAX | F3: COEF GRANJA | G3: PRECIOS 15Kg | H3: PRECIOS 25Kg | I3: CENSO | J3: AFORO | K3: IMPORTANCIA EN MORT | L3: 0 | M3: 0 | N3: 0
A4: 1 | B4: CEBO LARGO | C4: 1 | D4: 0.001502837081 | E4: 0.002632359479 | F4: 0.6561403509 | G4: 43.1 | H4: 67.642 | I4: 3408.189474 | J4: 0.8415647202 | K4: 0.01289043115 | L4: 0 | M4: 0 | N4: 0
A5: 2 | B5: CEBO LARGO | C5: 2 | D5: 0.001739212688 | E5: 0.003085201153 | F5: 0.6818181818 | G5: 38.69 | H5: 62.542 | I5: 3320.153571 | J5: 0.8372145173 | K5: 0.01491791871 | L5: 0 | M5: 0 | N5: 0
A6: 3 | B6: CEBO LARGO | C6: 3 | D6: 0.001672248566 | E6: 0.002822616321 | F6: 0.6478405316 | G6: 38.03 | H6: 58.642 | I6: 3204.91 | J6: 0.8100025274 | K6: 0.01434354082 | L6: 0 | M6: 0 | N6: 0
A7: 4 | B7: CEBO LARGO | C7: 4 | D7: 0.001506304534 | E7: 0.002453191666 | F7: 0.6542372881 | G7: 37.416 | H7: 56.916 | I7: 3452.758503 | J7: 0.8820149448 | K7: 0.01292017287 | L7: 0 | M7: 0 | N7: 0
A8: 5 | B8: CEBO LARGO | C8: 5 | D8: 0.001766896838 | E8: 0.003129616838 | F8: 0.5529715762 | G8: 38.288 | H8: 57.236 | I8: 3704.924675 | J8: 0.838711119 | K8: 0.01515537668 | L8: 0 | M8: 0 | N8: 0
A9: 6 | B9: CEBO LARGO | C9: 6 | D9: 0.001690520187 | E9: 0.002882913189 | F9: 0.6404833837 | G9: 40.636 | H9: 58.69 | I9: 4125.024169 | J9: 0.935898965 | K9: 0.01450026377 | L9: 0 | M9: 0 | N9: 0
A10: 7 | B10: CEBO LARGO | C10: 7 | D10: 0.001734678061 | E10: 0.003414484348 | F10: 0.5989159892 | G10: 41.776 | H10: 58.836 | I10: 4718.02439 | J10: 1.013595133 | K10: 0.01487902341 | L10: 0 | M10: 0 | N10: 0
A11: 8 | B11: CEBO LARGO | C11: 8 | D11: 0.002982486269 | E11: 0.009603111959 | F11: 0.5800524934 | G11: 41.776 | H11: 58.236 | I11: 4257.406824 | J11: 1.003322818 | K11: 0.02558197052 | L11: 0 | M11: 0 | N11: 0
A12: 9 | B12: CEBO LARGO | C12: 9 | D12: 0.001613679949 | E12: 0.003283585584 | F12: 0.6102783726 | G12: 41.176 | H12: 58.31 | I12: 4575.43073 | J12: 1.091351839 | K12: 0.0138411745 | L12: 0 | M12: 0 | N12: 0
A13: 10 | B13: CEBO LARGO | C13: 10 | D13: 0.001688694887 | E13: 0.002966727022 | F13: 0.5790598291 | G13: 41.176 | H13: 58.31 | I13: 5370.362661 | J13: 1.233957399 | K13: 0.01448460745 | L13: 0 | M13: 0 | N13: 0
A14: 11 | B14: CEBO LARGO | C14: 11 | D14: 0.002080138005 | E14: 0.003709491232 | F14: 0.5610687023 | G14: 41.176 | H14: 58.31 | I14: 5462.187259 | J14: 1.18197552 | K14: 0.0178421707 | L14: 0 | M14: 0 | N14: 0
A15: 12 | B15: CEBO LARGO | C15: 12 | D15: 0.00251242301 | E15: 0.005559879898 | F15: 0.5008635579 | G15: 39.938 | H15: 57.39 | I15: 5174.819188 | J15: 1.096548596 | K15: 0.02155005106 | L15: 0 | M15: 0 | N15: 0
A16: 13 | B16: CEBO LARGO | C16: 13 | D16: 0.001599335737 | E16: 0.002884434396 | F16: 0.6301369863 | G16: 39.938 | H16: 57.39 | I16: 5233.134884 | J16: 1.170114919 | K16: 0.01371813849 | L16: 0 | M16: 0 | N16: 0
A17: 14 | B17: CEBO LARGO | C17: 14 | D17: 0.001831074694 | E17: 0.003663526509 | F17: 0.6129032258 | G17: 39.938 | H17: 57.39 | I17: 5074.787529 | J17: 1.086952414 | K17: 0.01570585566 | L17: 0 | M17: 0 | N17: 0
A18: 15 | B18: CEBO LARGO | C18: 15 | D18: 0.002032173868 | E18: 0.003552719948 | F18: 0.6626506024 | G18: 39.224 | H18: 56.614 | I18: 4697.130435 | J18: 1.043414713 | K18: 0.01743076323 | L18: 0 | M18: 0 | N18: 0
A19: 16 | B19: CEBO LARGO | C19: 16 | D19: 0.001846750546 | E19: 0.003257495377 | F19: 0.6448087432 | G19: 37.944 | H19: 54.966 | I19: 4610.051913 | J19: 1.148590197 | K19: 0.01584031368 | L19: 0 | M19: 0 | N19: 0
A20: 17 | B20: CEBO LARGO | C20: 17 | D20: 0.002409149093 | E20: 0.004322789296 | F20: 0.6152173913 | G20: 36.486 | H20: 53.856 | I20: 4459.004367 | J20: 1.047885474 | K20: 0.02066422962 | L20: 0 | M20: 0 | N20: 0
A21: 18 | B21: CEBO LARGO | C21: 18 | D21: 0.003257614674 | E21: 0.01283589893 | F21: 0.6253041363 | G21: 36.486 | H21: 53.348 | I21: 4899.107056 | J21: 1.203330544 | K21: 0.02794185624 | L21: 0 | M21: 0 | N21: 0
A22: 19 | B22: CEBO LARGO | C22: 19 | D22: 0.001941310322 | E22: 0.003490256186 | F22: 0.5436507937 | G22: 37.614 | H22: 54.212 | I22: 5486.268041 | J22: 1.304098049 | K22: 0.01665139047 | L22: 0 | M22: 0 | N22: 0
A23: 20 | B23: CEBO LARGO | C23: 20 | D23: 0.002399705135 | E23: 0.004196258093 | F23: 0.6394129979 | G23: 38.064 | H23: 54.662 | I23: 5238.886076 | J23: 1.250242674 | K23: 0.02058322504 | L23: 0 | M23: 0 | N23: 0
A24: 21 | B24: CEBO LARGO | C24: 21 | D24: 0.002799079998 | E24: 0.00493890374 | F24: 0.587398374 | G24: 38.552 | H24: 54.662 | I24: 4598.623984 | J24: 1.132450573 | K24: 0.02400882202 | L24: 0 | M24: 0 | N24: 0
A25: 22 | B25: CEBO LARGO | C25: 22 | D25: 0.003490979496 | E25: 0.01253164357 | F25: 0.586440678 | G25: 39.812 | H25: 54.662 | I25: 4606.055932 | J25: 1.117285286 | K25: 0.0299435191 | L25: 0 | M25: 0 | N25: 0
A26: 23 | B26: CEBO LARGO | C26: 23 | D26: 0.002549280729 | E26: 0.004360338531 | F26: 0.5436573311 | G26: 41.552 | H26: 53.75 | I26: 5188.031301 | J26: 1.18705379 | K26: 0.02186619437 | L26: 0 | M26: 0 | N26: 0
A27: 24 | B27: CEBO LARGO | C27: 24 | D27: 0.002889132492 | E27: 0.004983064273 | F27: 0.5394548063 | G27: 42.498 | H27: 53.75 | I27: 4968.276812 | J27: 1.111471323 | K27: 0.02478123806 | L27: 0 | M27: 0 | N27: 0
A28: 25 | B28: CEBO LARGO | C28: 25 | D28: 0.002735373681 | E28: 0.00450715276 | F28: 0.5313807531 | G28: 42.888 | H28: 53.75 | I28: 5406.358865 | J28: 1.235689091 | K28: 0.02346238761 | L28: 0 | M28: 0 | N28: 0
A29: 26 | B29: CEBO LARGO | C29: 26 | D29: 0.00339986196 | E29: 0.00712493243 | F29: 0.4687854711 | G29: 44.762 | H29: 55.65 | I29: 5567.113636 | J29: 1.159019612 | K29: 0.02916196777 | L29: 0 | M29: 0 | N29: 0
A30: 27 | B30: CEBO LARGO | C30: 27 | D30: 0.003125826555 | E30: 0.006367257848 | F30: 0.4779614325 | G30: 47.732 | H30: 58.676 | I30: 4624.087393 | J30: 0.9977165379 | K30: 0.02681145715 | L30: 0 | M30: 0 | N30: 0
A31: 28 | B31: CEBO LARGO | C31: 28 | D31: 0.002948166126 | E31: 0.00607848474 | F31: 0.4884848485 | G31: 49.502 | H31: 60.526 | I31: 5077.751899 | J31: 1.180698749 | K31: 0.02528759302 | L31: 0 | M31: 0 | N31: 0
A32: 29 | B32: CEBO LARGO | C32: 29 | D32: 0.002508662209 | E32: 0.004551349902 | F32: 0.5083333333 | G32: 50.702 | H32: 61.476 | I32: 5035.640805 | J32: 1.182577859 | K32: 0.02151779318 | L32: 0 | M32: 0 | N32: 0
A33: 30 | B33: CEBO LARGO | C33: 30 | D33: 0.00289072361 | E33: 0.00498322812 | F33: 0.5006321113 | G33: 51.676 | H33: 62.276 | I33: 4985.005188 | J33: 1.148357883 | K33: 0.02479488572 | L33: 0 | M33: 0 | N33: 0
A34: 31 | B34: CEBO LARGO | C34: 31 | D34: 0.002840024751 | E34: 0.005265004559 | F34: 0.4341772152 | G34: 52.68833333 | H34: 63.125 | I34: 4945.150943 | J34: 1.160767454 | K34: 0.02436002145 | L34: 0 | M34: 0 | N34: 0
A35: 32 | B35: CEBO LARGO | C35: 32 | D35: 0.002435424715 | E35: 0.004617380142 | F35: 0.5379188713 | G35: 53.6275 | H35: 64.73958333 | I35: 4872.511029 | J35: 1.140798795 | K35: 0.02088960607 | L35: 0 | M35: 0 | N35: 0
A36: 33 | B36: CEBO LARGO | C36: 33 | D36: 0.00257410835 | E36: 0.004803806493 | F36: 0.5178294574 | G36: 55.665 | H36: 66.795 | I36: 4971.308307 | J36: 1.157063876 | K36: 0.02207915075 | L36: 0 | M36: 0 | N36: 0
A37: 34 | B37: CEBO LARGO | C37: 34 | D37: 0.002532742678 | E37: 0.004748371184 | F37: 0.5340557276 | G37: 56.70166667 | H37: 70.07666667 | I37: 4673.434022 | J37: 1.084559475 | K37: 0.02172434094 | L37: 0 | M37: 0 | N37: 0
A38: 35 | B38: CEBO LARGO | C38: 35 | D38: 0.002100141868 | E38: 0.0039754721 | F38: 0.5632798574 | G38: 57.55166667 | H38: 70.95166667 | I38: 4310.303774 | J38: 1.010242338 | K38: 0.01801375179 | L38: 0 | M38: 0 | N38: 0
A39: 36 | B39: CEBO LARGO | C39: 36 | D39: 0.002082158504 | E39: 0.003606424382 | F39: 0.5700757576 | G39: 56.30166667 | H39: 69.57333333 | I39: 4253.291165 | J39: 1.009310493 | K39: 0.01785950132 | L39: 0 | M39: 0 | N39: 0
A40: 37 | B40: CEBO LARGO | C40: 37 | D40: 0.002166692431 | E40: 0.00370743489 | F40: 0.5896860987 | G40: 56.27666667 | H40: 67.85833333 | I40: 4563.186916 | J40: 1.03642751 | K40: 0.01858458243 | L40: 0 | M40: 0 | N40: 0
A41: 38 | B41: CEBO LARGO | C41: 38 | D41: 0.00203587734 | E41: 0.003290412648 | F41: 0.6461126005 | G41: 57.39333333 | H41: 69.16833333 | I41: 3745.073654 | J41: 0.8965217686 | K41: 0.01746252938 | L41: 0 | M41: 0 | N41: 0
A42: 39 | B42: CEBO LARGO | C42: 39 | D42: 0.002010625255 | E42: 0.003507782794 | F42: 0.6082474227 | G42: 57.77666667 | H42: 71.65 | I42: 3842.168539 | J42: 0.8604755913 | K42: 0.01724593221 | L42: 0 | M42: 0 | N42: 0
A43: 40 | B43: CEBO LARGO | C43: 40 | D43: 0.002490452226 | E43: 0.004860566247 | F43: 0.6105527638 | G43: 58.10166667 | H43: 72.84166667 | I43: 3759.658602 | J43: 0.8916754861 | K43: 0.02136159891 | L43: 0 | M43: 0 | N43: 0
A44: 41 | B44: CEBO LARGO | C44: 41 | D44: 0.002023327019 | E44: 0.003472869109 | F44: 0.6036036036 | G44: 58.32666667 | H44: 73.425 | I44: 4010.387622 | J44: 0.9251495341 | K44: 0.01735488029 | L44: 0 | M44: 0 | N44: 0
A45: 42 | B45: CEBO LARGO | C45: 42 | D45: 0.00217290616 | E45: 0.003442218456 | F45: 0.5634920635 | G45: 57.32166667 | H45: 73.91833333 | I45: 4196.392045 | J45: 0.9358400912 | K45: 0.01863788005 | L45: 0 | M45: 0 | N45: 0
A46: 43 | B46: CEBO LARGO | C46: 43 | D46: 0.002245429459 | E46: 0.003865426709 | F46: 0.4912718204 | G46: 56.89666667 | H46: 74.68333333 | I46: 4429.733871 | J46: 0.9507073213 | K46: 0.01925994122 | L46: 0 | M46: 0 | N46: 0
A47: 44 | B47: CEBO LARGO | C47: 44 | D47: 0.002236408247 | E47: 0.004258938906 | F47: 0.4924078091 | G47: 56.72166667 | H47: 75.39666667 | I47: 4193.752294 | J47: 0.8932903415 | K47: 0.0191825627 | L47: 0 | M47: 0 | N47: 0
A48: 45 | B48: CEBO LARGO | C48: 45 | D48: 0.00204784961 | E48: 0.003327195554 | F48: 0.4951456311 | G48: 56.34833333 | H48: 75.73 | I48: 4352.117048 | J48: 0.936477223 | K48: 0.0175652203 | L48: 0 | M48: 0 | N48: 0
A49: 46 | B49: CEBO LARGO | C49: 46 | D49: 0.001717561257 | E49: 0.003171782581 | F49: 0.5880829016 | G49: 56.63666667 | H49: 75.73 | I49: 4615.048387 | J49: 0.9925982886 | K49: 0.01473220578 | L49: 0 | M49: 0 | N49: 0
A50: 47 | B50: CEBO LARGO | C50: 47 | D50: 0.001791081296 | E50: 0.002998624907 | F50: 0.6293333333 | G50: 55.525 | H50: 75.92666667 | I50: 4613.501393 | J50: 1.020673569 | K50: 0.01536281638 | L50: 0 | M50: 0 | N50: 0
A51: 48 | B51: CEBO LARGO | C51: 48 | D51: 0.001448326913 | E51: 0.002475645734 | F51: 0.6086956522 | G51: 50.21 | H51: 74.15666667 | I51: 4153.976923 | J51: 1.050821171 | K51: 0.01242287577 | L51: 0 | M51: 0 | N51: 0
A52: 49 | B52: CEBO LARGO | C52: 49 | D52: 0.001847224681 | E52: 0.003738165592 | F52: 0.5693430657 | G52: 48.44666667 | H52: 73.32333333 | I52: 4626.165816 | J52: 0.9712693482 | K52: 0.01584438052 | L52: 0 | M52: 0 | N52: 0
A53: 50 | B53: CEBO LARGO | C53: 50 | D53: 0.00146798452 | E53: 0.002573436958 | F53: 0.6297376093 | G53: 46.94666667 | H53: 73.32333333 | I53: 4660.453125 | J53: 1.019513946 | K53: 0.01259148688 | L53: 0 | M53: 0 | N53: 0
A54: 51 | B54: CEBO LARGO | C54: 51 | D54: 0.001595135571 | E54: 0.003043016362 | F54: 0.5566037736 | G54: 45.73 | H54: 70.402 | I54: 4281.410526 | J54: 0.9343047473 | K54: 0.013682112 | L54: 0 | M54: 0 | N54: 0
A55: 52 | B55: CEBO LARGO | C55: 52 | D55: 0.001610833731 | E55: 0.002602675488 | F55: 0.6565217391 | G55: 45.136 | H55: 70.002 | I55: 3874.591133 | J55: 0.8871441462 | K55: 0.01381676136 | L55: 0 | M55: 0 | N55: 0
A56: 53 | B56: CEBO LARGO | C56: 53 | D56: 0.001968840692 | E56: 0.002983743526 | F56: 0.8604651163 | G56: 45.136 | H56: 70.002 | I56: 2853.883721 | J56: 0.7147175306 | K56: 0.0168875294 | L56: 0 | M56: 0 | N56: 0
A57: 1 | B57: CEBO CORTO | C57: 1 | D57: 0.001550770882 | E57: 0.002767937695 | F57: 0.7518248175 | G57: 43.1 | H57: 67.642 | I57: 2881.445255 | J57: 0.8084333402 | K57: 0.01538549103 | L57: 0 | M57: 0 | N57: 0
A58: 2 | B58: CEBO CORTO | C58: 2 | D58: 0.001574843293 | E58: 0.002830770646 | F58: 0.7115384615 | G58: 38.69 | H58: 62.542 | I58: 2725.306667 | J58: 0.7632486931 | K58: 0.01562431797 | L58: 0 | M58: 0 | N58: 0
A59: 3 | B59: CEBO CORTO | C59: 3 | D59: 0.001581831869 | E59: 0.002764338193 | F59: 0.7058823529 | G59: 38.03 | H59: 58.642 | I59: 2658.578947 | J59: 0.740659824 | K59: 0.01569365295 | L59: 0 | M59: 0 | N59: 0
A60: 4 | B60: CEBO CORTO | C60: 4 | D60: 0.001445100157 | E60: 0.002393366163 | F60: 0.7218543046 | G60: 37.416 | H60: 56.916 | I60: 2662.613333 | J60: 0.7436082666 | K60: 0.01433711179 | L60: 0 | M60: 0 | N60: 0
A61: 5 | B61: CEBO CORTO | C61: 5 | D61: 0.001572104864 | E61: 0.002653459479 | F61: 0.60625 | G61: 38.288 | H61: 57.236 | I61: 2286.734177 | J61: 0.6345345978 | K61: 0.0155971495 | L61: 0 | M61: 0 | N61: 0
A62: 6 | B62: CEBO CORTO | C62: 6 | D62: 0.001640680839 | E62: 0.002782426776 | F62: 0.7154471545 | G62: 40.636 | H62: 58.69 | I62: 2215.804878 | J62: 0.6205464481 | K62: 0.01627750471 | L62: 0 | M62: 0 | N62: 0
A63: 7 | B63: CEBO CORTO | C63: 7 | D63: 0.001468324224 | E63: 0.003125307817 | F63: 0.7766990291 | G63: 41.776 | H63: 58.836 | I63: 2034.038835 | J63: 0.5616782842 | K63: 0.01456752215 | L63: 0 | M63: 0 | N63: 0
A64: 8 | B64: CEBO CORTO | C64: 8 | D64: 0.003274322581 | E64: 0.0114389684 | F64: 0.6644736842 | G64: 41.776 | H64: 58.236 | I64: 2070.684211 | J64: 0.5745600584 | K64: 0.0324851732 | L64: 0 | M64: 0 | N64: 0
A65: 9 | B65: CEBO CORTO | C65: 9 | D65: 0.001167868723 | E65: 0.002162279823 | F65: 0.7552447552 | G65: 41.176 | H65: 58.31 | I65: 2545.488372 | J65: 0.6998465473 | K65: 0.01158664634 | L65: 0 | M65: 0 | N65: 0
A66: 10 | B66: CEBO CORTO | C66: 10 | D66: 0.001379522292 | E66: 0.002303320268 | F66: 0.7142857143 | G66: 41.176 | H66: 58.31 | I66: 2735.891304 | J66: 0.747629703 | K66: 0.0136865014 | L66: 0 | M66: 0 | N66: 0
A67: 11 | B67: CEBO CORTO | C67: 11 | D67: 0.001683720298 | E67: 0.003119353201 | F67: 0.6419753086 | G67: 41.176 | H67: 58.31 | I67: 2607.660256 | J67: 0.7161883803 | K67: 0.01670450732 | L67: 0 | M67: 0 | N67: 0
A68: 12 | B68: CEBO CORTO | C68: 12 | D68: 0.001849240628 | E68: 0.003064861526 | F68: 0.6104651163 | G68: 39.938 | H68: 57.39 | I68: 2844.941176 | J68: 0.7750641026 | K68: 0.01834666579 | L68: 0 | M68: 0 | N68: 0
A69: 13 | B69: CEBO CORTO | C69: 13 | D69: 0.001588346421 | E69: 0.002727307997 | F69: 0.7041420118 | G69: 39.938 | H69: 57.39 | I69: 3242.672619 | J69: 0.8908732625 | K69: 0.01575828505 | L69: 0 | M69: 0 | N69: 0
A70: 14 | B70: CEBO CORTO | C70: 14 | D70: 0.001304638946 | E70: 0.002292575389 | F70: 0.7428571429 | G70: 39.938 | H70: 57.39 | I70: 3296.496403 | J70: 0.9028827586 | K70: 0.01294356957 | L70: 0 | M70: 0 | N70: 0
A71: 15 | B71: CEBO CORTO | C71: 15 | D71: 0.001345554416 | E71: 0.002013768491 | F71: 0.7122302158 | G71: 39.224 | H71: 56.614 | I71: 3286.101449 | J71: 0.8874403131 | K71: 0.01334949968 | L71: 0 | M71: 0 | N71: 0
A72: 16 | B72: CEBO CORTO | C72: 16 | D72: 0.001715268684 | E72: 0.00299947853 | F72: 0.7083333333 | G72: 37.944 | H72: 54.966 | I72: 3486.440476 | J72: 0.9562808163 | K72: 0.01701750482 | L72: 0 | M72: 0 | N72: 0
A73: 17 | B73: CEBO CORTO | C73: 17 | D73: 0.001993350475 | E73: 0.003561055228 | F73: 0.6854460094 | G73: 36.486 | H73: 53.856 | I73: 3508.483412 | J73: 0.9626657997 | K73: 0.01977640683 | L73: 0 | M73: 0 | N73: 0
A74: 18 | B74: CEBO CORTO | C74: 18 | D74: 0.001335368182 | E74: 0.002478720856 | F74: 0.6555023923 | G74: 36.486 | H74: 53.348 | I74: 3982.23445 | J74: 1.102366887 | K74: 0.01324844013 | L74: 0 | M74: 0 | N74: 0
A75: 19 | B75: CEBO CORTO | C75: 19 | D75: 0.001548523371 | E75: 0.002832156696 | F75: 0.623853211 | G75: 37.614 | H75: 54.212 | I75: 3887.137615 | J75: 1.071297092 | K75: 0.01536319305 | L75: 0 | M75: 0 | N75: 0
A76: 20 | B76: CEBO CORTO | C76: 20 | D76: 0.001837314765 | E76: 0.00301966901 | F76: 0.7056074766 | G76: 38.064 | H76: 54.662 | I76: 3754.761682 | J76: 1.038138243 | K76: 0.01822834705 | L76: 0 | M76: 0 | N76: 0
A77: 21 | B77: CEBO CORTO | C77: 21 | D77: 0.002437156341 | E77: 0.003984403443 | F77: 0.6385542169 | G77: 38.552 | H77: 54.662 | I77: 3629.108434 | J77: 0.9957553719 | K77: 0.0241794887 | L77: 0 | M77: 0 | N77: 0
A78: 22 | B78: CEBO CORTO | C78: 22 | D78: 0.0019517068 | E78: 0.003748781145 | F78: 0.5892255892 | G78: 39.812 | H78: 54.662 | I78: 3994.939394 | J78: 1.114604979 | K78: 0.01936325205 | L78: 0 | M78: 0 | N78: 0
A79: 23 | B79: CEBO CORTO | C79: 23 | D79: 0.002380549235 | E79: 0.003516168521 | F79: 0.5725490196 | G79: 41.552 | H79: 53.75 | I79: 3788.803922 | J79: 1.047311653 | K79: 0.02361787891 | L79: 0 | M79: 0 | N79: 0
A80: 24 | B80: CEBO CORTO | C80: 24 | D80: 0.002565166506 | E80: 0.004268860263 | F80: 0.6241134752 | G80: 42.498 | H80: 53.75 | I80: 3388.356364 | J80: 0.9327307307 | K80: 0.02544950174 | L80: 0 | M80: 0 | N80: 0
A81: 25 | B81: CEBO CORTO | C81: 25 | D81: 0.002319302488 | E81: 0.00398216828 | F81: 0.6273062731 | G81: 42.888 | H81: 53.75 | I81: 3587.833977 | J81: 0.9933180118 | K81: 0.02301023835 | L81: 0 | M81: 0 | N81: 0
A82: 26 | B82: CEBO CORTO | C82: 26 | D82: 0.001806460405 | E82: 0.002929007992 | F82: 0.6546391753 | G82: 44.762 | H82: 55.65 | I82: 3261.813472 | J82: 0.8974055595 | K82: 0.01792223512 | L82: 0 | M82: 0 | N82: 0
A83: 27 | B83: CEBO CORTO | C83: 27 | D83: 0.002123396385 | E83: 0.00424598782 | F83: 0.5720524017 | G83: 47.732 | H83: 58.676 | I83: 3023.539474 | J83: 0.8381361702 | K83: 0.02106661687 | L83: 0 | M83: 0 | N83: 0
A84: 28 | B84: CEBO CORTO | C84: 28 | D84: 0.002700097112 | E84: 0.004462210851 | F84: 0.6048109966 | G84: 49.502 | H84: 60.526 | I84: 3239.072917 | J84: 0.8909770774 | K84: 0.02678817379 | L84: 0 | M84: 0 | N84: 0
A85: 29 | B85: CEBO CORTO | C85: 29 | D85: 0.002576177135 | E85: 0.004289942653 | F85: 0.5954198473 | G85: 50.702 | H85: 61.476 | I85: 3288.465649 | J85: 0.9088375527 | K85: 0.02555874028 | L85: 0 | M85: 0 | N85: 0
A86: 30 | B86: CEBO CORTO | C86: 30 | D86: 0.002647663129 | E86: 0.004275487758 | F86: 0.5418060201 | G86: 51.676 | H86: 62.276 | I86: 3463.267559 | J86: 0.9508879706 | K86: 0.02626796633 | L86: 0 | M86: 0 | N86: 0
A87: 31 | B87: CEBO CORTO | C87: 31 | D87: 0.001945963525 | E87: 0.003394972914 | F87: 0.55 | G87: 52.68833333 | H87: 63.125 | I87: 3699.327801 | J87: 1.020650258 | K87: 0.01930627194 | L87: 0 | M87: 0 | N87: 0
A88: 32 | B88: CEBO CORTO | C88: 32 | D88: 0.001853403526 | E88: 0.002994458979 | F88: 0.6376146789 | G88: 53.6275 | H88: 64.73958333 | I88: 3789.106481 | J88: 1.047947503 | K88: 0.01838796669 | L88: 0 | M88: 0 | N88: 0
A89: 33 | B89: CEBO CORTO | C89: 33 | D89: 0.002350519116 | E89: 0.003772169077 | F89: 0.5962264151 | G89: 55.665 | H89: 66.795 | I89: 3616.50566 | J89: 0.99674883 | K89: 0.02331994441 | L89: 0 | M89: 0 | N89: 0
A90: 34 | B90: CEBO CORTO | C90: 34 | D90: 0.002523260062 | E90: 0.004188424344 | F90: 0.5985663082 | G90: 56.70166667 | H90: 70.07666667 | I90: 3597.62724 | J90: 0.9957718254 | K90: 0.02503373999 | L90: 0 | M90: 0 | N90: 0
A91: 35 | B91: CEBO CORTO | C91: 35 | D91: 0.002233580036 | E91: 0.003875452242 | F91: 0.6176470588 | G91: 57.55166667 | H91: 70.95166667 | I91: 3427.407563 | J91: 0.9518354726 | K91: 0.0221597697 | L91: 0 | M91: 0 | N91: 0
A92: 36 | B92: CEBO CORTO | C92: 36 | D92: 0.002414994165 | E92: 0.003908562153 | F92: 0.6079295154 | G92: 56.30166667 | H92: 69.57333333 | I92: 3196.64186 | J92: 0.8885300582 | K92: 0.02395961357 | L92: 0 | M92: 0 | N92: 0
A93: 37 | B93: CEBO CORTO | C93: 37 | D93: 0.001851954176 | E93: 0.003035823653 | F93: 0.6741573034 | G93: 56.27666667 | H93: 67.85833333 | I93: 3153.848315 | J93: 0.8710395656 | K93: 0.01837358741 | L93: 0 | M93: 0 | N93: 0
A94: 38 | B94: CEBO CORTO | C94: 38 | D94: 0.002110493067 | E94: 0.003493303324 | F94: 0.6631578947 | G94: 57.39333333 | H94: 69.16833333 | I94: 2859.582011 | J94: 0.7930462216 | K94: 0.02093860062 | L94: 0 | M94: 0 | N94: 0
A95: 39 | B95: CEBO CORTO | C95: 39 | D95: 0.001935198844 | E95: 0.003151362852 | F95: 0.6181818182 | G95: 57.77666667 | H95: 71.65 | I95: 2598.248485 | J95: 0.7103744822 | K95: 0.0191994735 | L95: 0 | M95: 0 | N95: 0
A96: 40 | B96: CEBO CORTO | C96: 40 | D96: 0.002379758278 | E96: 0.004193153586 | F96: 0.6176470588 | G96: 58.10166667 | H96: 72.84166667 | I96: 2444.164706 | J96: 0.6756227642 | K96: 0.02361003167 | L96: 0 | M96: 0 | N96: 0
A97: 41 | B97: CEBO CORTO | C97: 41 | D97: 0.002032311382 | E97: 0.003386036768 | F97: 0.6239316239 | G97: 58.32666667 | H97: 73.425 | I97: 2143.531532 | J97: 0.5911354037 | K97: 0.02016294535 | L97: 0 | M97: 0 | N97: 0
A98: 42 | B98: CEBO CORTO | C98: 42 | D98: 0.002389706798 | E98: 0.00369510884 | F98: 0.6258992806 | G98: 57.32166667 | H98: 73.91833333 | I98: 2146.345324 | J98: 0.5821307317 | K98: 0.02370873282 | L98: 0 | M98: 0 | N98: 0
A99: 43 | B99: CEBO CORTO | C99: 43 | D99: 0.002234467792 | E99: 0.003726989717 | F99: 0.5476190476 | G99: 56.89666667 | H99: 74.68333333 | I99: 2020.608 | J99: 0.5551120879 | K99: 0.0221685773 | L99: 0 | M99: 0 | N99: 0
A100: 44 | B100: CEBO CORTO | C100: 44 | D100: 0.002173637476 | E100: 0.004184169792 | F100: 0.4838709677 | G100: 56.72166667 | H100: 75.39666667 | I100: 2163.388158 | J100: 0.5914298561 | K100: 0.02156506823 | L100: 0 | M100: 0 | N100: 0
A101: 45 | B101: CEBO CORTO | C101: 45 | D101: 0.002092975959 | E101: 0.003267264582 | F101: 0.5696202532 | G101: 56.34833333 | H101: 75.73 | I101: 2666.547771 | J101: 0.7299877942 | K101: 0.02076481008 | L101: 0 | M101: 0 | N101: 0
A102: 46 | B102: CEBO CORTO | C102: 46 | D102: 0.001452901174 | E102: 0.00280841127 | F102: 0.5801526718 | G102: 56.63666667 | H102: 75.73 | I102: 3008.653846 | J102: 0.8375267666 | K102: 0.01441450715 | L102: 0 | M102: 0 | N102: 0
A103: 47 | B103: CEBO CORTO | C103: 47 | D103: 0.001418993089 | E103: 0.00243475569 | F103: 0.7153284672 | G103: 55.525 | H103: 75.92666667 | I103: 3275.489051 | J103: 0.9093049645 | K103: 0.01407809864 | L103: 0 | M103: 0 | N103: 0
A104: 48 | B104: CEBO CORTO | C104: 48 | D104: 0.001537866276 | E104: 0.0024752644 | F104: 0.5870967742 | G104: 50.21 | H104: 74.15666667 | I104: 3674.716129 | J104: 1.017108929 | K104: 0.01525746199 | L104: 0 | M104: 0 | N104: 0
A105: 49 | B105: CEBO CORTO | C105: 49 | D105: 0.00138175743 | E105: 0.002381156136 | F105: 0.6481481481 | G105: 48.44666667 | H105: 73.32333333 | I105: 3845.18125 | J105: 1.075575175 | K105: 0.01370867662 | L105: 0 | M105: 0 | N105: 0
A106: 50 | B106: CEBO CORTO | C106: 50 | D106: 0.00132238694 | E106: 0.001955509688 | F106: 0.6625766871 | G106: 46.94666667 | H106: 73.32333333 | I106: 3811.598684 | J106: 1.054345769 | K106: 0.01311965077 | L106: 0 | M106: 0 | N106: 0
A107: 51 | B107: CEBO CORTO | C107: 51 | D107: 0.001233929747 | E107: 0.002077798817 | F107: 0.6111111111 | G107: 45.73 | H107: 70.402 | I107: 3695.677419 | J107: 1.020632517 | K107: 0.01224205024 | L107: 0 | M107: 0 | N107: 0
A108: 52 | B108: CEBO CORTO | C108: 52 | D108: 0.001269173206 | E108: 0.001990149352 | F108: 0.75 | G108: 45.136 | H108: 70.002 | I108: 2988.151899 | J108: 0.8312112676 | K108: 0.01259170726 | L108: 0 | M108: 0 | N108: 0
A109: 53 | B109: CEBO CORTO | C109: 53 | D109: 0.00229076692 | E109: 0.003795050896 | F109: 0.875 | G109: 45.136 | H109: 70.002 | I109: 2393.333333 | J109: 0.6640462428 | K109: 0.02272713159 | L109: 0 | M109: 0 | N109: 0
A110: 0 | B110: 0 | C110: 0 | D110: 0 | E110: 0 | F110: 0 | G110: 0 | H110: 0 | I110: 0 | J110: TOTAL LARGO | K110: 0.1008240022 | L110: 0 | M110: 0 | N110: 0
A111: MORTALIDAD MENSUAL | B111: 0 | C111: 0 | D111: 0 | E111: 0 | F111: 0 | G111: 0 | H111: 0 | I111: 0 | J111: TOTAL CORTO | K111: 0.08198751431 | L111: 0 | M111: 0 | N111: 0
A112: MES REAL | B112: TIPO DE CEBO | C112: 0 | D112: %BAJAS MES | E112: %BAJAS MES MAX | F112: COEF GRANJA | G112: PRECIOS 15Kg | H112: PRECIOS 25Kg | I112: CENSO | J112: AFORO | K112: IMPORTANCIA EN MORT | L112: 0 | M112: 0 | N112: 0
A113: 1 | B113: CEBO LARGO | C113: 1 | D113: 0.005898445241 | E113: 0.01051857868 | F113: 0.4293233083 | G113: 38.74375 | H113: 63.619375 | I113: 2669.341353 | J113: 0.7460021013 | K113: 0.05850239139 | L113: 0 | M113: 0 | N113: 0
A114: 2 | B114: CEBO LARGO | C114: 2 | D114: 0.007780376031 | E114: 0.02416405157 | F114: 0.4279918864 | G114: 38.89375 | H114: 58.110625 | I114: 2162.193117 | J114: 0.600481627 | K114: 0.07716789512 | L114: 0 | M114: 0 | N114: 0
A115: 3 | B115: CEBO LARGO | C115: 3 | D115: 0.008022118843 | E115: 0.01699964077 | F115: 0.3597534126 | G115: 38.6825 | H115: 56.9625 | I115: 2858.870827 | J115: 0.7819618896 | K115: 0.07956556638 | L115: 0 | M115: 0 | N115: 0
A116: 4 | B116: CEBO LARGO | C116: 4 | D116: 0.008107694441 | E116: 0.01547393114 | F116: 0.4379645512 | G116: 37.35125 | H116: 55.0625 | I116: 3342.476261 | J116: 0.9133707683 | K116: 0.08041432854 | L116: 0 | M116: 0 | N116: 0
A117: 5 | B117: CEBO LARGO | C117: 5 | D117: 0.008389751068 | E117: 0.01497097127 | F117: 0.3867453473 | G117: 38.6675 | H117: 55.3 | I117: 3871.055924 | J117: 1.069940791 | K117: 0.08321184322 | L117: 0 | M117: 0 | N117: 0
A118: 6 | B118: CEBO LARGO | C118: 6 | D118: 0.01097714913 | E118: 0.02136838569 | F118: 0.336331513 | G118: 43.81125 | H118: 56.28125 | I118: 3594.872243 | J118: 0.9933259683 | K118: 0.1088743641 | L118: 0 | M118: 0 | N118: 0
A119: 7 | B119: CEBO LARGO | C119: 7 | D119: 0.0117887124 | E119: 0.02381318211 | F119: 0.3076241135 | G119: 51.2025 | H119: 63.0625 | I119: 3264.334477 | J119: 0.8993889414 | K119: 0.1169236704 | L119: 0 | M119: 0 | N119: 0
A120: 8 | B120: CEBO LARGO | C120: 8 | D120: 0.009259688807 | E120: 0.01766415723 | F120: 0.323907455 | G120: 53.6705 | H120: 65.625 | I120: 3624.578182 | J120: 1.002271493 | K120: 0.09184012339 | L120: 0 | M120: 0 | N120: 0
A121: 9 | B121: CEBO LARGO | C121: 9 | D121: 0.008137843302 | E121: 0.0139888239 | F121: 0.375637105 | G121: 59.149375 | H121: 72.328125 | I121: 3035.911515 | J121: 0.8396335903 | K121: 0.08071335318 | L121: 0 | M121: 0 | N121: 0
A122: 10 | B122: CEBO LARGO | C122: 10 | D122: 0.008328789255 | E122: 0.01432889231 | F122: 0.3821385176 | G122: 60.62 | H122: 77.03125 | I122: 2179.765009 | J122: 0.5984473746 | K122: 0.0826072073 | L122: 0 | M122: 0 | N122: 0
A123: 11 | B123: CEBO LARGO | C123: 11 | D123: 0.007170353852 | E123: 0.01216283048 | F123: 0.3812461444 | G123: 58.794375 | H123: 79.5325 | I123: 2944.143333 | J123: 0.81348653 | K123: 0.07111752848 | L123: 0 | M123: 0 | N123: 0
A124: 12 | B124: CEBO LARGO | C124: 12 | D124: 0.006963079877 | E124: 0.01318145714 | F124: 0.3966101695 | G124: 48.47916667 | H124: 76.7525 | I124: 3619.624799 | J124: 1.003476339 | K124: 0.06906172858 | L124: 0 | M124: 0 | N124: 0
A125: 1 | B125: CEBO CORTO | C125: 1 | D125: 0.005473104512 | E125: 0.009278859566 | F125: 0.4740740741 | G125: 38.74375 | H125: 63.619375 | I125: 2669.341353 | J125: 0.7460021013 | K125: 0.06675534144 | L125: 0 | M125: 0 | N125: 0
A126: 2 | B126: CEBO CORTO | C126: 2 | D126: 0.00509228521 | E126: 0.00907433047 | F126: 0.5381679389 | G126: 38.89375 | H126: 58.110625 | I126: 2162.193117 | J126: 0.600481627 | K126: 0.06211049637 | L126: 0 | M126: 0 | N126: 0
A127: 3 | B127: CEBO CORTO | C127: 3 | D127: 0.005295424679 | E127: 0.008861291679 | F127: 0.4291725105 | G127: 38.6825 | H127: 56.9625 | I127: 2858.870827 | J127: 0.7819618896 | K127: 0.06458818423 | L127: 0 | M127: 0 | N127: 0
A128: 4 | B128: CEBO CORTO | C128: 4 | D128: 0.005572596832 | E128: 0.01008234581 | F128: 0.5029498525 | G128: 37.35125 | H128: 55.0625 | I128: 3342.476261 | J128: 0.9133707683 | K128: 0.0679688472 | L128: 0 | M128: 0 | N128: 0
A129: 5 | B129: CEBO CORTO | C129: 5 | D129: 0.007386661337 | E129: 0.01314229992 | F129: 0.3952606635 | G129: 38.6675 | H129: 55.3 | I129: 3871.055924 | J129: 1.069940791 | K129: 0.09009495409 | L129: 0 | M129: 0 | N129: 0
A130: 6 | B130: CEBO CORTO | C130: 6 | D130: 0.008871418747 | E130: 0.01473940337 | F130: 0.392599278 | G130: 43.81125 | H130: 56.28125 | I130: 3594.872243 | J130: 0.9933259683 | K130: 0.1082045092 | L130: 0 | M130: 0 | N130: 0
A131: 7 | B131: CEBO CORTO | C131: 7 | D131: 0.009972674768 | E131: 0.01803949937 | F131: 0.364334471 | G131: 51.2025 | H131: 63.0625 | I131: 3264.334477 | J131: 0.8993889414 | K131: 0.1216365059 | L131: 0 | M131: 0 | N131: 0
A132: 8 | B132: CEBO CORTO | C132: 8 | D132: 0.009015946688 | E132: 0.0158218768 | F132: 0.3574620197 | G132: 53.6705 | H132: 65.625 | I132: 3624.578182 | J132: 1.002271493 | K132: 0.1099673135 | L132: 0 | M132: 0 | N132: 0
A133: 9 | B133: CEBO CORTO | C133: 9 | D133: 0.007049075351 | E133: 0.01207885447 | F133: 0.4116945107 | G133: 59.149375 | H133: 72.328125 | I133: 3035.911515 | J133: 0.8396335903 | K133: 0.08597742486 | L133: 0 | M133: 0 | N133: 0
A134: 10 | B134: CEBO CORTO | C134: 10 | D134: 0.007509443661 | E134: 0.012415954 | F134: 0.4047217538 | G134: 60.62 | H134: 77.03125 | I134: 2179.765009 | J134: 0.5984473746 | K134: 0.09159252752 | L134: 0 | M134: 0 | N134: 0
A135: 11 | B135: CEBO CORTO | C135: 11 | D135: 0.005539598415 | E135: 0.009287775365 | F135: 0.4102990033 | G135: 58.794375 | H135: 79.5325 | I135: 2944.143333 | J135: 0.81348653 | K135: 0.06756636619 | L135: 0 | M135: 0 | N135: 0
A136: 12 | B136: CEBO CORTO | C136: 12 | D136: 0.005209284111 | E136: 0.008518981854 | F136: 0.4418604651 | G136: 48.47916667 | H136: 76.7525 | I136: 3619.624799 | J136: 1.003476339 | K136: 0.06353752952 | L136: 0 | M136: 0 | N136: 0
A137: 0 | B137: 0 | C137: 0 | D137: 0 | E137: 0 | F137: 0 | G137: 0 | H137: 0 | I137: 0 | J137: 0 | K137: 0 | L137: 0 | M137: 0 | N137: 0
A138: MORBILIDAD MENSUAL | B138: 0 | C138: 0 | D138: 0 | E138: 0 | F138: 0 | G138: 0 | H138: 0 | I138: 0 | J138: 0 | K138: 0 | L138: 0 | M138: 0 | N138: 0
A139: MES REAL | B139: TIPO DE CEBO | C139: MES REAL | D139: %MORB MES | E139: %MORB MAX | F139: 0 | G139: 0 | H139: 0 | I139: 0 | J139: 0 | K139: 0 | L139: 0 | M139: 0 | N139: 0
A140: 1 | B140: GENERAL | C140: 1 | D140: 0.02313333333 | E140: 0.02816189879 | F140: 0 | G140: 0 | H140: 0 | I140: 0 | J140: 0 | K140: 0 | L140: 0 | M140: 0 | N140: 0
A141: 2 | B141: GENERAL | C141: 2 | D141: 0.028415 | E141: 0.04121227844 | F141: 0 | G141: 0 | H141: 0 | I141: 0 | J141: 0 | K141: 0 | L141: 0 | M141: 0 | N141: 0
A142: 3 | B142: GENERAL | C142: 3 | D142: 0.03804736842 | E142: 0.0510208817 | F142: 0 | G142: 0 | H142: 0 | I142: 0 | J142: 0 | K142: 0 | L142: 0 | M142: 0 | N142: 0
A143: 4 | B143: GENERAL | C143: 4 | D143: 0.03863157895 | E143: 0.05330881049 | F143: 0 | G143: 0 | H143: 0 | I143: 0 | J143: 0 | K143: 0 | L143: 0 | M143: 0 | N143: 0
A144: 5 | B144: GENERAL | C144: 5 | D144: 0.03343333333 | E144: 0.04530791073 | F144: 0 | G144: 0 | H144: 0 | I144: 0 | J144: 0 | K144: 0 | L144: 0 | M144: 0 | N144: 0
A145: 6 | B145: GENERAL | C145: 6 | D145: 0.0331 | E145: 0.04184407282 | F145: 0 | G145: 0 | H145: 0 | I145: 0 | J145: 0 | K145: 0 | L145: 0 | M145: 0 | N145: 0
A146: 7 | B146: GENERAL | C146: 7 | D146: 0.055 | E146: 0.07561241322 | F146: 0 | G146: 0 | H146: 0 | I146: 0 | J146: 0 | K146: 0 | L146: 0 | M146: 0 | N146: 0
A147: 8 | B147: GENERAL | C147: 8 | D147: 0.0462952381 | E147: 0.05994280634 | F147: 0 | G147: 0 | H147: 0 | I147: 0 | J147: 0 | K147: 0 | L147: 0 | M147: 0 | N147: 0
A148: 9 | B148: GENERAL | C148: 9 | D148: 0.03288333333 | E148: 0.04136208272 | F148: 0 | G148: 0 | H148: 0 | I148: 0 | J148: 0 | K148: 0 | L148: 0 | M148: 0 | N148: 0
A149: 10 | B149: GENERAL | C149: 10 | D149: 0.02252380952 | E149: 0.03415440393 | F149: 0 | G149: 0 | H149: 0 | I149: 0 | J149: 0 | K149: 0 | L149: 0 | M149: 0 | N149: 0
A150: 11 | B150: GENERAL | C150: 11 | D150: 0.029875 | E150: 0.04386349974 | F150: 0 | G150: 0 | H150: 0 | I150: 0 | J150: 0 | K150: 0 | L150: 0 | M150: 0 | N150: 0
A151: 12 | B151: GENERAL | C151: 12 | D151: 0.02663684211 | E151: 0.03617067383 | F151: 0 | G151: 0 | H151: 0 | I151: 0 | J151: 0 | K151: 0 | L151: 0 | M151: 0 | N151: 0
A152: 0 | B152: 0 | C152: 0 | D152: 0 | E152: 0 | F152: 0 | G152: 0 | H152: 0 | I152: 0 | J152: 0 | K152: 0 | L152: 0 | M152: 0 | N152: 0
A153: DECOMISOS POR MES | B153: 0 | C153: 0 | D153: 0 | E153: 0 | F153: 0 | G153: 0 | H153: 0 | I153: 0 | J153: 0 | K153: 0 | L153: 0 | M153: 0 | N153: 0
A154: MES REAL | B154: DEC.PULMON | C154: MES REAL | D154: DEC.HIGADO | E154: DEC.CANALES | F154: MAX DEC PULMON | G154: MAX DEC HIGADO | H154: MAX DEC CANALES | I154: 0 | J154: 0 | K154: 0 | L154: 0 | M154: 0 | N154: 0
A155: 1 | B155: 0.2512280759 | C155: 1 | D155: 0.1466620795 | E155: 0.001466029425 | F155: 0.2854033185 | G155: 0.1692943589 | H155: 0.00197704998 | I155: 0 | J155: 0 | K155: 0 | L155: 0 | M155: 0 | N155: 0
A156: 2 | B156: 0.2668227424 | C156: 2 | D156: 0.1481949107 | E156: 0.001997189092 | F156: 0.3015753271 | G156: 0.1697292096 | H156: 0.002551603122 | I156: 0 | J156: 0 | K156: 0 | L156: 0 | M156: 0 | N156: 0
A157: 3 | B157: 0.2736697246 | C157: 3 | D157: 0.134721549 | E157: 0.002196524223 | F157: 0.3117582574 | G157: 0.1588619056 | H157: 0.002797298428 | I157: 0 | J157: 0 | K157: 0 | L157: 0 | M157: 0 | N157: 0
A158: 4 | B158: 0.2625549743 | C158: 4 | D158: 0.1221360587 | E158: 0.002329737627 | F158: 0.2923323658 | G158: 0.1455577388 | H158: 0.002844683606 | I158: 0 | J158: 0 | K158: 0 | L158: 0 | M158: 0 | N158: 0
A159: 5 | B159: 0.3023221957 | C159: 5 | D159: 0.1357432619 | E159: 0.003847246159 | F159: 0.3459135855 | G159: 0.163526015 | H159: 0.004697518404 | I159: 0 | J159: 0 | K159: 0 | L159: 0 | M159: 0 | N159: 0
A160: 6 | B160: 0.2881570291 | C160: 6 | D160: 0.1261630279 | E160: 0.003577125022 | F160: 0.3092995436 | G160: 0.1478833899 | H160: 0.004135960018 | I160: 0 | J160: 0 | K160: 0 | L160: 0 | M160: 0 | N160: 0
A161: 7 | B161: 0.2759071599 | C161: 7 | D161: 0.1094828429 | E161: 0.003611205649 | F161: 0.2929650809 | G161: 0.1254786935 | H161: 0.004473102229 | I161: 0 | J161: 0 | K161: 0 | L161: 0 | M161: 0 | N161: 0
A162: 8 | B162: 0.2738599768 | C162: 8 | D162: 0.1177551423 | E162: 0.002616837374 | F162: 0.3002975393 | G162: 0.1400632954 | H162: 0.003048033061 | I162: 0 | J162: 0 | K162: 0 | L162: 0 | M162: 0 | N162: 0
A163: 9 | B163: 0.2725224297 | C163: 9 | D163: 0.1272896056 | E163: 0.003489651885 | F163: 0.30097293 | G163: 0.1518041231 | H163: 0.004729702545 | I163: 0 | J163: 0 | K163: 0 | L163: 0 | M163: 0 | N163: 0
A164: 10 | B164: 0.2633974385 | C164: 10 | D164: 0.1454233463 | E164: 0.001715821006 | F164: 0.288499206 | G164: 0.1736460047 | H164: 0.00191244893 | I164: 0 | J164: 0 | K164: 0 | L164: 0 | M164: 0 | N164: 0
A165: 11 | B165: 0.260086273 | C165: 11 | D165: 0.1369174189 | E165: 0.002326081188 | F165: 0.2960912284 | G165: 0.1643728246 | H165: 0.003033842905 | I165: 0 | J165: 0 | K165: 0 | L165: 0 | M165: 0 | N165: 0
A166: 12 | B166: 0.2676202958 | C166: 12 | D166: 0.1315149201 | E166: 0.001159283624 | F166: 0.2970968418 | G166: 0.1535740774 | H166: 0.001372263074 | I166: 0 | J166: 0 | K166: 0 | L166: 0 | M166: 0 | N166: 0
A167: 0 | B167: 0 | C167: 0 | D167: 0 | E167: 0 | F167: 0 | G167: 0 | H167: 0 | I167: 0 | J167: 0 | K167: 0 | L167: 0 | M167: 0 | N167: 0
A168: pH PANZA POR MES | B168: 0 | C168: 0 | D168: 0 | E168: 0 | F168: 0 | G168: 0 | H168: 0 | I168: 0 | J168: 0 | K168: 0 | L168: 0 | M168: 0 | N168: 0
A169: MES REAL | B169: pH | C169: MES REAL | D169: DesvSt | E169: 0 | F169: 0 | G169: 0 | H169: 0 | I169: 0 | J169: 0 | K169: 0 | L169: 0 | M169: 0 | N169: 0
A170: 3 | B170: 7.115954198 | C170: 3 | D170: 0.2591488394 | E170: 0 | F170: 0 | G170: 0 | H170: 0 | I170: 0 | J170: 0 | K170: 0 | L170: 0 | M170: 0 | N170: 0
A171: 4 | B171: 7.173706897 | C171: 4 | D171: 0.3685188454 | E171: 0 | F171: 0 | G171: 0 | H171: 0 | I171: 0 | J171: 0 | K171: 0 | L171: 0 | M171: 0 | N171: 0
A172: 5 | B172: 7.090371622 | C172: 5 | D172: 0.3225137449 | E172: 0 | F172: 0 | G172: 0 | H172: 0 | I172: 0 | J172: 0 | K172: 0 | L172: 0 | M172: 0 | N172: 0
A173: 7 | B173: 7.090065789 | C173: 7 | D173: 0.2371561553 | E173: 0 | F173: 0 | G173: 0 | H173: 0 | I173: 0 | J173: 0 | K173: 0 | L173: 0 | M173: 0 | N173: 0
A174: 9 | B174: 6.407 | C174: 9 | D174: 0.6609933602 | E174: 0 | F174: 0 | G174: 0 | H174: 0 | I174: 0 | J174: 0 | K174: 0 | L174: 0 | M174: 0 | N174: 0
A175: 10 | B175: 6.969702381 | C175: 10 | D175: 0.3184250645 | E175: 0 | F175: 0 | G175: 0 | H175: 0 | I175: 0 | J175: 0 | K175: 0 | L175: 0 | M175: 0 | N175: 0
A176: 11 | B176: 7.072107843 | C176: 11 | D176: 0.291070672 | E176: 0 | F176: 0 | G176: 0 | H176: 0 | I176: 0 | J176: 0 | K176: 0 | L176: 0 | M176: 0 | N176: 0
A177: 1 | B177: 7.072107843 | C177: 1 | D177: 0.291070672 | E177: 0 | F177: 0 | G177: 0 | H177: 0 | I177: 0 | J177: 0 | K177: 0 | L177: 0 | M177: 0 | N177: 0
A178: 2 | B178: 7.115954198 | C178: 2 | D178: 0.2591488394 | E178: 0 | F178: 0 | G178: 0 | H178: 0 | I178: 0 | J178: 0 | K178: 0 | L178: 0 | M178: 0 | N178: 0
A179: 6 | B179: 7.090065789 | C179: 6 | D179: 0.2371561553 | E179: 0 | F179: 0 | G179: 0 | H179: 0 | I179: 0 | J179: 0 | K179: 0 | L179: 0 | M179: 0 | N179: 0
A180: 8 | B180: 6.407 | C180: 8 | D180: 0.6609933602 | E180: 0 | F180: 0 | G180: 0 | H180: 0 | I180: 0 | J180: 0 | K180: 0 | L180: 0 | M180: 0 | N180: 0
A181: 12 | B181: 7.072107843 | C181: 12 | D181: 0.291070672 | E181: 0 | F181: 0 | G181: 0 | H181: 0 | I181: 0 | J181: 0 | K181: 0 | L181: 0 | M181: 0 | N181: 0
A182: 0 | B182: 0 | C182: 0 | D182: 0 | E182: 0 | F182: 0 | G182: 0 | H182: 0 | I182: 0 | J182: 0 | K182: 0 | L182: 0 | M182: 0 | N182: 0
A183: DATOS PRUEBAS CORDEROS | B183: 0 | C183: 0 | D183: 0 | E183: 0 | F183: 0 | G183: 0 | H183: 0 | I183: 0 | J183: 0 | K183: 0 | L183: 0 | M183: 0 | N183: 0
A184: GRUPOS | B184: 0 | C184: 0 | D184: 0 | E184: 0 | F184: 0 | G184: 0 | H184: 0 | I184: 0 | J184: 0 | K184: 0 | L184: 0 | M184: 0 | N184: 0
A185: COD | B185: GRUPO | C185: SEXO | D185: RAZA | E185: EPOCA | F185: CuentaDeNº REGISTRO PRUEBA | G185: SumaDeNº ANIMALES | H185: PromedioDePESO ENTRADA | I185: PromedioDePESO SALIDA | J185: PromedioDeGMD | K185: PromedioDeIC | L185: PromedioDeENERGIA (UFC2007) | M185: PromedioDeDIAS EN CEBO | N185: PromedioDeCMD | O185: DesvEstDeGMD | P185: DesvEstDeIC
A186: 1 | B186: 1 | C186: MACHOS&HEMBRAS | D186: CARNICO&CRUZADO | E186: INVIERNO | F186: 9 | G186: 596 | H186: 13511.11111 | I186: 13253.33333 | J186: 302.6666667 | K186: 2347.777778 | L186: 100.1875 | M186: -0.3280202212 | N186: 704.7088889 | O186: 36.40741683 | P186: 792.4452312
A187: 2 | B187: 1 | C187: MACHOS&HEMBRAS | D187: CARNICO&CRUZADO | E187: VERANO | F187: 7 | G187: 246 | H187: 12857.14286 | I187: 14771.42857 | J187: 319.7142857 | K187: 2030 | L187: 100.5 | M187: 6.10501002 | N187: 624.8642857 | O187: 45.64980572 | P187: 647.8425735
A188: 3 | B188: 0 | C188: 0 | D188: 0 | E188: 0 | F188: 0 | G188: 0 | H188: 0 | I188: 0 | J188: 0 | K188: 0 | L188: 0 | M188: 0 | N188: 0 | O188: 0 | P188: 0
A189: 4 | B189: 0 | C189: 0 | D189: 0 | E189: 0 | F189: 0 | G189: 0 | H189: 0 | I189: 0 | J189: 0 | K189: 0 | L189: 0 | M189: 0 | N189: 0 | O189: 0 | P189: 0
A190: 5 | B190: 0 | C190: 0 | D190: 0 | E190: 0 | F190: 0 | G190: 0 | H190: 0 | I190: 0 | J190: 0 | K190: 0 | L190: 0 | M190: 0 | N190: 0 | O190: 0 | P190: 0
A191: 6 | B191: 0 | C191: 0 | D191: 0 | E191: 0 | F191: 0 | G191: 0 | H191: 0 | I191: 0 | J191: 0 | K191: 0 | L191: 0 | M191: 0 | N191: 0 | O191: 0 | P191: 0
A192: 7 | B192: 0 | C192: 0 | D192: 0 | E192: 0 | F192: 0 | G192: 0 | H192: 0 | I192: 0 | J192: 0 | K192: 0 | L192: 0 | M192: 0 | N192: 0 | O192: 0 | P192: 0
A193: 8 | B193: 0 | C193: 0 | D193: 0 | E193: 0 | F193: 0 | G193: 0 | H193: 0 | I193: 0 | J193: 0 | K193: 0 | L193: 0 | M193: 0 | N193: 0 | O193: 0 | P193: 0
A194: 9 | B194: 0 | C194: 0 | D194: 0 | E194: 0 | F194: 0 | G194: 0 | H194: 0 | I194: 0 | J194: 0 | K194: 0 | L194: 0 | M194: 0 | N194: 0 | O194: 0 | P194: 0
A195: 10 | B195: 0 | C195: 0 | D195: 0 | E195: 0 | F195: 0 | G195: 0 | H195: 0 | I195: 0 | J195: 0 | K195: 0 | L195: 0 | M195: 0 | N195: 0 | O195: 0 | P195: 0
A196: 11 | B196: 0 | C196: 0 | D196: 0 | E196: 0 | F196: 0 | G196: 0 | H196: 0 | I196: 0 | J196: 0 | K196: 0 | L196: 0 | M196: 0 | N196: 0 | O196: 0 | P196: 0
A197: 12 | B197: 0 | C197: 0 | D197: 0 | E197: 0 | F197: 0 | G197: 0 | H197: 0 | I197: 0 | J197: 0 | K197: 0 | L197: 0 | M197: 0 | N197: 0 | O197: 0 | P197: 0
A198: 13 | B198: 0 | C198: 0 | D198: 0 | E198: 0 | F198: 0 | G198: 0 | H198: 0 | I198: 0 | J198: 0 | K198: 0 | L198: 0 | M198: 0 | N198: 0 | O198: 0 | P198: 0
A199: 14 | B199: 0 | C199: 0 | D199: 0 | E199: 0 | F199: 0 | G199: 0 | H199: 0 | I199: 0 | J199: 0 | K199: 0 | L199: 0 | M199: 0 | N199: 0 | O199: 0 | P199: 0
A200: 15 | B200: 0 | C200: 0 | D200: 0 | E200: 0 | F200: 0 | G200: 0 | H200: 0 | I200: 0 | J200: 0 | K200: 0 | L200: 0 | M200: 0 | N200: 0 | O200: 0 | P200: 0
... 301 more rows

Sheet ENLACES DATOS
A1: ESTIMACION SEMANAL
C2: cebadero | D2: semana | E2: mes | F2: COEF,BAJAS
A3: CEBO LARGO | B3: CEBO LARGO | C3: =VLOOKUP('GEST CHEQ SEM'!C11,A3:B4,2,FALSE) ->  | D3: ='BUSCAR FECHA'!G2 ->  | E3: ='BUSCAR FECHA'!H2 ->  | F3: =('GEST CHEQ SEM'!C19/'GEST CHEQ SEM'!C22) -> 
A4: CEBADERO REGULADOR | B4: CEBO CORTO
B5: 1 | C5: 2 | D5: 4 | E5: 5 | F5: 6 | G5: 7 | H5: 8 | I5: 9 | J5: 10 | K5: 11 | L5: 12 | M5: 13
B6: SEMANA | C6: CEBO | D6: %BAJAS SEMANAL | E6: %BAJAS SEM MAX | F6: COEF GRANJA | G6: PRECIOS 15Kg | H6: PRECIOS 25Kg | I6: CENSO | J6: AFORO
A7: BUSQUEDA | B7: =D3 ->  | C7: =VLOOKUP($B7,'HOJA GENERAL DE DATOS'!$A$4:$N$56,C5,FALSE) ->  | D7: =VLOOKUP($B7,'HOJA GENERAL DE DATOS'!$A$4:$N$56,D5,FALSE) ->  | E7: =VLOOKUP($B7,'HOJA GENERAL DE DATOS'!$A$4:$N$56,E5,FALSE) ->  | F7: =VLOOKUP($B7,'HOJA GENERAL DE DATOS'!$A$4:$N$56,F5,FALSE) ->  | G7: =VLOOKUP($B7,'HOJA GENERAL DE DATOS'!$A$4:$N$56,G5,FALSE) ->  | H7: =VLOOKUP($B7,'HOJA GENERAL DE DATOS'!$A$4:$N$56,H5,FALSE) ->  | I7: =VLOOKUP($B7,'HOJA GENERAL DE DATOS'!$A$4:$N$56,I5,FALSE) ->  | J7: =VLOOKUP($B7,'HOJA GENERAL DE DATOS'!$A$4:$N$56,J5,FALSE) ->  | K7: =VLOOKUP($B7,'HOJA GENERAL DE DATOS'!$A$4:$N$56,K5,FALSE) ->  | L7: =VLOOKUP($B7,'HOJA GENERAL DE DATOS'!$A$4:$N$56,L5,FALSE) ->  | M7: =VLOOKUP($B7,'HOJA GENERAL DE DATOS'!$A$4:$N$56,M5,FALSE) -> 
B8: =D3 ->  | C8: =VLOOKUP($B8,'HOJA GENERAL DE DATOS'!$A$57:$N$109,C5,FALSE) ->  | D8: =VLOOKUP($B8,'HOJA GENERAL DE DATOS'!$A$57:$N$109,D5,FALSE) ->  | E8: =VLOOKUP($B8,'HOJA GENERAL DE DATOS'!$A$57:$N$109,E5,FALSE) ->  | F8: =VLOOKUP($B8,'HOJA GENERAL DE DATOS'!$A$57:$N$109,F5,FALSE) ->  | G8: =VLOOKUP($B8,'HOJA GENERAL DE DATOS'!$A$57:$N$109,G5,FALSE) ->  | H8: =VLOOKUP($B8,'HOJA GENERAL DE DATOS'!$A$57:$N$109,H5,FALSE) ->  | I8: =VLOOKUP($B8,'HOJA GENERAL DE DATOS'!$A$57:$N$109,I5,FALSE) ->  | J8: =VLOOKUP($B8,'HOJA GENERAL DE DATOS'!$A$57:$N$109,J5,FALSE) ->  | K8: =VLOOKUP($B8,'HOJA GENERAL DE DATOS'!$A$57:$N$109,K5,FALSE) ->  | L8: =VLOOKUP($B8,'HOJA GENERAL DE DATOS'!$A$57:$N$109,L5,FALSE) ->  | M8: =VLOOKUP($B8,'HOJA GENERAL DE DATOS'!$A$57:$N$109,M5,FALSE) -> 
B10: MES REAL | C10: TIPO DE CEBO | D10: %BAJAS MES | E10: %BAJAS MES MAX | F10: COEF GRANJA | G10: PRECIOS 15Kg | H10: PRECIOS 25Kg | I10: CENSO | J10: AFORO | K10: 0 | L10: 0 | M10: 0
B11: =E3 ->  | C11: =VLOOKUP($B11,'HOJA GENERAL DE DATOS'!$A$113:$N$124,C5,FALSE) ->  | D11: =VLOOKUP($B11,'HOJA GENERAL DE DATOS'!$A$113:$N$124,D5,FALSE) ->  | E11: =VLOOKUP($B11,'HOJA GENERAL DE DATOS'!$A$113:$N$124,E5,FALSE) ->  | F11: =VLOOKUP($B11,'HOJA GENERAL DE DATOS'!$A$113:$N$124,F5,FALSE) ->  | G11: =VLOOKUP($B11,'HOJA GENERAL DE DATOS'!$A$113:$N$124,G5,FALSE) ->  | H11: =VLOOKUP($B11,'HOJA GENERAL DE DATOS'!$A$113:$N$124,H5,FALSE) ->  | I11: =VLOOKUP($B11,'HOJA GENERAL DE DATOS'!$A$113:$N$124,I5,FALSE) ->  | J11: =VLOOKUP($B11,'HOJA GENERAL DE DATOS'!$A$113:$N$124,J5,FALSE) ->  | K11: =VLOOKUP($B11,'HOJA GENERAL DE DATOS'!$A$113:$N$124,K5,FALSE) ->  | L11: =VLOOKUP($B11,'HOJA GENERAL DE DATOS'!$A$113:$N$124,L5,FALSE) ->  | M11: =VLOOKUP($B11,'HOJA GENERAL DE DATOS'!$A$113:$N$124,M5,FALSE) -> 
B12: =E3 ->  | C12: =VLOOKUP($B12,'HOJA GENERAL DE DATOS'!$A$125:$N$136,C5,FALSE) ->  | D12: =VLOOKUP($B12,'HOJA GENERAL DE DATOS'!$A$125:$N$136,D5,FALSE) ->  | E12: =VLOOKUP($B12,'HOJA GENERAL DE DATOS'!$A$125:$N$136,E5,FALSE) ->  | F12: =VLOOKUP($B12,'HOJA GENERAL DE DATOS'!$A$125:$N$136,F5,FALSE) ->  | G12: =VLOOKUP($B12,'HOJA GENERAL DE DATOS'!$A$125:$N$136,G5,FALSE) ->  | H12: =VLOOKUP($B12,'HOJA GENERAL DE DATOS'!$A$125:$N$136,H5,FALSE) ->  | I12: =VLOOKUP($B12,'HOJA GENERAL DE DATOS'!$A$125:$N$136,I5,FALSE) ->  | J12: =VLOOKUP($B12,'HOJA GENERAL DE DATOS'!$A$125:$N$136,J5,FALSE) ->  | K12: =VLOOKUP($B12,'HOJA GENERAL DE DATOS'!$A$125:$N$136,K5,FALSE) ->  | L12: =VLOOKUP($B12,'HOJA GENERAL DE DATOS'!$A$125:$N$136,L5,FALSE) ->  | M12: =VLOOKUP($B12,'HOJA GENERAL DE DATOS'!$A$125:$N$136,M5,FALSE) -> 
A14: SOLUCION | B14: SEMANAL | C14: =VLOOKUP($C$3,$C$7:$M$8,B5,FALSE) ->  | E14: =VLOOKUP($C$3,$C$7:$M$8,3,FALSE) ->  | F14: =VLOOKUP($C$3,$C$7:$M$8,D5,FALSE) -> 
B15: MENSUAL | C15: =VLOOKUP($C$3,$C$11:$M$12,B5,FALSE) ->  | E15: =VLOOKUP($C$3,$C$11:$M$12,3,FALSE) ->  | F15: =VLOOKUP($C$3,$C$11:$M$12,D5,FALSE) -> 
B17: MES REAL | C17: TIPO DE CEBO | D17: %MORB MES | E17: %MORB MAX
B18: =E3 ->  | C18: =VLOOKUP($B18,'HOJA GENERAL DE DATOS'!$A$140:$D$151,C5,FALSE) ->  | D18: =VLOOKUP($B18,'HOJA GENERAL DE DATOS'!$A$140:$E$151,D5,FALSE) ->  | E18: =VLOOKUP($B18,'HOJA GENERAL DE DATOS'!$A$140:$E$151,E5,FALSE) -> 
A21: CALCULO PERDIDAS | B21: SEMANA | C21: CEBO
B22: =D3 ->  | C22: =VLOOKUP($B22,'HOJA GENERAL DE DATOS'!$A$4:$N$56,2,FALSE) ->  | D22: =VLOOKUP($B22,'HOJA GENERAL DE DATOS'!$A$4:$N$56,11,FALSE) -> 
B23: =D3 ->  | C23: =VLOOKUP($B23,'HOJA GENERAL DE DATOS'!$A$57:$N109,2,FALSE) ->  | D23: =VLOOKUP($B23,'HOJA GENERAL DE DATOS'!$A$57:$N109,11,FALSE) -> 
A25: SOLUCION | B25: SEMANA | C25: =VLOOKUP($C$3,$C$22:$M$23,B5,FALSE) ->  | D25: =VLOOKUP($C$3,$C$22:$M$23,C5,FALSE) -> 
B29: TIPO CEBO | C29: SEMANA | D29: %BAJAS SEMANAL | E29: %BAJAS SEM MAX | F29: %BAJAS EST | G29: CENSO | H29: AFORO | I29: %BAJASX100
B30: =IF($C$3='ENLACES DATOS'!$B$4,'HOJA GENERAL DE DATOS'!B57,'HOJA GENERAL DE DATOS'!B4) ->  | C30: =IF($C$3='ENLACES DATOS'!$B$4,'HOJA GENERAL DE DATOS'!C57,'HOJA GENERAL DE DATOS'!C4) ->  | D30: =IF($C$3='ENLACES DATOS'!$B$4,'HOJA GENERAL DE DATOS'!D57,'HOJA GENERAL DE DATOS'!D4) ->  | E30: =IF($C$3='ENLACES DATOS'!$B$4,'HOJA GENERAL DE DATOS'!E57,'HOJA GENERAL DE DATOS'!E4) ->  | F30: =D30+(D30*$F$3) ->  | G30: =IF($C$3='ENLACES DATOS'!$B$4,'HOJA GENERAL DE DATOS'!I57,'HOJA GENERAL DE DATOS'!I4) ->  | H30: =IF($C$3='ENLACES DATOS'!$B$4,'HOJA GENERAL DE DATOS'!J57,'HOJA GENERAL DE DATOS'!J4) ->  | I30: =D30*100 -> 
B31: =IF($C$3='ENLACES DATOS'!$B$4,'HOJA GENERAL DE DATOS'!B58,'HOJA GENERAL DE DATOS'!B5) ->  | C31: =IF($C$3='ENLACES DATOS'!$B$4,'HOJA GENERAL DE DATOS'!C58,'HOJA GENERAL DE DATOS'!C5) ->  | D31: =IF($C$3='ENLACES DATOS'!$B$4,'HOJA GENERAL DE DATOS'!D58,'HOJA GENERAL DE DATOS'!D5) ->  | E31: =IF($C$3='ENLACES DATOS'!$B$4,'HOJA GENERAL DE DATOS'!E58,'HOJA GENERAL DE DATOS'!E5) ->  | F31: =D31+(D31*$F$3) ->  | G31: =IF($C$3='ENLACES DATOS'!$B$4,'HOJA GENERAL DE DATOS'!I58,'HOJA GENERAL DE DATOS'!I5) ->  | H31: =IF($C$3='ENLACES DATOS'!$B$4,'HOJA GENERAL DE DATOS'!J58,'HOJA GENERAL DE DATOS'!J5) ->  | I31: =D31*100 -> 
B32: =IF($C$3='ENLACES DATOS'!$B$4,'HOJA GENERAL DE DATOS'!B59,'HOJA GENERAL DE DATOS'!B6) ->  | C32: =IF($C$3='ENLACES DATOS'!$B$4,'HOJA GENERAL DE DATOS'!C59,'HOJA GENERAL DE DATOS'!C6) ->  | D32: =IF($C$3='ENLACES DATOS'!$B$4,'HOJA GENERAL DE DATOS'!D59,'HOJA GENERAL DE DATOS'!D6) ->  | E32: =IF($C$3='ENLACES DATOS'!$B$4,'HOJA GENERAL DE DATOS'!E59,'HOJA GENERAL DE DATOS'!E6) ->  | G32: =IF($C$3='ENLACES DATOS'!$B$4,'HOJA GENERAL DE DATOS'!I59,'HOJA GENERAL DE DATOS'!I6) ->  | H32: =IF($C$3='ENLACES DATOS'!$B$4,'HOJA GENERAL DE DATOS'!J59,'HOJA GENERAL DE DATOS'!J6) -> 
B33: =IF($C$3='ENLACES DATOS'!$B$4,'HOJA GENERAL DE DATOS'!B60,'HOJA GENERAL DE DATOS'!B7) ->  | C33: =IF($C$3='ENLACES DATOS'!$B$4,'HOJA GENERAL DE DATOS'!C60,'HOJA GENERAL DE DATOS'!C7) ->  | D33: =IF($C$3='ENLACES DATOS'!$B$4,'HOJA GENERAL DE DATOS'!D60,'HOJA GENERAL DE DATOS'!D7) ->  | E33: =IF($C$3='ENLACES DATOS'!$B$4,'HOJA GENERAL DE DATOS'!E60,'HOJA GENERAL DE DATOS'!E7) ->  | G33: =IF($C$3='ENLACES DATOS'!$B$4,'HOJA GENERAL DE DATOS'!I60,'HOJA GENERAL DE DATOS'!I7) ->  | H33: =IF($C$3='ENLACES DATOS'!$B$4,'HOJA GENERAL DE DATOS'!J60,'HOJA GENERAL DE DATOS'!J7) -> 
B34: =IF($C$3='ENLACES DATOS'!$B$4,'HOJA GENERAL DE DATOS'!B61,'HOJA GENERAL DE DATOS'!B8) ->  | C34: =IF($C$3='ENLACES DATOS'!$B$4,'HOJA GENERAL DE DATOS'!C61,'HOJA GENERAL DE DATOS'!C8) ->  | D34: =IF($C$3='ENLACES DATOS'!$B$4,'HOJA GENERAL DE DATOS'!D61,'HOJA GENERAL DE DATOS'!D8) ->  | E34: =IF($C$3='ENLACES DATOS'!$B$4,'HOJA GENERAL DE DATOS'!E61,'HOJA GENERAL DE DATOS'!E8) ->  | G34: =IF($C$3='ENLACES DATOS'!$B$4,'HOJA GENERAL DE DATOS'!I61,'HOJA GENERAL DE DATOS'!I8) ->  | H34: =IF($C$3='ENLACES DATOS'!$B$4,'HOJA GENERAL DE DATOS'!J61,'HOJA GENERAL DE DATOS'!J8) -> 
B35: =IF($C$3='ENLACES DATOS'!$B$4,'HOJA GENERAL DE DATOS'!B62,'HOJA GENERAL DE DATOS'!B9) ->  | C35: =IF($C$3='ENLACES DATOS'!$B$4,'HOJA GENERAL DE DATOS'!C62,'HOJA GENERAL DE DATOS'!C9) ->  | D35: =IF($C$3='ENLACES DATOS'!$B$4,'HOJA GENERAL DE DATOS'!D62,'HOJA GENERAL DE DATOS'!D9) ->  | E35: =IF($C$3='ENLACES DATOS'!$B$4,'HOJA GENERAL DE DATOS'!E62,'HOJA GENERAL DE DATOS'!E9) ->  | G35: =IF($C$3='ENLACES DATOS'!$B$4,'HOJA GENERAL DE DATOS'!I62,'HOJA GENERAL DE DATOS'!I9) ->  | H35: =IF($C$3='ENLACES DATOS'!$B$4,'HOJA GENERAL DE DATOS'!J62,'HOJA GENERAL DE DATOS'!J9) -> 
B36: =IF($C$3='ENLACES DATOS'!$B$4,'HOJA GENERAL DE DATOS'!B63,'HOJA GENERAL DE DATOS'!B10) ->  | C36: =IF($C$3='ENLACES DATOS'!$B$4,'HOJA GENERAL DE DATOS'!C63,'HOJA GENERAL DE DATOS'!C10) ->  | D36: =IF($C$3='ENLACES DATOS'!$B$4,'HOJA GENERAL DE DATOS'!D63,'HOJA GENERAL DE DATOS'!D10) ->  | E36: =IF($C$3='ENLACES DATOS'!$B$4,'HOJA GENERAL DE DATOS'!E63,'HOJA GENERAL DE DATOS'!E10) ->  | G36: =IF($C$3='ENLACES DATOS'!$B$4,'HOJA GENERAL DE DATOS'!I63,'HOJA GENERAL DE DATOS'!I10) ->  | H36: =IF($C$3='ENLACES DATOS'!$B$4,'HOJA GENERAL DE DATOS'!J63,'HOJA GENERAL DE DATOS'!J10) -> 
B37: =IF($C$3='ENLACES DATOS'!$B$4,'HOJA GENERAL DE DATOS'!B64,'HOJA GENERAL DE DATOS'!B11) ->  | C37: =IF($C$3='ENLACES DATOS'!$B$4,'HOJA GENERAL DE DATOS'!C64,'HOJA GENERAL DE DATOS'!C11) ->  | D37: =IF($C$3='ENLACES DATOS'!$B$4,'HOJA GENERAL DE DATOS'!D64,'HOJA GENERAL DE DATOS'!D11) ->  | E37: =IF($C$3='ENLACES DATOS'!$B$4,'HOJA GENERAL DE DATOS'!E64,'HOJA GENERAL DE DATOS'!E11) ->  | G37: =IF($C$3='ENLACES DATOS'!$B$4,'HOJA GENERAL DE DATOS'!I64,'HOJA GENERAL DE DATOS'!I11) ->  | H37: =IF($C$3='ENLACES DATOS'!$B$4,'HOJA GENERAL DE DATOS'!J64,'HOJA GENERAL DE DATOS'!J11) -> 
B38: =IF($C$3='ENLACES DATOS'!$B$4,'HOJA GENERAL DE DATOS'!B65,'HOJA GENERAL DE DATOS'!B12) ->  | C38: =IF($C$3='ENLACES DATOS'!$B$4,'HOJA GENERAL DE DATOS'!C65,'HOJA GENERAL DE DATOS'!C12) ->  | D38: =IF($C$3='ENLACES DATOS'!$B$4,'HOJA GENERAL DE DATOS'!D65,'HOJA GENERAL DE DATOS'!D12) ->  | E38: =IF($C$3='ENLACES DATOS'!$B$4,'HOJA GENERAL DE DATOS'!E65,'HOJA GENERAL DE DATOS'!E12) ->  | G38: =IF($C$3='ENLACES DATOS'!$B$4,'HOJA GENERAL DE DATOS'!I65,'HOJA GENERAL DE DATOS'!I12) ->  | H38: =IF($C$3='ENLACES DATOS'!$B$4,'HOJA GENERAL DE DATOS'!J65,'HOJA GENERAL DE DATOS'!J12) -> 
B39: =IF($C$3='ENLACES DATOS'!$B$4,'HOJA GENERAL DE DATOS'!B66,'HOJA GENERAL DE DATOS'!B13) ->  | C39: =IF($C$3='ENLACES DATOS'!$B$4,'HOJA GENERAL DE DATOS'!C66,'HOJA GENERAL DE DATOS'!C13) ->  | D39: =IF($C$3='ENLACES DATOS'!$B$4,'HOJA GENERAL DE DATOS'!D66,'HOJA GENERAL DE DATOS'!D13) ->  | E39: =IF($C$3='ENLACES DATOS'!$B$4,'HOJA GENERAL DE DATOS'!E66,'HOJA GENERAL DE DATOS'!E13) ->  | G39: =IF($C$3='ENLACES DATOS'!$B$4,'HOJA GENERAL DE DATOS'!I66,'HOJA GENERAL DE DATOS'!I13) ->  | H39: =IF($C$3='ENLACES DATOS'!$B$4,'HOJA GENERAL DE DATOS'!J66,'HOJA GENERAL DE DATOS'!J13) -> 
B40: =IF($C$3='ENLACES DATOS'!$B$4,'HOJA GENERAL DE DATOS'!B67,'HOJA GENERAL DE DATOS'!B14) ->  | C40: =IF($C$3='ENLACES DATOS'!$B$4,'HOJA GENERAL DE DATOS'!C67,'HOJA GENERAL DE DATOS'!C14) ->  | D40: =IF($C$3='ENLACES DATOS'!$B$4,'HOJA GENERAL DE DATOS'!D67,'HOJA GENERAL DE DATOS'!D14) ->  | E40: =IF($C$3='ENLACES DATOS'!$B$4,'HOJA GENERAL DE DATOS'!E67,'HOJA GENERAL DE DATOS'!E14) ->  | G40: =IF($C$3='ENLACES DATOS'!$B$4,'HOJA GENERAL DE DATOS'!I67,'HOJA GENERAL DE DATOS'!I14) ->  | H40: =IF($C$3='ENLACES DATOS'!$B$4,'HOJA GENERAL DE DATOS'!J67,'HOJA GENERAL DE DATOS'!J14) -> 
B41: =IF($C$3='ENLACES DATOS'!$B$4,'HOJA GENERAL DE DATOS'!B68,'HOJA GENERAL DE DATOS'!B15) ->  | C41: =IF($C$3='ENLACES DATOS'!$B$4,'HOJA GENERAL DE DATOS'!C68,'HOJA GENERAL DE DATOS'!C15) ->  | D41: =IF($C$3='ENLACES DATOS'!$B$4,'HOJA GENERAL DE DATOS'!D68,'HOJA GENERAL DE DATOS'!D15) ->  | E41: =IF($C$3='ENLACES DATOS'!$B$4,'HOJA GENERAL DE DATOS'!E68,'HOJA GENERAL DE DATOS'!E15) ->  | G41: =IF($C$3='ENLACES DATOS'!$B$4,'HOJA GENERAL DE DATOS'!I68,'HOJA GENERAL DE DATOS'!I15) ->  | H41: =IF($C$3='ENLACES DATOS'!$B$4,'HOJA GENERAL DE DATOS'!J68,'HOJA GENERAL DE DATOS'!J15) -> 
B42: =IF($C$3='ENLACES DATOS'!$B$4,'HOJA GENERAL DE DATOS'!B69,'HOJA GENERAL DE DATOS'!B16) ->  | C42: =IF($C$3='ENLACES DATOS'!$B$4,'HOJA GENERAL DE DATOS'!C69,'HOJA GENERAL DE DATOS'!C16) ->  | D42: =IF($C$3='ENLACES DATOS'!$B$4,'HOJA GENERAL DE DATOS'!D69,'HOJA GENERAL DE DATOS'!D16) ->  | E42: =IF($C$3='ENLACES DATOS'!$B$4,'HOJA GENERAL DE DATOS'!E69,'HOJA GENERAL DE DATOS'!E16) ->  | G42: =IF($C$3='ENLACES DATOS'!$B$4,'HOJA GENERAL DE DATOS'!I69,'HOJA GENERAL DE DATOS'!I16) ->  | H42: =IF($C$3='ENLACES DATOS'!$B$4,'HOJA GENERAL DE DATOS'!J69,'HOJA GENERAL DE DATOS'!J16) -> 
B43: =IF($C$3='ENLACES DATOS'!$B$4,'HOJA GENERAL DE DATOS'!B70,'HOJA GENERAL DE DATOS'!B17) ->  | C43: =IF($C$3='ENLACES DATOS'!$B$4,'HOJA GENERAL DE DATOS'!C70,'HOJA GENERAL DE DATOS'!C17) ->  | D43: =IF($C$3='ENLACES DATOS'!$B$4,'HOJA GENERAL DE DATOS'!D70,'HOJA GENERAL DE DATOS'!D17) ->  | E43: =IF($C$3='ENLACES DATOS'!$B$4,'HOJA GENERAL DE DATOS'!E70,'HOJA GENERAL DE DATOS'!E17) ->  | G43: =IF($C$3='ENLACES DATOS'!$B$4,'HOJA GENERAL DE DATOS'!I70,'HOJA GENERAL DE DATOS'!I17) ->  | H43: =IF($C$3='ENLACES DATOS'!$B$4,'HOJA GENERAL DE DATOS'!J70,'HOJA GENERAL DE DATOS'!J17) -> 
B44: =IF($C$3='ENLACES DATOS'!$B$4,'HOJA GENERAL DE DATOS'!B71,'HOJA GENERAL DE DATOS'!B18) ->  | C44: =IF($C$3='ENLACES DATOS'!$B$4,'HOJA GENERAL DE DATOS'!C71,'HOJA GENERAL DE DATOS'!C18) ->  | D44: =IF($C$3='ENLACES DATOS'!$B$4,'HOJA GENERAL DE DATOS'!D71,'HOJA GENERAL DE DATOS'!D18) ->  | E44: =IF($C$3='ENLACES DATOS'!$B$4,'HOJA GENERAL DE DATOS'!E71,'HOJA GENERAL DE DATOS'!E18) ->  | G44: =IF($C$3='ENLACES DATOS'!$B$4,'HOJA GENERAL DE DATOS'!I71,'HOJA GENERAL DE DATOS'!I18) ->  | H44: =IF($C$3='ENLACES DATOS'!$B$4,'HOJA GENERAL DE DATOS'!J71,'HOJA GENERAL DE DATOS'!J18) -> 
B45: =IF($C$3='ENLACES DATOS'!$B$4,'HOJA GENERAL DE DATOS'!B72,'HOJA GENERAL DE DATOS'!B19) ->  | C45: =IF($C$3='ENLACES DATOS'!$B$4,'HOJA GENERAL DE DATOS'!C72,'HOJA GENERAL DE DATOS'!C19) ->  | D45: =IF($C$3='ENLACES DATOS'!$B$4,'HOJA GENERAL DE DATOS'!D72,'HOJA GENERAL DE DATOS'!D19) ->  | E45: =IF($C$3='ENLACES DATOS'!$B$4,'HOJA GENERAL DE DATOS'!E72,'HOJA GENERAL DE DATOS'!E19) ->  | G45: =IF($C$3='ENLACES DATOS'!$B$4,'HOJA GENERAL DE DATOS'!I72,'HOJA GENERAL DE DATOS'!I19) ->  | H45: =IF($C$3='ENLACES DATOS'!$B$4,'HOJA GENERAL DE DATOS'!J72,'HOJA GENERAL DE DATOS'!J19) -> 
B46: =IF($C$3='ENLACES DATOS'!$B$4,'HOJA GENERAL DE DATOS'!B73,'HOJA GENERAL DE DATOS'!B20) ->  | C46: =IF($C$3='ENLACES DATOS'!$B$4,'HOJA GENERAL DE DATOS'!C73,'HOJA GENERAL DE DATOS'!C20) ->  | D46: =IF($C$3='ENLACES DATOS'!$B$4,'HOJA GENERAL DE DATOS'!D73,'HOJA GENERAL DE DATOS'!D20) ->  | E46: =IF($C$3='ENLACES DATOS'!$B$4,'HOJA GENERAL DE DATOS'!E73,'HOJA GENERAL DE DATOS'!E20) ->  | G46: =IF($C$3='ENLACES DATOS'!$B$4,'HOJA GENERAL DE DATOS'!I73,'HOJA GENERAL DE DATOS'!I20) ->  | H46: =IF($C$3='ENLACES DATOS'!$B$4,'HOJA GENERAL DE DATOS'!J73,'HOJA GENERAL DE DATOS'!J20) -> 
B47: =IF($C$3='ENLACES DATOS'!$B$4,'HOJA GENERAL DE DATOS'!B74,'HOJA GENERAL DE DATOS'!B21) ->  | C47: =IF($C$3='ENLACES DATOS'!$B$4,'HOJA GENERAL DE DATOS'!C74,'HOJA GENERAL DE DATOS'!C21) ->  | D47: =IF($C$3='ENLACES DATOS'!$B$4,'HOJA GENERAL DE DATOS'!D74,'HOJA GENERAL DE DATOS'!D21) ->  | E47: =IF($C$3='ENLACES DATOS'!$B$4,'HOJA GENERAL DE DATOS'!E74,'HOJA GENERAL DE DATOS'!E21) ->  | G47: =IF($C$3='ENLACES DATOS'!$B$4,'HOJA GENERAL DE DATOS'!I74,'HOJA GENERAL DE DATOS'!I21) ->  | H47: =IF($C$3='ENLACES DATOS'!$B$4,'HOJA GENERAL DE DATOS'!J74,'HOJA GENERAL DE DATOS'!J21) -> 
B48: =IF($C$3='ENLACES DATOS'!$B$4,'HOJA GENERAL DE DATOS'!B75,'HOJA GENERAL DE DATOS'!B22) ->  | C48: =IF($C$3='ENLACES DATOS'!$B$4,'HOJA GENERAL DE DATOS'!C75,'HOJA GENERAL DE DATOS'!C22) ->  | D48: =IF($C$3='ENLACES DATOS'!$B$4,'HOJA GENERAL DE DATOS'!D75,'HOJA GENERAL DE DATOS'!D22) ->  | E48: =IF($C$3='ENLACES DATOS'!$B$4,'HOJA GENERAL DE DATOS'!E75,'HOJA GENERAL DE DATOS'!E22) ->  | G48: =IF($C$3='ENLACES DATOS'!$B$4,'HOJA GENERAL DE DATOS'!I75,'HOJA GENERAL DE DATOS'!I22) ->  | H48: =IF($C$3='ENLACES DATOS'!$B$4,'HOJA GENERAL DE DATOS'!J75,'HOJA GENERAL DE DATOS'!J22) -> 
B49: =IF($C$3='ENLACES DATOS'!$B$4,'HOJA GENERAL DE DATOS'!B76,'HOJA GENERAL DE DATOS'!B23) ->  | C49: =IF($C$3='ENLACES DATOS'!$B$4,'HOJA GENERAL DE DATOS'!C76,'HOJA GENERAL DE DATOS'!C23) ->  | D49: =IF($C$3='ENLACES DATOS'!$B$4,'HOJA GENERAL DE DATOS'!D76,'HOJA GENERAL DE DATOS'!D23) ->  | E49: =IF($C$3='ENLACES DATOS'!$B$4,'HOJA GENERAL DE DATOS'!E76,'HOJA GENERAL DE DATOS'!E23) ->  | G49: =IF($C$3='ENLACES DATOS'!$B$4,'HOJA GENERAL DE DATOS'!I76,'HOJA GENERAL DE DATOS'!I23) ->  | H49: =IF($C$3='ENLACES DATOS'!$B$4,'HOJA GENERAL DE DATOS'!J76,'HOJA GENERAL DE DATOS'!J23) -> 
B50: =IF($C$3='ENLACES DATOS'!$B$4,'HOJA GENERAL DE DATOS'!B77,'HOJA GENERAL DE DATOS'!B24) ->  | C50: =IF($C$3='ENLACES DATOS'!$B$4,'HOJA GENERAL DE DATOS'!C77,'HOJA GENERAL DE DATOS'!C24) ->  | D50: =IF($C$3='ENLACES DATOS'!$B$4,'HOJA GENERAL DE DATOS'!D77,'HOJA GENERAL DE DATOS'!D24) ->  | E50: =IF($C$3='ENLACES DATOS'!$B$4,'HOJA GENERAL DE DATOS'!E77,'HOJA GENERAL DE DATOS'!E24) ->  | G50: =IF($C$3='ENLACES DATOS'!$B$4,'HOJA GENERAL DE DATOS'!I77,'HOJA GENERAL DE DATOS'!I24) ->  | H50: =IF($C$3='ENLACES DATOS'!$B$4,'HOJA GENERAL DE DATOS'!J77,'HOJA GENERAL DE DATOS'!J24) -> 
B51: =IF($C$3='ENLACES DATOS'!$B$4,'HOJA GENERAL DE DATOS'!B78,'HOJA GENERAL DE DATOS'!B25) ->  | C51: =IF($C$3='ENLACES DATOS'!$B$4,'HOJA GENERAL DE DATOS'!C78,'HOJA GENERAL DE DATOS'!C25) ->  | D51: =IF($C$3='ENLACES DATOS'!$B$4,'HOJA GENERAL DE DATOS'!D78,'HOJA GENERAL DE DATOS'!D25) ->  | E51: =IF($C$3='ENLACES DATOS'!$B$4,'HOJA GENERAL DE DATOS'!E78,'HOJA GENERAL DE DATOS'!E25) ->  | G51: =IF($C$3='ENLACES DATOS'!$B$4,'HOJA GENERAL DE DATOS'!I78,'HOJA GENERAL DE DATOS'!I25) ->  | H51: =IF($C$3='ENLACES DATOS'!$B$4,'HOJA GENERAL DE DATOS'!J78,'HOJA GENERAL DE DATOS'!J25) -> 
B52: =IF($C$3='ENLACES DATOS'!$B$4,'HOJA GENERAL DE DATOS'!B79,'HOJA GENERAL DE DATOS'!B26) ->  | C52: =IF($C$3='ENLACES DATOS'!$B$4,'HOJA GENERAL DE DATOS'!C79,'HOJA GENERAL DE DATOS'!C26) ->  | D52: =IF($C$3='ENLACES DATOS'!$B$4,'HOJA GENERAL DE DATOS'!D79,'HOJA GENERAL DE DATOS'!D26) ->  | E52: =IF($C$3='ENLACES DATOS'!$B$4,'HOJA GENERAL DE DATOS'!E79,'HOJA GENERAL DE DATOS'!E26) ->  | G52: =IF($C$3='ENLACES DATOS'!$B$4,'HOJA GENERAL DE DATOS'!I79,'HOJA GENERAL DE DATOS'!I26) ->  | H52: =IF($C$3='ENLACES DATOS'!$B$4,'HOJA GENERAL DE DATOS'!J79,'HOJA GENERAL DE DATOS'!J26) -> 
B53: =IF($C$3='ENLACES DATOS'!$B$4,'HOJA GENERAL DE DATOS'!B80,'HOJA GENERAL DE DATOS'!B27) ->  | C53: =IF($C$3='ENLACES DATOS'!$B$4,'HOJA GENERAL DE DATOS'!C80,'HOJA GENERAL DE DATOS'!C27) ->  | D53: =IF($C$3='ENLACES DATOS'!$B$4,'HOJA GENERAL DE DATOS'!D80,'HOJA GENERAL DE DATOS'!D27) ->  | E53: =IF($C$3='ENLACES DATOS'!$B$4,'HOJA GENERAL DE DATOS'!E80,'HOJA GENERAL DE DATOS'!E27) ->  | G53: =IF($C$3='ENLACES DATOS'!$B$4,'HOJA GENERAL DE DATOS'!I80,'HOJA GENERAL DE DATOS'!I27) ->  | H53: =IF($C$3='ENLACES DATOS'!$B$4,'HOJA GENERAL DE DATOS'!J80,'HOJA GENERAL DE DATOS'!J27) -> 
B54: =IF($C$3='ENLACES DATOS'!$B$4,'HOJA GENERAL DE DATOS'!B81,'HOJA GENERAL DE DATOS'!B28) ->  | C54: =IF($C$3='ENLACES DATOS'!$B$4,'HOJA GENERAL DE DATOS'!C81,'HOJA GENERAL DE DATOS'!C28) ->  | D54: =IF($C$3='ENLACES DATOS'!$B$4,'HOJA GENERAL DE DATOS'!D81,'HOJA GENERAL DE DATOS'!D28) ->  | E54: =IF($C$3='ENLACES DATOS'!$B$4,'HOJA GENERAL DE DATOS'!E81,'HOJA GENERAL DE DATOS'!E28) ->  | G54: =IF($C$3='ENLACES DATOS'!$B$4,'HOJA GENERAL DE DATOS'!I81,'HOJA GENERAL DE DATOS'!I28) ->  | H54: =IF($C$3='ENLACES DATOS'!$B$4,'HOJA GENERAL DE DATOS'!J81,'HOJA GENERAL DE DATOS'!J28) -> 
B55: =IF($C$3='ENLACES DATOS'!$B$4,'HOJA GENERAL DE DATOS'!B82,'HOJA GENERAL DE DATOS'!B29) ->  | C55: =IF($C$3='ENLACES DATOS'!$B$4,'HOJA GENERAL DE DATOS'!C82,'HOJA GENERAL DE DATOS'!C29) ->  | D55: =IF($C$3='ENLACES DATOS'!$B$4,'HOJA GENERAL DE DATOS'!D82,'HOJA GENERAL DE DATOS'!D29) ->  | E55: =IF($C$3='ENLACES DATOS'!$B$4,'HOJA GENERAL DE DATOS'!E82,'HOJA GENERAL DE DATOS'!E29) ->  | G55: =IF($C$3='ENLACES DATOS'!$B$4,'HOJA GENERAL DE DATOS'!I82,'HOJA GENERAL DE DATOS'!I29) ->  | H55: =IF($C$3='ENLACES DATOS'!$B$4,'HOJA GENERAL DE DATOS'!J82,'HOJA GENERAL DE DATOS'!J29) -> 
B56: =IF($C$3='ENLACES DATOS'!$B$4,'HOJA GENERAL DE DATOS'!B83,'HOJA GENERAL DE DATOS'!B30) ->  | C56: =IF($C$3='ENLACES DATOS'!$B$4,'HOJA GENERAL DE DATOS'!C83,'HOJA GENERAL DE DATOS'!C30) ->  | D56: =IF($C$3='ENLACES DATOS'!$B$4,'HOJA GENERAL DE DATOS'!D83,'HOJA GENERAL DE DATOS'!D30) ->  | E56: =IF($C$3='ENLACES DATOS'!$B$4,'HOJA GENERAL DE DATOS'!E83,'HOJA GENERAL DE DATOS'!E30) ->  | G56: =IF($C$3='ENLACES DATOS'!$B$4,'HOJA GENERAL DE DATOS'!I83,'HOJA GENERAL DE DATOS'!I30) ->  | H56: =IF($C$3='ENLACES DATOS'!$B$4,'HOJA GENERAL DE DATOS'!J83,'HOJA GENERAL DE DATOS'!J30) -> 
B57: =IF($C$3='ENLACES DATOS'!$B$4,'HOJA GENERAL DE DATOS'!B84,'HOJA GENERAL DE DATOS'!B31) ->  | C57: =IF($C$3='ENLACES DATOS'!$B$4,'HOJA GENERAL DE DATOS'!C84,'HOJA GENERAL DE DATOS'!C31) ->  | D57: =IF($C$3='ENLACES DATOS'!$B$4,'HOJA GENERAL DE DATOS'!D84,'HOJA GENERAL DE DATOS'!D31) ->  | E57: =IF($C$3='ENLACES DATOS'!$B$4,'HOJA GENERAL DE DATOS'!E84,'HOJA GENERAL DE DATOS'!E31) ->  | G57: =IF($C$3='ENLACES DATOS'!$B$4,'HOJA GENERAL DE DATOS'!I84,'HOJA GENERAL DE DATOS'!I31) ->  | H57: =IF($C$3='ENLACES DATOS'!$B$4,'HOJA GENERAL DE DATOS'!J84,'HOJA GENERAL DE DATOS'!J31) -> 
B58: =IF($C$3='ENLACES DATOS'!$B$4,'HOJA GENERAL DE DATOS'!B85,'HOJA GENERAL DE DATOS'!B32) ->  | C58: =IF($C$3='ENLACES DATOS'!$B$4,'HOJA GENERAL DE DATOS'!C85,'HOJA GENERAL DE DATOS'!C32) ->  | D58: =IF($C$3='ENLACES DATOS'!$B$4,'HOJA GENERAL DE DATOS'!D85,'HOJA GENERAL DE DATOS'!D32) ->  | E58: =IF($C$3='ENLACES DATOS'!$B$4,'HOJA GENERAL DE DATOS'!E85,'HOJA GENERAL DE DATOS'!E32) ->  | G58: =IF($C$3='ENLACES DATOS'!$B$4,'HOJA GENERAL DE DATOS'!I85,'HOJA GENERAL DE DATOS'!I32) ->  | H58: =IF($C$3='ENLACES DATOS'!$B$4,'HOJA GENERAL DE DATOS'!J85,'HOJA GENERAL DE DATOS'!J32) -> 
B59: =IF($C$3='ENLACES DATOS'!$B$4,'HOJA GENERAL DE DATOS'!B86,'HOJA GENERAL DE DATOS'!B33) ->  | C59: =IF($C$3='ENLACES DATOS'!$B$4,'HOJA GENERAL DE DATOS'!C86,'HOJA GENERAL DE DATOS'!C33) ->  | D59: =IF($C$3='ENLACES DATOS'!$B$4,'HOJA GENERAL DE DATOS'!D86,'HOJA GENERAL DE DATOS'!D33) ->  | E59: =IF($C$3='ENLACES DATOS'!$B$4,'HOJA GENERAL DE DATOS'!E86,'HOJA GENERAL DE DATOS'!E33) ->  | G59: =IF($C$3='ENLACES DATOS'!$B$4,'HOJA GENERAL DE DATOS'!I86,'HOJA GENERAL DE DATOS'!I33) ->  | H59: =IF($C$3='ENLACES DATOS'!$B$4,'HOJA GENERAL DE DATOS'!J86,'HOJA GENERAL DE DATOS'!J33) -> 
B60: =IF($C$3='ENLACES DATOS'!$B$4,'HOJA GENERAL DE DATOS'!B87,'HOJA GENERAL DE DATOS'!B34) ->  | C60: =IF($C$3='ENLACES DATOS'!$B$4,'HOJA GENERAL DE DATOS'!C87,'HOJA GENERAL DE DATOS'!C34) ->  | D60: =IF($C$3='ENLACES DATOS'!$B$4,'HOJA GENERAL DE DATOS'!D87,'HOJA GENERAL DE DATOS'!D34) ->  | E60: =IF($C$3='ENLACES DATOS'!$B$4,'HOJA GENERAL DE DATOS'!E87,'HOJA GENERAL DE DATOS'!E34) ->  | G60: =IF($C$3='ENLACES DATOS'!$B$4,'HOJA GENERAL DE DATOS'!I87,'HOJA GENERAL DE DATOS'!I34) ->  | H60: =IF($C$3='ENLACES DATOS'!$B$4,'HOJA GENERAL DE DATOS'!J87,'HOJA GENERAL DE DATOS'!J34) -> 
B61: =IF($C$3='ENLACES DATOS'!$B$4,'HOJA GENERAL DE DATOS'!B88,'HOJA GENERAL DE DATOS'!B35) ->  | C61: =IF($C$3='ENLACES DATOS'!$B$4,'HOJA GENERAL DE DATOS'!C88,'HOJA GENERAL DE DATOS'!C35) ->  | D61: =IF($C$3='ENLACES DATOS'!$B$4,'HOJA GENERAL DE DATOS'!D88,'HOJA GENERAL DE DATOS'!D35) ->  | E61: =IF($C$3='ENLACES DATOS'!$B$4,'HOJA GENERAL DE DATOS'!E88,'HOJA GENERAL DE DATOS'!E35) ->  | G61: =IF($C$3='ENLACES DATOS'!$B$4,'HOJA GENERAL DE DATOS'!I88,'HOJA GENERAL DE DATOS'!I35) ->  | H61: =IF($C$3='ENLACES DATOS'!$B$4,'HOJA GENERAL DE DATOS'!J88,'HOJA GENERAL DE DATOS'!J35) -> 
B62: =IF($C$3='ENLACES DATOS'!$B$4,'HOJA GENERAL DE DATOS'!B89,'HOJA GENERAL DE DATOS'!B36) ->  | C62: =IF($C$3='ENLACES DATOS'!$B$4,'HOJA GENERAL DE DATOS'!C89,'HOJA GENERAL DE DATOS'!C36) ->  | D62: =IF($C$3='ENLACES DATOS'!$B$4,'HOJA GENERAL DE DATOS'!D89,'HOJA GENERAL DE DATOS'!D36) ->  | E62: =IF($C$3='ENLACES DATOS'!$B$4,'HOJA GENERAL DE DATOS'!E89,'HOJA GENERAL DE DATOS'!E36) ->  | G62: =IF($C$3='ENLACES DATOS'!$B$4,'HOJA GENERAL DE DATOS'!I89,'HOJA GENERAL DE DATOS'!I36) ->  | H62: =IF($C$3='ENLACES DATOS'!$B$4,'HOJA GENERAL DE DATOS'!J89,'HOJA GENERAL DE DATOS'!J36) -> 
B63: =IF($C$3='ENLACES DATOS'!$B$4,'HOJA GENERAL DE DATOS'!B90,'HOJA GENERAL DE DATOS'!B37) ->  | C63: =IF($C$3='ENLACES DATOS'!$B$4,'HOJA GENERAL DE DATOS'!C90,'HOJA GENERAL DE DATOS'!C37) ->  | D63: =IF($C$3='ENLACES DATOS'!$B$4,'HOJA GENERAL DE DATOS'!D90,'HOJA GENERAL DE DATOS'!D37) ->  | E63: =IF($C$3='ENLACES DATOS'!$B$4,'HOJA GENERAL DE DATOS'!E90,'HOJA GENERAL DE DATOS'!E37) ->  | G63: =IF($C$3='ENLACES DATOS'!$B$4,'HOJA GENERAL DE DATOS'!I90,'HOJA GENERAL DE DATOS'!I37) ->  | H63: =IF($C$3='ENLACES DATOS'!$B$4,'HOJA GENERAL DE DATOS'!J90,'HOJA GENERAL DE DATOS'!J37) -> 
B64: =IF($C$3='ENLACES DATOS'!$B$4,'HOJA GENERAL DE DATOS'!B91,'HOJA GENERAL DE DATOS'!B38) ->  | C64: =IF($C$3='ENLACES DATOS'!$B$4,'HOJA GENERAL DE DATOS'!C91,'HOJA GENERAL DE DATOS'!C38) ->  | D64: =IF($C$3='ENLACES DATOS'!$B$4,'HOJA GENERAL DE DATOS'!D91,'HOJA GENERAL DE DATOS'!D38) ->  | E64: =IF($C$3='ENLACES DATOS'!$B$4,'HOJA GENERAL DE DATOS'!E91,'HOJA GENERAL DE DATOS'!E38) ->  | G64: =IF($C$3='ENLACES DATOS'!$B$4,'HOJA GENERAL DE DATOS'!I91,'HOJA GENERAL DE DATOS'!I38) ->  | H64: =IF($C$3='ENLACES DATOS'!$B$4,'HOJA GENERAL DE DATOS'!J91,'HOJA GENERAL DE DATOS'!J38) -> 
B65: =IF($C$3='ENLACES DATOS'!$B$4,'HOJA GENERAL DE DATOS'!B92,'HOJA GENERAL DE DATOS'!B39) ->  | C65: =IF($C$3='ENLACES DATOS'!$B$4,'HOJA GENERAL DE DATOS'!C92,'HOJA GENERAL DE DATOS'!C39) ->  | D65: =IF($C$3='ENLACES DATOS'!$B$4,'HOJA GENERAL DE DATOS'!D92,'HOJA GENERAL DE DATOS'!D39) ->  | E65: =IF($C$3='ENLACES DATOS'!$B$4,'HOJA GENERAL DE DATOS'!E92,'HOJA GENERAL DE DATOS'!E39) ->  | G65: =IF($C$3='ENLACES DATOS'!$B$4,'HOJA GENERAL DE DATOS'!I92,'HOJA GENERAL DE DATOS'!I39) ->  | H65: =IF($C$3='ENLACES DATOS'!$B$4,'HOJA GENERAL DE DATOS'!J92,'HOJA GENERAL DE DATOS'!J39) -> 
B66: =IF($C$3='ENLACES DATOS'!$B$4,'HOJA GENERAL DE DATOS'!B93,'HOJA GENERAL DE DATOS'!B40) ->  | C66: =IF($C$3='ENLACES DATOS'!$B$4,'HOJA GENERAL DE DATOS'!C93,'HOJA GENERAL DE DATOS'!C40) ->  | D66: =IF($C$3='ENLACES DATOS'!$B$4,'HOJA GENERAL DE DATOS'!D93,'HOJA GENERAL DE DATOS'!D40) ->  | E66: =IF($C$3='ENLACES DATOS'!$B$4,'HOJA GENERAL DE DATOS'!E93,'HOJA GENERAL DE DATOS'!E40) ->  | G66: =IF($C$3='ENLACES DATOS'!$B$4,'HOJA GENERAL DE DATOS'!I93,'HOJA GENERAL DE DATOS'!I40) ->  | H66: =IF($C$3='ENLACES DATOS'!$B$4,'HOJA GENERAL DE DATOS'!J93,'HOJA GENERAL DE DATOS'!J40) -> 
B67: =IF($C$3='ENLACES DATOS'!$B$4,'HOJA GENERAL DE DATOS'!B94,'HOJA GENERAL DE DATOS'!B41) ->  | C67: =IF($C$3='ENLACES DATOS'!$B$4,'HOJA GENERAL DE DATOS'!C94,'HOJA GENERAL DE DATOS'!C41) ->  | D67: =IF($C$3='ENLACES DATOS'!$B$4,'HOJA GENERAL DE DATOS'!D94,'HOJA GENERAL DE DATOS'!D41) ->  | E67: =IF($C$3='ENLACES DATOS'!$B$4,'HOJA GENERAL DE DATOS'!E94,'HOJA GENERAL DE DATOS'!E41) ->  | G67: =IF($C$3='ENLACES DATOS'!$B$4,'HOJA GENERAL DE DATOS'!I94,'HOJA GENERAL DE DATOS'!I41) ->  | H67: =IF($C$3='ENLACES DATOS'!$B$4,'HOJA GENERAL DE DATOS'!J94,'HOJA GENERAL DE DATOS'!J41) -> 
B68: =IF($C$3='ENLACES DATOS'!$B$4,'HOJA GENERAL DE DATOS'!B95,'HOJA GENERAL DE DATOS'!B42) ->  | C68: =IF($C$3='ENLACES DATOS'!$B$4,'HOJA GENERAL DE DATOS'!C95,'HOJA GENERAL DE DATOS'!C42) ->  | D68: =IF($C$3='ENLACES DATOS'!$B$4,'HOJA GENERAL DE DATOS'!D95,'HOJA GENERAL DE DATOS'!D42) ->  | E68: =IF($C$3='ENLACES DATOS'!$B$4,'HOJA GENERAL DE DATOS'!E95,'HOJA GENERAL DE DATOS'!E42) ->  | G68: =IF($C$3='ENLACES DATOS'!$B$4,'HOJA GENERAL DE DATOS'!I95,'HOJA GENERAL DE DATOS'!I42) ->  | H68: =IF($C$3='ENLACES DATOS'!$B$4,'HOJA GENERAL DE DATOS'!J95,'HOJA GENERAL DE DATOS'!J42) -> 
B69: =IF($C$3='ENLACES DATOS'!$B$4,'HOJA GENERAL DE DATOS'!B96,'HOJA GENERAL DE DATOS'!B43) ->  | C69: =IF($C$3='ENLACES DATOS'!$B$4,'HOJA GENERAL DE DATOS'!C96,'HOJA GENERAL DE DATOS'!C43) ->  | D69: =IF($C$3='ENLACES DATOS'!$B$4,'HOJA GENERAL DE DATOS'!D96,'HOJA GENERAL DE DATOS'!D43) ->  | E69: =IF($C$3='ENLACES DATOS'!$B$4,'HOJA GENERAL DE DATOS'!E96,'HOJA GENERAL DE DATOS'!E43) ->  | G69: =IF($C$3='ENLACES DATOS'!$B$4,'HOJA GENERAL DE DATOS'!I96,'HOJA GENERAL DE DATOS'!I43) ->  | H69: =IF($C$3='ENLACES DATOS'!$B$4,'HOJA GENERAL DE DATOS'!J96,'HOJA GENERAL DE DATOS'!J43) -> 
B70: =IF($C$3='ENLACES DATOS'!$B$4,'HOJA GENERAL DE DATOS'!B97,'HOJA GENERAL DE DATOS'!B44) ->  | C70: =IF($C$3='ENLACES DATOS'!$B$4,'HOJA GENERAL DE DATOS'!C97,'HOJA GENERAL DE DATOS'!C44) ->  | D70: =IF($C$3='ENLACES DATOS'!$B$4,'HOJA GENERAL DE DATOS'!D97,'HOJA GENERAL DE DATOS'!D44) ->  | E70: =IF($C$3='ENLACES DATOS'!$B$4,'HOJA GENERAL DE DATOS'!E97,'HOJA GENERAL DE DATOS'!E44) ->  | G70: =IF($C$3='ENLACES DATOS'!$B$4,'HOJA GENERAL DE DATOS'!I97,'HOJA GENERAL DE DATOS'!I44) ->  | H70: =IF($C$3='ENLACES DATOS'!$B$4,'HOJA GENERAL DE DATOS'!J97,'HOJA GENERAL DE DATOS'!J44) -> 
B71: =IF($C$3='ENLACES DATOS'!$B$4,'HOJA GENERAL DE DATOS'!B98,'HOJA GENERAL DE DATOS'!B45) ->  | C71: =IF($C$3='ENLACES DATOS'!$B$4,'HOJA GENERAL DE DATOS'!C98,'HOJA GENERAL DE DATOS'!C45) ->  | D71: =IF($C$3='ENLACES DATOS'!$B$4,'HOJA GENERAL DE DATOS'!D98,'HOJA GENERAL DE DATOS'!D45) ->  | E71: =IF($C$3='ENLACES DATOS'!$B$4,'HOJA GENERAL DE DATOS'!E98,'HOJA GENERAL DE DATOS'!E45) ->  | G71: =IF($C$3='ENLACES DATOS'!$B$4,'HOJA GENERAL DE DATOS'!I98,'HOJA GENERAL DE DATOS'!I45) ->  | H71: =IF($C$3='ENLACES DATOS'!$B$4,'HOJA GENERAL DE DATOS'!J98,'HOJA GENERAL DE DATOS'!J45) -> 
B72: =IF($C$3='ENLACES DATOS'!$B$4,'HOJA GENERAL DE DATOS'!B99,'HOJA GENERAL DE DATOS'!B46) ->  | C72: =IF($C$3='ENLACES DATOS'!$B$4,'HOJA GENERAL DE DATOS'!C99,'HOJA GENERAL DE DATOS'!C46) ->  | D72: =IF($C$3='ENLACES DATOS'!$B$4,'HOJA GENERAL DE DATOS'!D99,'HOJA GENERAL DE DATOS'!D46) ->  | E72: =IF($C$3='ENLACES DATOS'!$B$4,'HOJA GENERAL DE DATOS'!E99,'HOJA GENERAL DE DATOS'!E46) ->  | G72: =IF($C$3='ENLACES DATOS'!$B$4,'HOJA GENERAL DE DATOS'!I99,'HOJA GENERAL DE DATOS'!I46) ->  | H72: =IF($C$3='ENLACES DATOS'!$B$4,'HOJA GENERAL DE DATOS'!J99,'HOJA GENERAL DE DATOS'!J46) -> 
B73: =IF($C$3='ENLACES DATOS'!$B$4,'HOJA GENERAL DE DATOS'!B100,'HOJA GENERAL DE DATOS'!B47) ->  | C73: =IF($C$3='ENLACES DATOS'!$B$4,'HOJA GENERAL DE DATOS'!C100,'HOJA GENERAL DE DATOS'!C47) ->  | D73: =IF($C$3='ENLACES DATOS'!$B$4,'HOJA GENERAL DE DATOS'!D100,'HOJA GENERAL DE DATOS'!D47) ->  | E73: =IF($C$3='ENLACES DATOS'!$B$4,'HOJA GENERAL DE DATOS'!E100,'HOJA GENERAL DE DATOS'!E47) ->  | G73: =IF($C$3='ENLACES DATOS'!$B$4,'HOJA GENERAL DE DATOS'!I100,'HOJA GENERAL DE DATOS'!I47) ->  | H73: =IF($C$3='ENLACES DATOS'!$B$4,'HOJA GENERAL DE DATOS'!J100,'HOJA GENERAL DE DATOS'!J47) -> 
B74: =IF($C$3='ENLACES DATOS'!$B$4,'HOJA GENERAL DE DATOS'!B101,'HOJA GENERAL DE DATOS'!B48) ->  | C74: =IF($C$3='ENLACES DATOS'!$B$4,'HOJA GENERAL DE DATOS'!C101,'HOJA GENERAL DE DATOS'!C48) ->  | D74: =IF($C$3='ENLACES DATOS'!$B$4,'HOJA GENERAL DE DATOS'!D101,'HOJA GENERAL DE DATOS'!D48) ->  | E74: =IF($C$3='ENLACES DATOS'!$B$4,'HOJA GENERAL DE DATOS'!E101,'HOJA GENERAL DE DATOS'!E48) ->  | G74: =IF($C$3='ENLACES DATOS'!$B$4,'HOJA GENERAL DE DATOS'!I101,'HOJA GENERAL DE DATOS'!I48) ->  | H74: =IF($C$3='ENLACES DATOS'!$B$4,'HOJA GENERAL DE DATOS'!J101,'HOJA GENERAL DE DATOS'!J48) -> 
B75: =IF($C$3='ENLACES DATOS'!$B$4,'HOJA GENERAL DE DATOS'!B102,'HOJA GENERAL DE DATOS'!B49) ->  | C75: =IF($C$3='ENLACES DATOS'!$B$4,'HOJA GENERAL DE DATOS'!C102,'HOJA GENERAL DE DATOS'!C49) ->  | D75: =IF($C$3='ENLACES DATOS'!$B$4,'HOJA GENERAL DE DATOS'!D102,'HOJA GENERAL DE DATOS'!D49) ->  | E75: =IF($C$3='ENLACES DATOS'!$B$4,'HOJA GENERAL DE DATOS'!E102,'HOJA GENERAL DE DATOS'!E49) ->  | G75: =IF($C$3='ENLACES DATOS'!$B$4,'HOJA GENERAL DE DATOS'!I102,'HOJA GENERAL DE DATOS'!I49) ->  | H75: =IF($C$3='ENLACES DATOS'!$B$4,'HOJA GENERAL DE DATOS'!J102,'HOJA GENERAL DE DATOS'!J49) -> 
B76: =IF($C$3='ENLACES DATOS'!$B$4,'HOJA GENERAL DE DATOS'!B103,'HOJA GENERAL DE DATOS'!B50) ->  | C76: =IF($C$3='ENLACES DATOS'!$B$4,'HOJA GENERAL DE DATOS'!C103,'HOJA GENERAL DE DATOS'!C50) ->  | D76: =IF($C$3='ENLACES DATOS'!$B$4,'HOJA GENERAL DE DATOS'!D103,'HOJA GENERAL DE DATOS'!D50) ->  | E76: =IF($C$3='ENLACES DATOS'!$B$4,'HOJA GENERAL DE DATOS'!E103,'HOJA GENERAL DE DATOS'!E50) ->  | G76: =IF($C$3='ENLACES DATOS'!$B$4,'HOJA GENERAL DE DATOS'!I103,'HOJA GENERAL DE DATOS'!I50) ->  | H76: =IF($C$3='ENLACES DATOS'!$B$4,'HOJA GENERAL DE DATOS'!J103,'HOJA GENERAL DE DATOS'!J50) -> 
B77: =IF($C$3='ENLACES DATOS'!$B$4,'HOJA GENERAL DE DATOS'!B104,'HOJA GENERAL DE DATOS'!B51) ->  | C77: =IF($C$3='ENLACES DATOS'!$B$4,'HOJA GENERAL DE DATOS'!C104,'HOJA GENERAL DE DATOS'!C51) ->  | D77: =IF($C$3='ENLACES DATOS'!$B$4,'HOJA GENERAL DE DATOS'!D104,'HOJA GENERAL DE DATOS'!D51) ->  | E77: =IF($C$3='ENLACES DATOS'!$B$4,'HOJA GENERAL DE DATOS'!E104,'HOJA GENERAL DE DATOS'!E51) ->  | G77: =IF($C$3='ENLACES DATOS'!$B$4,'HOJA GENERAL DE DATOS'!I104,'HOJA GENERAL DE DATOS'!I51) ->  | H77: =IF($C$3='ENLACES DATOS'!$B$4,'HOJA GENERAL DE DATOS'!J104,'HOJA GENERAL DE DATOS'!J51) -> 
B78: =IF($C$3='ENLACES DATOS'!$B$4,'HOJA GENERAL DE DATOS'!B105,'HOJA GENERAL DE DATOS'!B52) ->  | C78: =IF($C$3='ENLACES DATOS'!$B$4,'HOJA GENERAL DE DATOS'!C105,'HOJA GENERAL DE DATOS'!C52) ->  | D78: =IF($C$3='ENLACES DATOS'!$B$4,'HOJA GENERAL DE DATOS'!D105,'HOJA GENERAL DE DATOS'!D52) ->  | E78: =IF($C$3='ENLACES DATOS'!$B$4,'HOJA GENERAL DE DATOS'!E105,'HOJA GENERAL DE DATOS'!E52) ->  | G78: =IF($C$3='ENLACES DATOS'!$B$4,'HOJA GENERAL DE DATOS'!I105,'HOJA GENERAL DE DATOS'!I52) ->  | H78: =IF($C$3='ENLACES DATOS'!$B$4,'HOJA GENERAL DE DATOS'!J105,'HOJA GENERAL DE DATOS'!J52) -> 
B79: =IF($C$3='ENLACES DATOS'!$B$4,'HOJA GENERAL DE DATOS'!B106,'HOJA GENERAL DE DATOS'!B53) ->  | C79: =IF($C$3='ENLACES DATOS'!$B$4,'HOJA GENERAL DE DATOS'!C106,'HOJA GENERAL DE DATOS'!C53) ->  | D79: =IF($C$3='ENLACES DATOS'!$B$4,'HOJA GENERAL DE DATOS'!D106,'HOJA GENERAL DE DATOS'!D53) ->  | E79: =IF($C$3='ENLACES DATOS'!$B$4,'HOJA GENERAL DE DATOS'!E106,'HOJA GENERAL DE DATOS'!E53) ->  | G79: =IF($C$3='ENLACES DATOS'!$B$4,'HOJA GENERAL DE DATOS'!I106,'HOJA GENERAL DE DATOS'!I53) ->  | H79: =IF($C$3='ENLACES DATOS'!$B$4,'HOJA GENERAL DE DATOS'!J106,'HOJA GENERAL DE DATOS'!J53) -> 
B80: =IF($C$3='ENLACES DATOS'!$B$4,'HOJA GENERAL DE DATOS'!B107,'HOJA GENERAL DE DATOS'!B54) ->  | C80: =IF($C$3='ENLACES DATOS'!$B$4,'HOJA GENERAL DE DATOS'!C107,'HOJA GENERAL DE DATOS'!C54) ->  | D80: =IF($C$3='ENLACES DATOS'!$B$4,'HOJA GENERAL DE DATOS'!D107,'HOJA GENERAL DE DATOS'!D54) ->  | E80: =IF($C$3='ENLACES DATOS'!$B$4,'HOJA GENERAL DE DATOS'!E107,'HOJA GENERAL DE DATOS'!E54) ->  | G80: =IF($C$3='ENLACES DATOS'!$B$4,'HOJA GENERAL DE DATOS'!I107,'HOJA GENERAL DE DATOS'!I54) ->  | H80: =IF($C$3='ENLACES DATOS'!$B$4,'HOJA GENERAL DE DATOS'!J107,'HOJA GENERAL DE DATOS'!J54) -> 
B81: =IF($C$3='ENLACES DATOS'!$B$4,'HOJA GENERAL DE DATOS'!B108,'HOJA GENERAL DE DATOS'!B55) ->  | C81: =IF($C$3='ENLACES DATOS'!$B$4,'HOJA GENERAL DE DATOS'!C108,'HOJA GENERAL DE DATOS'!C55) ->  | D81: =IF($C$3='ENLACES DATOS'!$B$4,'HOJA GENERAL DE DATOS'!D108,'HOJA GENERAL DE DATOS'!D55) ->  | E81: =IF($C$3='ENLACES DATOS'!$B$4,'HOJA GENERAL DE DATOS'!E108,'HOJA GENERAL DE DATOS'!E55) ->  | G81: =IF($C$3='ENLACES DATOS'!$B$4,'HOJA GENERAL DE DATOS'!I108,'HOJA GENERAL DE DATOS'!I55) ->  | H81: =IF($C$3='ENLACES DATOS'!$B$4,'HOJA GENERAL DE DATOS'!J108,'HOJA GENERAL DE DATOS'!J55) -> 
B82: =IF($C$3='ENLACES DATOS'!$B$4,'HOJA GENERAL DE DATOS'!B109,'HOJA GENERAL DE DATOS'!B56) ->  | C82: =IF($C$3='ENLACES DATOS'!$B$4,'HOJA GENERAL DE DATOS'!C109,'HOJA GENERAL DE DATOS'!C56) ->  | D82: =IF($C$3='ENLACES DATOS'!$B$4,'HOJA GENERAL DE DATOS'!D109,'HOJA GENERAL DE DATOS'!D56) ->  | E82: =IF($C$3='ENLACES DATOS'!$B$4,'HOJA GENERAL DE DATOS'!E109,'HOJA GENERAL DE DATOS'!E56) ->  | G82: =IF($C$3='ENLACES DATOS'!$B$4,'HOJA GENERAL DE DATOS'!I109,'HOJA GENERAL DE DATOS'!I56) ->  | H82: =IF($C$3='ENLACES DATOS'!$B$4,'HOJA GENERAL DE DATOS'!J109,'HOJA GENERAL DE DATOS'!J56) -> 
A85: GRAFICO SEMANAS ANTERIOR Y POSTERIOR
B87: SEMANAS | C87: =D3-1 ->  | D87: =VLOOKUP($C87,'HOJA GENERAL DE DATOS'!$A$4:$D$56,2,FALSE) ->  | E87: =VLOOKUP($C87,'HOJA GENERAL DE DATOS'!$A$4:$D$56,4,FALSE) ->  | G87: SOLUCION | H87: SEM.ANT | I87: =VLOOKUP(C3,D87:E88,2,FALSE) -> 
C88: =D3-1 ->  | D88: =VLOOKUP($C88,'HOJA GENERAL DE DATOS'!$A$57:$D$109,2,FALSE) ->  | E88: =VLOOKUP($C88,'HOJA GENERAL DE DATOS'!$A$57:$D$109,4,FALSE) ->  | H88: SEM | I88: =VLOOKUP(C3,D89:E90,2,FALSE) -> 
C89: =D3 ->  | D89: =VLOOKUP($C89,'HOJA GENERAL DE DATOS'!$A$4:$D$56,2,FALSE) ->  | E89: =VLOOKUP($C89,'HOJA GENERAL DE DATOS'!$A$4:$D$56,4,FALSE) ->  | H89: SEM POST | I89: =VLOOKUP(C3,D91:E92,2,FALSE) -> 
C90: =D3 ->  | D90: =VLOOKUP($C90,'HOJA GENERAL DE DATOS'!$A$57:$D$109,2,FALSE) ->  | E90: =VLOOKUP($C90,'HOJA GENERAL DE DATOS'!$A$57:$D$109,4,FALSE) -> 
C91: =D3+1 ->  | D91: =VLOOKUP($C91,'HOJA GENERAL DE DATOS'!$A$4:$D$56,2,FALSE) ->  | E91: =VLOOKUP($C91,'HOJA GENERAL DE DATOS'!$A$4:$D$56,4,FALSE) -> 
C92: =D3+1 ->  | D92: =VLOOKUP($C92,'HOJA GENERAL DE DATOS'!$A$57:$D$109,2,FALSE) ->  | E92: =VLOOKUP($C92,'HOJA GENERAL DE DATOS'!$A$57:$D$109,4,FALSE) -> 
A95: ESTIMACION MENSUAL
C96: cebadero | D96: semana | E96: mes | F96: COEF,BAJAS
A97: CEBO LARGO | B97: CEBO LARGO | C97: =VLOOKUP('GEST CHEQ MES'!C11,'ENLACES DATOS'!A3:B4,2,FALSE) ->  | D97: ='BUSCAR FECHA'!G3 ->  | E97: ='BUSCAR FECHA'!H3 ->  | F97: ='GEST CHEQ MES'!$C$18/'GEST CHEQ MES'!$C$19 -> 
A98: CEBADERO REGULADOR | B98: CEBO CORTO
B100: 1 | C100: 2 | D100: 4 | E100: 5 | F100: 6 | G100: 7 | H100: 8 | I100: 9 | J100: 10 | K100: 11
B101: MES REAL | C101: TIPO DE CEBO | D101: %BAJAS MES | E101: %BAJAS MES MAX | F101: COEF GRANJA | G101: PRECIOS 15Kg | H101: PRECIOS 25Kg | I101: CENSO | J101: AFORO | K101: IMPORT
B102: =E97 ->  | C102: =VLOOKUP($B102,'HOJA GENERAL DE DATOS'!$A$113:$K$124,'ENLACES DATOS'!C100,FALSE) ->  | D102: =VLOOKUP($B102,'HOJA GENERAL DE DATOS'!$A$113:$K$124,'ENLACES DATOS'!D100,FALSE) ->  | E102: =VLOOKUP($B102,'HOJA GENERAL DE DATOS'!$A$113:$K$124,'ENLACES DATOS'!E100,FALSE) ->  | F102: =VLOOKUP($B102,'HOJA GENERAL DE DATOS'!$A$113:$K$124,'ENLACES DATOS'!F100,FALSE) ->  | G102: =VLOOKUP($B102,'HOJA GENERAL DE DATOS'!$A$113:$K$124,'ENLACES DATOS'!G100,FALSE) ->  | H102: =VLOOKUP($B102,'HOJA GENERAL DE DATOS'!$A$113:$K$124,'ENLACES DATOS'!H100,FALSE) ->  | I102: =VLOOKUP($B102,'HOJA GENERAL DE DATOS'!$A$113:$K$124,'ENLACES DATOS'!I100,FALSE) ->  | J102: =VLOOKUP($B102,'HOJA GENERAL DE DATOS'!$A$113:$K$124,'ENLACES DATOS'!J100,FALSE) ->  | K102: =VLOOKUP($B102,'HOJA GENERAL DE DATOS'!$A$113:$K$124,'ENLACES DATOS'!K100,FALSE) -> 
B103: =E97 ->  | C103: =VLOOKUP($B103,'HOJA GENERAL DE DATOS'!$A$125:$K$136,'ENLACES DATOS'!C100,FALSE) ->  | D103: =VLOOKUP($B103,'HOJA GENERAL DE DATOS'!$A$125:$K$136,'ENLACES DATOS'!D100,FALSE) ->  | E103: =VLOOKUP($B103,'HOJA GENERAL DE DATOS'!$A$125:$K$136,'ENLACES DATOS'!E100,FALSE) ->  | F103: =VLOOKUP($B103,'HOJA GENERAL DE DATOS'!$A$125:$K$136,'ENLACES DATOS'!F100,FALSE) ->  | G103: =VLOOKUP($B103,'HOJA GENERAL DE DATOS'!$A$125:$K$136,'ENLACES DATOS'!G100,FALSE) ->  | H103: =VLOOKUP($B103,'HOJA GENERAL DE DATOS'!$A$125:$K$136,'ENLACES DATOS'!H100,FALSE) ->  | I103: =VLOOKUP($B103,'HOJA GENERAL DE DATOS'!$A$125:$K$136,'ENLACES DATOS'!I100,FALSE) ->  | J103: =VLOOKUP($B103,'HOJA GENERAL DE DATOS'!$A$125:$K$136,'ENLACES DATOS'!J100,FALSE) ->  | K103: =VLOOKUP($B103,'HOJA GENERAL DE DATOS'!$A$125:$K$136,'ENLACES DATOS'!K100,FALSE) -> 
A106: SOLUCION | B106: MENSUAL | C106: =VLOOKUP($C$97,$C$102:$K$103,1,FALSE) ->  | D106: =VLOOKUP($C$97,$C$102:$K$103,2,FALSE) ->  | E106: =VLOOKUP($C$97,$C$102:$K$103,D100-1,FALSE) ->  | F106: =VLOOKUP($C$97,$C$102:$K$103,E100-1,FALSE) ->  | G106: =VLOOKUP($C$97,$C$102:$K$103,F100-1,FALSE) -> 
F109: GRAFICO MORBvsMORT
B110: MES REAL | C110: %MORB MES | D110: %MORB MAX | F110: MORTALIDAD REAL | G110: ='GEST CHEQ MES'!C18 -> 
B111: =E97 ->  | C111: =VLOOKUP($B111,'HOJA GENERAL DE DATOS'!$A$139:$E$151,D100,FALSE) ->  | D111: =VLOOKUP($B111,'HOJA GENERAL DE DATOS'!$A$139:$E$151,E100,FALSE) ->  | F111: MORTALIDAD ESPERADA | G111: =D106 -> 
F112: MORBILIDAD | G112: =IF(B111="","",C111) -> 
A113: CALCULO PERDIDAS | B113: MES | C113: CEBO
B114: =E97 ->  | C114: =VLOOKUP($B114,'HOJA GENERAL DE DATOS'!$A$113:$K$124,C100,FALSE) ->  | D114: =VLOOKUP($B114,'HOJA GENERAL DE DATOS'!$A$113:$K$124,11,FALSE) -> 
B115: =E97 ->  | C115: =VLOOKUP($B115,'HOJA GENERAL DE DATOS'!$A$125:$K$136,C100,FALSE) ->  | D115: =VLOOKUP($B115,'HOJA GENERAL DE DATOS'!$A$125:$K$136,11,FALSE) -> 
A117: SOLUCION | B117: MES | C117: =VLOOKUP($C$97,$C$114:$M$115,B100,FALSE) ->  | D117: =VLOOKUP($C$97,$C$114:$M$115,C100,FALSE) -> 
B120: TIPO CEBO | C120: MES | D120: %BAJAS MES | E120: %BAJAS MES MAX | F120: %BAJAS EST | G120: CENSO | H120: AFORO | I120: %BAJASX100
B121: =IF($C$97=$B$98,'HOJA GENERAL DE DATOS'!B125,'HOJA GENERAL DE DATOS'!B113) ->  | C121: =IF($C$97=$B$98,'HOJA GENERAL DE DATOS'!C125,'HOJA GENERAL DE DATOS'!C113) ->  | D121: =IF($C$97=$B$98,'HOJA GENERAL DE DATOS'!D125,'HOJA GENERAL DE DATOS'!D113) ->  | E121: =IF($C$97=$B$98,'HOJA GENERAL DE DATOS'!E125,'HOJA GENERAL DE DATOS'!E113) ->  | F121: =D121*$F$97 ->  | G121: =IF($C$97=$B$98,'HOJA GENERAL DE DATOS'!I125,'HOJA GENERAL DE DATOS'!I113) ->  | H121: =IF($C$97=$B$98,'HOJA GENERAL DE DATOS'!J125,'HOJA GENERAL DE DATOS'!J113) ->  | I121: =D121*100 -> 
B122: =IF($C$97=$B$98,'HOJA GENERAL DE DATOS'!B126,'HOJA GENERAL DE DATOS'!B114) ->  | C122: =IF($C$97=$B$98,'HOJA GENERAL DE DATOS'!C126,'HOJA GENERAL DE DATOS'!C114) ->  | D122: =IF($C$97=$B$98,'HOJA GENERAL DE DATOS'!D126,'HOJA GENERAL DE DATOS'!D114) ->  | E122: =IF($C$97=$B$98,'HOJA GENERAL DE DATOS'!E126,'HOJA GENERAL DE DATOS'!E114) ->  | F122: =D122*$F$97 ->  | G122: =IF($C$97=$B$98,'HOJA GENERAL DE DATOS'!I126,'HOJA GENERAL DE DATOS'!I114) ->  | H122: =IF($C$97=$B$98,'HOJA GENERAL DE DATOS'!J126,'HOJA GENERAL DE DATOS'!J114) ->  | I122: =D122*100 -> 
B123: =IF($C$97=$B$98,'HOJA GENERAL DE DATOS'!B127,'HOJA GENERAL DE DATOS'!B115) ->  | C123: =IF($C$97=$B$98,'HOJA GENERAL DE DATOS'!C127,'HOJA GENERAL DE DATOS'!C115) ->  | D123: =IF($C$97=$B$98,'HOJA GENERAL DE DATOS'!D127,'HOJA GENERAL DE DATOS'!D115) ->  | E123: =IF($C$97=$B$98,'HOJA GENERAL DE DATOS'!E127,'HOJA GENERAL DE DATOS'!E115) ->  | G123: =IF($C$97=$B$98,'HOJA GENERAL DE DATOS'!I127,'HOJA GENERAL DE DATOS'!I115) ->  | H123: =IF($C$97=$B$98,'HOJA GENERAL DE DATOS'!J127,'HOJA GENERAL DE DATOS'!J115) -> 
B124: =IF($C$97=$B$98,'HOJA GENERAL DE DATOS'!B128,'HOJA GENERAL DE DATOS'!B116) ->  | C124: =IF($C$97=$B$98,'HOJA GENERAL DE DATOS'!C128,'HOJA GENERAL DE DATOS'!C116) ->  | D124: =IF($C$97=$B$98,'HOJA GENERAL DE DATOS'!D128,'HOJA GENERAL DE DATOS'!D116) ->  | E124: =IF($C$97=$B$98,'HOJA GENERAL DE DATOS'!E128,'HOJA GENERAL DE DATOS'!E116) ->  | G124: =IF($C$97=$B$98,'HOJA GENERAL DE DATOS'!I128,'HOJA GENERAL DE DATOS'!I116) ->  | H124: =IF($C$97=$B$98,'HOJA GENERAL DE DATOS'!J128,'HOJA GENERAL DE DATOS'!J116) -> 
B125: =IF($C$97=$B$98,'HOJA GENERAL DE DATOS'!B129,'HOJA GENERAL DE DATOS'!B117) ->  | C125: =IF($C$97=$B$98,'HOJA GENERAL DE DATOS'!C129,'HOJA GENERAL DE DATOS'!C117) ->  | D125: =IF($C$97=$B$98,'HOJA GENERAL DE DATOS'!D129,'HOJA GENERAL DE DATOS'!D117) ->  | E125: =IF($C$97=$B$98,'HOJA GENERAL DE DATOS'!E129,'HOJA GENERAL DE DATOS'!E117) ->  | G125: =IF($C$97=$B$98,'HOJA GENERAL DE DATOS'!I129,'HOJA GENERAL DE DATOS'!I117) ->  | H125: =IF($C$97=$B$98,'HOJA GENERAL DE DATOS'!J129,'HOJA GENERAL DE DATOS'!J117) -> 
B126: =IF($C$97=$B$98,'HOJA GENERAL DE DATOS'!B130,'HOJA GENERAL DE DATOS'!B118) ->  | C126: =IF($C$97=$B$98,'HOJA GENERAL DE DATOS'!C130,'HOJA GENERAL DE DATOS'!C118) ->  | D126: =IF($C$97=$B$98,'HOJA GENERAL DE DATOS'!D130,'HOJA GENERAL DE DATOS'!D118) ->  | E126: =IF($C$97=$B$98,'HOJA GENERAL DE DATOS'!E130,'HOJA GENERAL DE DATOS'!E118) ->  | G126: =IF($C$97=$B$98,'HOJA GENERAL DE DATOS'!I130,'HOJA GENERAL DE DATOS'!I118) ->  | H126: =IF($C$97=$B$98,'HOJA GENERAL DE DATOS'!J130,'HOJA GENERAL DE DATOS'!J118) -> 
B127: =IF($C$97=$B$98,'HOJA GENERAL DE DATOS'!B131,'HOJA GENERAL DE DATOS'!B119) ->  | C127: =IF($C$97=$B$98,'HOJA GENERAL DE DATOS'!C131,'HOJA GENERAL DE DATOS'!C119) ->  | D127: =IF($C$97=$B$98,'HOJA GENERAL DE DATOS'!D131,'HOJA GENERAL DE DATOS'!D119) ->  | E127: =IF($C$97=$B$98,'HOJA GENERAL DE DATOS'!E131,'HOJA GENERAL DE DATOS'!E119) ->  | F127: =D127*$F$97 ->  | G127: =IF($C$97=$B$98,'HOJA GENERAL DE DATOS'!I131,'HOJA GENERAL DE DATOS'!I119) ->  | H127: =IF($C$97=$B$98,'HOJA GENERAL DE DATOS'!J131,'HOJA GENERAL DE DATOS'!J119) -> 
B128: =IF($C$97=$B$98,'HOJA GENERAL DE DATOS'!B132,'HOJA GENERAL DE DATOS'!B120) ->  | C128: =IF($C$97=$B$98,'HOJA GENERAL DE DATOS'!C132,'HOJA GENERAL DE DATOS'!C120) ->  | D128: =IF($C$97=$B$98,'HOJA GENERAL DE DATOS'!D132,'HOJA GENERAL DE DATOS'!D120) ->  | E128: =IF($C$97=$B$98,'HOJA GENERAL DE DATOS'!E132,'HOJA GENERAL DE DATOS'!E120) ->  | G128: =IF($C$97=$B$98,'HOJA GENERAL DE DATOS'!I132,'HOJA GENERAL DE DATOS'!I120) ->  | H128: =IF($C$97=$B$98,'HOJA GENERAL DE DATOS'!J132,'HOJA GENERAL DE DATOS'!J120) -> 
B129: =IF($C$97=$B$98,'HOJA GENERAL DE DATOS'!B133,'HOJA GENERAL DE DATOS'!B121) ->  | C129: =IF($C$97=$B$98,'HOJA GENERAL DE DATOS'!C133,'HOJA GENERAL DE DATOS'!C121) ->  | D129: =IF($C$97=$B$98,'HOJA GENERAL DE DATOS'!D133,'HOJA GENERAL DE DATOS'!D121) ->  | E129: =IF($C$97=$B$98,'HOJA GENERAL DE DATOS'!E133,'HOJA GENERAL DE DATOS'!E121) ->  | G129: =IF($C$97=$B$98,'HOJA GENERAL DE DATOS'!I133,'HOJA GENERAL DE DATOS'!I121) ->  | H129: =IF($C$97=$B$98,'HOJA GENERAL DE DATOS'!J133,'HOJA GENERAL DE DATOS'!J121) -> 
B130: =IF($C$97=$B$98,'HOJA GENERAL DE DATOS'!B134,'HOJA GENERAL DE DATOS'!B122) ->  | C130: =IF($C$97=$B$98,'HOJA GENERAL DE DATOS'!C134,'HOJA GENERAL DE DATOS'!C122) ->  | D130: =IF($C$97=$B$98,'HOJA GENERAL DE DATOS'!D134,'HOJA GENERAL DE DATOS'!D122) ->  | E130: =IF($C$97=$B$98,'HOJA GENERAL DE DATOS'!E134,'HOJA GENERAL DE DATOS'!E122) ->  | G130: =IF($C$97=$B$98,'HOJA GENERAL DE DATOS'!I134,'HOJA GENERAL DE DATOS'!I122) ->  | H130: =IF($C$97=$B$98,'HOJA GENERAL DE DATOS'!J134,'HOJA GENERAL DE DATOS'!J122) -> 
B131: =IF($C$97=$B$98,'HOJA GENERAL DE DATOS'!B135,'HOJA GENERAL DE DATOS'!B123) ->  | C131: =IF($C$97=$B$98,'HOJA GENERAL DE DATOS'!C135,'HOJA GENERAL DE DATOS'!C123) ->  | D131: =IF($C$97=$B$98,'HOJA GENERAL DE DATOS'!D135,'HOJA GENERAL DE DATOS'!D123) ->  | E131: =IF($C$97=$B$98,'HOJA GENERAL DE DATOS'!E135,'HOJA GENERAL DE DATOS'!E123) ->  | G131: =IF($C$97=$B$98,'HOJA GENERAL DE DATOS'!I135,'HOJA GENERAL DE DATOS'!I123) ->  | H131: =IF($C$97=$B$98,'HOJA GENERAL DE DATOS'!J135,'HOJA GENERAL DE DATOS'!J123) -> 
B132: =IF($C$97=$B$98,'HOJA GENERAL DE DATOS'!B136,'HOJA GENERAL DE DATOS'!B124) ->  | C132: =IF($C$97=$B$98,'HOJA GENERAL DE DATOS'!C136,'HOJA GENERAL DE DATOS'!C124) ->  | D132: =IF($C$97=$B$98,'HOJA GENERAL DE DATOS'!D136,'HOJA GENERAL DE DATOS'!D124) ->  | E132: =IF($C$97=$B$98,'HOJA GENERAL DE DATOS'!E136,'HOJA GENERAL DE DATOS'!E124) ->  | G132: =IF($C$97=$B$98,'HOJA GENERAL DE DATOS'!I136,'HOJA GENERAL DE DATOS'!I124) ->  | H132: =IF($C$97=$B$98,'HOJA GENERAL DE DATOS'!J136,'HOJA GENERAL DE DATOS'!J124) -> 
A134: GRAFICO DECOMISOS | B134: PULMON REAL | C134: ='GEST CHEQ MES'!K11 -> 0 | D134: MES | E134: PULMON | F134: HIGADO | G134: CANALES X100
B135: PULMON ESPERADO | C135: ='GEST CHEQ MES'!K15 ->  | D135: 1 | E135: =IF('GEST CHEQ MES'!$K$11="","",'HOJA GENERAL DE DATOS'!B155) ->  | F135: =IF('GEST CHEQ MES'!$K$12="","",'HOJA GENERAL DE DATOS'!D155) ->  | G135: =IF('GEST CHEQ MES'!$K$13="","",'HOJA GENERAL DE DATOS'!E155*100) -> 
B136: PULMON MAX | C136: ='GEST CHEQ MES'!K19 ->  | D136: 2 | E136: =IF('GEST CHEQ MES'!$K$11="","",'HOJA GENERAL DE DATOS'!B156) ->  | F136: =IF('GEST CHEQ MES'!$K$12="","",'HOJA GENERAL DE DATOS'!D156) ->  | G136: =IF('GEST CHEQ MES'!$K$13="","",'HOJA GENERAL DE DATOS'!E156*100) -> 
B137: HIGADO REAL | C137: ='GEST CHEQ MES'!K12 -> 0 | D137: 3 | E137: =IF('GEST CHEQ MES'!$K$11="","",'HOJA GENERAL DE DATOS'!B157) ->  | F137: =IF('GEST CHEQ MES'!$K$12="","",'HOJA GENERAL DE DATOS'!D157) ->  | G137: =IF('GEST CHEQ MES'!$K$13="","",'HOJA GENERAL DE DATOS'!E157*100) -> 
B138: HIGADO ESPERADO | C138: ='GEST CHEQ MES'!K16 ->  | D138: 4 | E138: =IF('GEST CHEQ MES'!$K$11="","",'HOJA GENERAL DE DATOS'!B158) ->  | F138: =IF('GEST CHEQ MES'!$K$12="","",'HOJA GENERAL DE DATOS'!D158) ->  | G138: =IF('GEST CHEQ MES'!$K$13="","",'HOJA GENERAL DE DATOS'!E158*100) -> 
B139: HIGADO MAXIMO | C139: ='GEST CHEQ MES'!K20 ->  | D139: 5 | E139: =IF('GEST CHEQ MES'!$K$11="","",'HOJA GENERAL DE DATOS'!B159) ->  | F139: =IF('GEST CHEQ MES'!$K$12="","",'HOJA GENERAL DE DATOS'!D159) ->  | G139: =IF('GEST CHEQ MES'!$K$13="","",'HOJA GENERAL DE DATOS'!E159*100) -> 
B140: CANALES REALx100 | C140: ='GEST CHEQ MES'!K13*100 -> 0 | D140: 6 | E140: =IF('GEST CHEQ MES'!$K$11="","",'HOJA GENERAL DE DATOS'!B160) ->  | F140: =IF('GEST CHEQ MES'!$K$12="","",'HOJA GENERAL DE DATOS'!D160) ->  | G140: =IF('GEST CHEQ MES'!$K$13="","",'HOJA GENERAL DE DATOS'!E160*100) -> 
B141: CANALES ESPERADOx100 | C141: ='GEST CHEQ MES'!K17*100 ->  | D141: 7 | E141: =IF('GEST CHEQ MES'!$K$11="","",'HOJA GENERAL DE DATOS'!B161) ->  | F141: =IF('GEST CHEQ MES'!$K$12="","",'HOJA GENERAL DE DATOS'!D161) ->  | G141: =IF('GEST CHEQ MES'!$K$13="","",'HOJA GENERAL DE DATOS'!E161*100) -> 
B142: CANALES MAXIMOx100 | C142: ='GEST CHEQ MES'!K21*100 ->  | D142: 8 | E142: =IF('GEST CHEQ MES'!$K$11="","",'HOJA GENERAL DE DATOS'!B162) ->  | F142: =IF('GEST CHEQ MES'!$K$12="","",'HOJA GENERAL DE DATOS'!D162) ->  | G142: =IF('GEST CHEQ MES'!$K$13="","",'HOJA GENERAL DE DATOS'!E162*100) -> 
D143: 9 | E143: =IF('GEST CHEQ MES'!$K$11="","",'HOJA GENERAL DE DATOS'!B163) ->  | F143: =IF('GEST CHEQ MES'!$K$12="","",'HOJA GENERAL DE DATOS'!D163) ->  | G143: =IF('GEST CHEQ MES'!$K$13="","",'HOJA GENERAL DE DATOS'!E163*100) -> 
D144: 10 | E144: =IF('GEST CHEQ MES'!$K$11="","",'HOJA GENERAL DE DATOS'!B164) ->  | F144: =IF('GEST CHEQ MES'!$K$12="","",'HOJA GENERAL DE DATOS'!D164) ->  | G144: =IF('GEST CHEQ MES'!$K$13="","",'HOJA GENERAL DE DATOS'!E164*100) -> 
D145: 11 | E145: =IF('GEST CHEQ MES'!$K$11="","",'HOJA GENERAL DE DATOS'!B165) ->  | F145: =IF('GEST CHEQ MES'!$K$12="","",'HOJA GENERAL DE DATOS'!D165) ->  | G145: =IF('GEST CHEQ MES'!$K$13="","",'HOJA GENERAL DE DATOS'!E165*100) -> 
D146: 12 | E146: =IF('GEST CHEQ MES'!$K$11="","",'HOJA GENERAL DE DATOS'!B166) ->  | F146: =IF('GEST CHEQ MES'!$K$12="","",'HOJA GENERAL DE DATOS'!D166) ->  | G146: =IF('GEST CHEQ MES'!$K$13="","",'HOJA GENERAL DE DATOS'!E166*100) -> 
A148: DATOS pH PANZAS | C148: Desv st | E148: Diferencial | H148: grupo 1 | I148: grupo 2 | J148: grupo 3 | K148: grupo 4 | L148: grupo 5 | M148: grupo 6 | N148: grupo 7 | O148: GRUPO
A150: 1 | B150: =IF('GEST RUMEN'!B12="","",'GEST RUMEN'!B12) ->  | C150: =B150-$B$167 ->  | D150: =IF(C150<-$B$168,1,"") ->  | E150: =B150-$B$171 ->  | F150: =IF(E150<-$B$172,1,"") ->  | H150: =IF(B150="","",IF(B150<5.99,1,"")) ->  | I150: =IF(B150="","",IF(B150>5.99,1,"")) ->  | J150: =IF(B150="","",IF(B150>6.5,1,"")) ->  | K150: =IF(B150="","",IF(B150>6.75,1,"")) ->  | L150: =IF(B150="","",IF(B150>6.99,1,"")) ->  | M150: =IF(B150="","",IF(B150>7.2,1,"")) ->  | N150: =IF(B150="","",IF(B150>7.4,1,"")) ->  | O150: =IF(B150="","",SUM(H150:N150)) -> 
A151: 2 | B151: =IF('GEST RUMEN'!B13="","",'GEST RUMEN'!B13) ->  | C151: =B151-$B$167 ->  | D151: =IF(C151<-$B$168,1,"") ->  | E151: =B151-$B$171 ->  | F151: =IF(E151<-$B$172,1,"") ->  | H151: =IF(B151="","",IF(B151<5.99,1,"")) ->  | I151: =IF(B151="","",IF(B151>5.99,1,"")) ->  | J151: =IF(B151="","",IF(B151>6.5,1,"")) ->  | K151: =IF(B151="","",IF(B151>6.75,1,"")) ->  | L151: =IF(B151="","",IF(B151>6.99,1,"")) ->  | M151: =IF(B151="","",IF(B151>7.2,1,"")) ->  | N151: =IF(B151="","",IF(B151>7.4,1,"")) ->  | O151: =IF(B151="","",SUM(H151:N151)) -> 
A152: 3 | B152: =IF('GEST RUMEN'!B14="","",'GEST RUMEN'!B14) -> 
A153: 4 | B153: =IF('GEST RUMEN'!B15="","",'GEST RUMEN'!B15) -> 
A154: 5 | B154: =IF('GEST RUMEN'!B16="","",'GEST RUMEN'!B16) -> 
A155: 6 | B155: =IF('GEST RUMEN'!B17="","",'GEST RUMEN'!B17) -> 
A156: 7 | B156: =IF('GEST RUMEN'!B18="","",'GEST RUMEN'!B18) -> 
A157: 8 | B157: =IF('GEST RUMEN'!B19="","",'GEST RUMEN'!B19) -> 
A158: 9 | B158: =IF('GEST RUMEN'!B20="","",'GEST RUMEN'!B20) -> 
A159: 10 | B159: =IF('GEST RUMEN'!B21="","",'GEST RUMEN'!B21) -> 
A160: 11 | B160: =IF('GEST RUMEN'!B22="","",'GEST RUMEN'!B22) -> 
A161: 12 | B161: =IF('GEST RUMEN'!B23="","",'GEST RUMEN'!B23) -> 
A162: 13 | B162: =IF('GEST RUMEN'!B24="","",'GEST RUMEN'!B24) -> 
A163: 14 | B163: =IF('GEST RUMEN'!B25="","",'GEST RUMEN'!B25) -> 
A164: 15 | B164: =IF('GEST RUMEN'!B26="","",'GEST RUMEN'!B26) -> 
A165: 16 | B165: =IF('GEST RUMEN'!B27="","",'GEST RUMEN'!B27) -> 
B166: =COUNT(B150:B165) -> 0 | D166: =SUM(D150:D165) ->  | F166: =SUM(F150:F165) -> 
A167: MEDIA | B167: =IF(B$10="","",AVERAGE(B150:B165)) -> 
A168: DESV.ST | B168: =IF(B150="","",STDEVP(B150:B165)) ->  | D168: =B168/B167 -> 
C169: diferencias
A170: MES | B170: ='BUSCAR FECHA'!H4 ->  | G170: pH REAL | H170: =B167 -> 
A171: pH | B171: =VLOOKUP($B$170,'HOJA GENERAL DE DATOS'!$A$170:$D$181,2,FALSE) ->  | C171: =B167-B171 ->  | G171: pH ESPERADO | H171: =B171 -> 
A172: DESV.ST | B172: =VLOOKUP($B$170,'HOJA GENERAL DE DATOS'!$A$170:$D$181,4,FALSE) ->  | C172: =B168-B172 ->  | D172: =B172/B171 ->  | G172: VAR.REAL | H172: =B168 -> 
A173: %pHs fuera de DS | B173: =D166/B166 ->  | G173: VAR.ESPERADA | H173: =B172 -> 
A174: %pHs altos | B174: =F166/B166 -> 
A176: GRAFICOS | D176: CHEQUEO | E176: MEDIA | F176: MEJOR
A177: 1 | B177: grupo 1 | C177: =COUNTIF($O$150:$O$166,A177) -> 0 | D177: =IF($B$170="","",C177/$B$166) ->  | E177: =IF($B$170="","",VLOOKUP($B$170,$B$186:$K$198,G177,FALSE)) ->  | F177: =E198 -> 0 | G177: 4
A178: 2 | B178: grupo 2 | C178: =COUNTIF($O$150:$O$166,A178) -> 0 | D178: =IF($B$170="","",C178/$B$166) ->  | E178: =IF($B$170="","",VLOOKUP($B$170,$B$186:$K$198,G178,FALSE)) ->  | F178: =F198 -> 0 | G178: 5
A179: 3 | B179: grupo 3 | C179: 0 | F179: =G198 -> 0 | G179: 6
A180: 4 | B180: grupo 4 | C180: 0 | F180: =H198 -> 0.1509433962 | G180: 7
A181: 5 | B181: grupo 5 | C181: 0 | F181: =I198 -> 0.3962264151 | G181: 8
A182: 6 | B182: grupo 6 | C182: 0 | F182: =J198 -> 0.3396226415 | G182: 9
A183: 7 | B183: grupo 7 | C183: 0 | F183: =K198 -> 0.1132075472 | G183: 10
D184: =SUM(D177:D183) ->  | E184: =SUM(E177:E183) ->  | F184: 1
B185: MES DE TOMA | C185: pH | D185: desv St | E185: grupo1 | F185: grupo2 | G185: grupo3 | H185: grupo4 | I185: grupo5 | J185: grupo6 | K185: grupo7
B186: 3 | C186: =VLOOKUP($B186,'HOJA GENERAL DE DATOS'!$A$170:$D$181,2,FALSE) -> 7.115954198 | D186: =VLOOKUP($B186,'HOJA GENERAL DE DATOS'!$A$170:$D$181,4,FALSE) -> 0.2591488394 | E186: 0.007633587786 | F186: 0.007633587786 | G186: 0.03053435115 | H186: 0.1679389313 | I186: 0.4122137405 | J186: 0.2977099237 | K186: 0.07633587786 | L186: =SUM(E186:K186) -> 1
B187: 4 | C187: =VLOOKUP(B187,'HOJA GENERAL DE DATOS'!$A$170:$D$181,2,FALSE) -> 7.173706897 | D187: =VLOOKUP($B187,'HOJA GENERAL DE DATOS'!$A$170:$D$181,4,FALSE) -> 0.3685188454 | E187: 0.03448275862 | F187: 0.01724137931 | G187: 0 | H187: 0.1206896552 | I187: 0.2586206897 | J187: 0.3534482759 | K187: 0.2155172414 | L187: =SUM(E187:K187) -> 1
B188: 5 | C188: =VLOOKUP(B188,'HOJA GENERAL DE DATOS'!$A$170:$D$181,2,FALSE) -> 7.090371622 | D188: =VLOOKUP($B188,'HOJA GENERAL DE DATOS'!$A$170:$D$181,4,FALSE) -> 0.3225137449 | E188: 0.01351351351 | F188: 0.03378378378 | G188: 0.08445945946 | H188: 0.1756756757 | I188: 0.2635135135 | J188: 0.3040540541 | K188: 0.125 | L188: 1
B189: 7 | C189: =VLOOKUP(B189,'HOJA GENERAL DE DATOS'!$A$170:$D$181,2,FALSE) -> 7.090065789 | D189: =VLOOKUP($B189,'HOJA GENERAL DE DATOS'!$A$170:$D$181,4,FALSE) -> 0.2371561553 | E189: 0.006578947368 | F189: 0.006578947368 | G189: 0.05263157895 | H189: 0.2171052632 | I189: 0.3881578947 | J189: 0.2565789474 | K189: 0.07236842105 | L189: 1
B190: 10 | C190: =VLOOKUP(B190,'HOJA GENERAL DE DATOS'!$A$170:$D$181,2,FALSE) -> 6.969702381 | D190: =VLOOKUP($B190,'HOJA GENERAL DE DATOS'!$A$170:$D$181,4,FALSE) -> 0.3184250645 | E190: 0.02976190476 | F190: 0.02976190476 | G190: 0.1071428571 | H190: 0.2857142857 | I190: 0.3035714286 | J190: 0.2380952381 | K190: 0.005952380952 | L190: 1
B191: 11 | C191: =VLOOKUP(B191,'HOJA GENERAL DE DATOS'!$A$170:$D$181,2,FALSE) -> 7.072107843 | D191: =VLOOKUP($B191,'HOJA GENERAL DE DATOS'!$A$170:$D$181,4,FALSE) -> 0.291070672 | E191: 0 | F191: 0.005988023952 | G191: 0.02395209581 | H191: 0.1916167665 | I191: 0.3413173653 | J191: 0.3173652695 | K191: 0.119760479 | L191: 1
B192: 1 | C192: =VLOOKUP(B192,'HOJA GENERAL DE DATOS'!$A$170:$D$181,2,FALSE) -> 7.072107843 | D192: =VLOOKUP($B192,'HOJA GENERAL DE DATOS'!$A$170:$D$181,4,FALSE) -> 0.291070672 | E192: 0 | F192: 0.005988023952 | G192: 0.02395209581 | H192: 0.1916167665 | I192: 0.3413173653 | J192: 0.3173652695 | K192: 0.119760479 | L192: 1
B193: 2 | C193: =VLOOKUP(B193,'HOJA GENERAL DE DATOS'!$A$170:$D$181,2,FALSE) -> 7.115954198 | D193: =VLOOKUP($B193,'HOJA GENERAL DE DATOS'!$A$170:$D$181,4,FALSE) -> 0.2591488394 | E193: 0.01581027668 | F193: 0.01449275362 | G193: 0.04743083004 | H193: 0.1923583663 | I193: 0.3162055336 | J193: 0.3083003953 | K193: 0.1054018445 | L193: 1
B194: 6 | C194: =VLOOKUP(B194,'HOJA GENERAL DE DATOS'!$A$170:$D$181,2,FALSE) -> 7.090065789 | D194: =VLOOKUP($B194,'HOJA GENERAL DE DATOS'!$A$170:$D$181,4,FALSE) -> 0.2371561553 | E194: 0.0110701107 | F194: 0.0332103321 | G194: 0.08487084871 | H194: 0.2029520295 | I194: 0.3284132841 | J194: 0.2509225092 | K194: 0.08856088561 | L194: 1
B195: 8 | C195: =VLOOKUP(B195,'HOJA GENERAL DE DATOS'!$A$170:$D$181,2,FALSE) -> 6.407 | D195: =VLOOKUP($B195,'HOJA GENERAL DE DATOS'!$A$170:$D$181,4,FALSE) -> 0.6609933602 | E195: 0.006578947368 | F195: 0.006578947368 | G195: 0.05263157895 | H195: 0.2171052632 | I195: 0.3881578947 | J195: 0.2565789474 | K195: 0.07236842105 | L195: 1
B196: 9 | C196: =VLOOKUP(B196,'HOJA GENERAL DE DATOS'!$A$170:$D$181,2,FALSE) -> 6.407 | D196: =VLOOKUP($B196,'HOJA GENERAL DE DATOS'!$A$170:$D$181,4,FALSE) -> 0.6609933602 | E196: 0.01479915433 | F196: 0.0200845666 | G196: 0.06025369979 | H196: 0.1966173362 | I196: 0.3160676533 | J196: 0.2875264271 | K196: 0.1046511628 | L196: 1
B197: 12 | C197: =VLOOKUP(B197,'HOJA GENERAL DE DATOS'!$A$170:$D$181,2,FALSE) -> 7.072107843 | D197: =VLOOKUP($B197,'HOJA GENERAL DE DATOS'!$A$170:$D$181,4,FALSE) -> 0.291070672 | E197: 0 | F197: 0 | G197: 0.05882352941 | H197: 0.8235294118 | I197: 0 | J197: 0.1176470588 | K197: 0 | L197: 1
B198: mejor | C198: 7.186 | D198: 0.18292 | E198: 0 | F198: 0 | G198: 0 | H198: 0.1509433962 | I198: 0.3962264151 | J198: 0.3396226415 | K198: 0.1132075472 | L198: 1
A201: PRUEBAS DE CORDEROS
B202: SEXO | C202: RAZA | D202: EPOCA | F202: SEXO | G202: RAZA | H202: EPOCA | I202: GRUPO | J202: PESO PRUEBA
B203: MACHOS | C203: CARNICO&CRUZADO | D203: INVIERNO | F203: ='GEST IND TECN'!C12 -> 0 | G203: ='GEST IND TECN'!C15 -> 0 | H203: ='GEST IND TECN'!C16 -> 0 | I203: =VLOOKUP(J203,$AA$210:$AB$232,2) ->  | J203: =AVERAGE('GEST IND TECN'!C18:C19) ->  | L203: =I203 ->  | M203: =F203 -> 0 | N203: =G203 -> 0 | O203: =H203 -> 0 | P203: =CONCATENATE(L203,M203,N203,O203) ->  | Q203: =VLOOKUP(P203,B210:C342,2,FALSE) -> 
B204: HEMBRAS | C204: ENTREFINO | D204: VERANO
B205: MACHOS&HEMBRAS | C205: INDEFINIDA | D205: INDEFINIDO
A207: CALCULO POR SEGMENTOS | C207: 1 | D207: 2 | E207: 3 | F207: 4 | G207: 5 | H207: 6 | I207: 7 | J207: 8 | K207: 9 | L207: 10 | M207: 11 | N207: 12 | O207: 13 | P207: 14 | Q207: 15 | R207: 16
A208: COD | B208: TEXTO | C208: COD | D208: GRUPO | E208: SEXO | F208: RAZA | G208: EPOCA | H208: NºPRUEBAS | I208: NºCORDEROS | J208: PESO ENTRADA | K208: PESO SALIDA | L208: GMD | M208: IC | N208: UFC | O208: DIAS | P208: CMD | Q208: DsT GMD | R208: DsT IC | AA208: PESO | AB208: GRUPO
C209: =VLOOKUP($Q$203,'HOJA GENERAL DE DATOS'!$A$186:$P$318,C207,FALSE) ->  | D209: =VLOOKUP($Q$203,'HOJA GENERAL DE DATOS'!$A$186:$P$318,D207,FALSE) ->  | E209: =VLOOKUP($Q$203,'HOJA GENERAL DE DATOS'!$A$186:$P$318,E207,FALSE) ->  | F209: =VLOOKUP($Q$203,'HOJA GENERAL DE DATOS'!$A$186:$P$318,F207,FALSE) ->  | G209: =VLOOKUP($Q$203,'HOJA GENERAL DE DATOS'!$A$186:$P$318,G207,FALSE) ->  | H209: =VLOOKUP($Q$203,'HOJA GENERAL DE DATOS'!$A$186:$P$318,H207,FALSE) ->  | I209: =VLOOKUP($Q$203,'HOJA GENERAL DE DATOS'!$A$186:$P$318,I207,FALSE) ->  | J209: =VLOOKUP($Q$203,'HOJA GENERAL DE DATOS'!$A$186:$P$318,J207,FALSE) ->  | K209: =VLOOKUP($Q$203,'HOJA GENERAL DE DATOS'!$A$186:$P$318,K207,FALSE) ->  | L209: =VLOOKUP($Q$203,'HOJA GENERAL DE DATOS'!$A$186:$P$318,L207,FALSE) ->  | M209: =VLOOKUP($Q$203,'HOJA GENERAL DE DATOS'!$A$186:$P$318,M207,FALSE) ->  | N209: =VLOOKUP($Q$203,'HOJA GENERAL DE DATOS'!$A$186:$P$318,N207,FALSE) ->  | O209: =VLOOKUP($Q$203,'HOJA GENERAL DE DATOS'!$A$186:$P$318,O207,FALSE) ->  | P209: =VLOOKUP($Q$203,'HOJA GENERAL DE DATOS'!$A$186:$P$318,P207,FALSE) ->  | Q209: =VLOOKUP($Q$203,'HOJA GENERAL DE DATOS'!$A$186:$P$318,Q207,FALSE) ->  | R209: =VLOOKUP($Q$203,'HOJA GENERAL DE DATOS'!$A$186:$P$318,R207,FALSE) -> 
A210: 1 | B210: =CONCATENATE('HOJA GENERAL DE DATOS'!B186,'HOJA GENERAL DE DATOS'!C186,'HOJA GENERAL DE DATOS'!D186,'HOJA GENERAL DE DATOS'!E186) -> 1MACHOS&HEMBRASCARNICO&CRUZADOINVIERNO | C210: 1 | D210: ='HOJA GENERAL DE DATOS'!B186 -> 1 | E210: ='HOJA GENERAL DE DATOS'!C186 -> MACHOS&HEMBRAS | F210: ='HOJA GENERAL DE DATOS'!D186 -> CARNICO&CRUZADO | G210: ='HOJA GENERAL DE DATOS'!E186 -> INVIERNO | H210: ='HOJA GENERAL DE DATOS'!F186 -> 9 | I210: ='HOJA GENERAL DE DATOS'!G186 -> 596 | J210: ='HOJA GENERAL DE DATOS'!H186 -> 13511.11111 | K210: ='HOJA GENERAL DE DATOS'!I186 -> 13253.33333 | L210: ='HOJA GENERAL DE DATOS'!J186 -> 302.6666667 | M210: ='HOJA GENERAL DE DATOS'!K186 -> 2347.777778 | N210: ='HOJA GENERAL DE DATOS'!L186 -> 100.1875 | O210: ='HOJA GENERAL DE DATOS'!M186 -> -0.3280202212 | P210: ='HOJA GENERAL DE DATOS'!N186 -> 704.7088889 | Q210: ='HOJA GENERAL DE DATOS'!O186 -> 36.40741683 | R210: ='HOJA GENERAL DE DATOS'!P186 -> 792.4452312 | AA210: 11 | AB210: 1
A211: 2 | B211: =CONCATENATE('HOJA GENERAL DE DATOS'!B187,'HOJA GENERAL DE DATOS'!C187,'HOJA GENERAL DE DATOS'!D187,'HOJA GENERAL DE DATOS'!E187) -> 1MACHOS&HEMBRASCARNICO&CRUZADOVERANO | C211: 2 | D211: ='HOJA GENERAL DE DATOS'!B187 -> 1 | E211: ='HOJA GENERAL DE DATOS'!C187 -> MACHOS&HEMBRAS | F211: ='HOJA GENERAL DE DATOS'!D187 -> CARNICO&CRUZADO | G211: ='HOJA GENERAL DE DATOS'!E187 -> VERANO | H211: ='HOJA GENERAL DE DATOS'!F187 -> 7 | I211: ='HOJA GENERAL DE DATOS'!G187 -> 246 | J211: ='HOJA GENERAL DE DATOS'!H187 -> 12857.14286 | K211: ='HOJA GENERAL DE DATOS'!I187 -> 14771.42857 | L211: ='HOJA GENERAL DE DATOS'!J187 -> 319.7142857 | M211: ='HOJA GENERAL DE DATOS'!K187 -> 2030 | N211: ='HOJA GENERAL DE DATOS'!L187 -> 100.5 | O211: ='HOJA GENERAL DE DATOS'!M187 -> 6.10501002 | P211: ='HOJA GENERAL DE DATOS'!N187 -> 624.8642857 | Q211: ='HOJA GENERAL DE DATOS'!O187 -> 45.64980572 | R211: ='HOJA GENERAL DE DATOS'!P187 -> 647.8425735 | AA211: 12 | AB211: 1
A212: 3 | B212: =CONCATENATE('HOJA GENERAL DE DATOS'!B188,'HOJA GENERAL DE DATOS'!C188,'HOJA GENERAL DE DATOS'!D188,'HOJA GENERAL DE DATOS'!E188) -> 0000 | C212: 3 | D212: ='HOJA GENERAL DE DATOS'!B188 -> 0 | E212: ='HOJA GENERAL DE DATOS'!C188 -> 0 | F212: ='HOJA GENERAL DE DATOS'!D188 -> 0 | G212: ='HOJA GENERAL DE DATOS'!E188 -> 0 | H212: ='HOJA GENERAL DE DATOS'!F188 -> 0 | I212: ='HOJA GENERAL DE DATOS'!G188 -> 0 | J212: ='HOJA GENERAL DE DATOS'!H188 -> 0 | K212: ='HOJA GENERAL DE DATOS'!I188 -> 0 | L212: ='HOJA GENERAL DE DATOS'!J188 -> 0 | M212: ='HOJA GENERAL DE DATOS'!K188 -> 0 | N212: ='HOJA GENERAL DE DATOS'!L188 -> 0 | O212: ='HOJA GENERAL DE DATOS'!M188 -> 0 | P212: ='HOJA GENERAL DE DATOS'!N188 -> 0 | Q212: ='HOJA GENERAL DE DATOS'!O188 -> 0 | R212: ='HOJA GENERAL DE DATOS'!P188 -> 0 | AA212: 13 | AB212: 1
A213: 4 | B213: =CONCATENATE('HOJA GENERAL DE DATOS'!B189,'HOJA GENERAL DE DATOS'!C189,'HOJA GENERAL DE DATOS'!D189,'HOJA GENERAL DE DATOS'!E189) -> 0000 | C213: 4 | D213: ='HOJA GENERAL DE DATOS'!B189 -> 0 | E213: ='HOJA GENERAL DE DATOS'!C189 -> 0 | F213: ='HOJA GENERAL DE DATOS'!D189 -> 0 | G213: ='HOJA GENERAL DE DATOS'!E189 -> 0 | H213: ='HOJA GENERAL DE DATOS'!F189 -> 0 | I213: ='HOJA GENERAL DE DATOS'!G189 -> 0 | J213: ='HOJA GENERAL DE DATOS'!H189 -> 0 | K213: ='HOJA GENERAL DE DATOS'!I189 -> 0 | L213: ='HOJA GENERAL DE DATOS'!J189 -> 0 | M213: ='HOJA GENERAL DE DATOS'!K189 -> 0 | N213: ='HOJA GENERAL DE DATOS'!L189 -> 0 | O213: ='HOJA GENERAL DE DATOS'!M189 -> 0 | P213: ='HOJA GENERAL DE DATOS'!N189 -> 0 | Q213: ='HOJA GENERAL DE DATOS'!O189 -> 0 | R213: ='HOJA GENERAL DE DATOS'!P189 -> 0 | AA213: 14 | AB213: 1
A214: 5 | B214: =CONCATENATE('HOJA GENERAL DE DATOS'!B190,'HOJA GENERAL DE DATOS'!C190,'HOJA GENERAL DE DATOS'!D190,'HOJA GENERAL DE DATOS'!E190) -> 0000 | C214: 5 | D214: ='HOJA GENERAL DE DATOS'!B190 -> 0 | E214: ='HOJA GENERAL DE DATOS'!C190 -> 0 | F214: ='HOJA GENERAL DE DATOS'!D190 -> 0 | G214: ='HOJA GENERAL DE DATOS'!E190 -> 0 | H214: ='HOJA GENERAL DE DATOS'!F190 -> 0 | I214: ='HOJA GENERAL DE DATOS'!G190 -> 0 | J214: ='HOJA GENERAL DE DATOS'!H190 -> 0 | K214: ='HOJA GENERAL DE DATOS'!I190 -> 0 | L214: ='HOJA GENERAL DE DATOS'!J190 -> 0 | M214: ='HOJA GENERAL DE DATOS'!K190 -> 0 | N214: ='HOJA GENERAL DE DATOS'!L190 -> 0 | O214: ='HOJA GENERAL DE DATOS'!M190 -> 0 | P214: ='HOJA GENERAL DE DATOS'!N190 -> 0 | Q214: ='HOJA GENERAL DE DATOS'!O190 -> 0 | R214: ='HOJA GENERAL DE DATOS'!P190 -> 0 | AA214: 14.99 | AB214: 1
A215: 6 | B215: =CONCATENATE('HOJA GENERAL DE DATOS'!B191,'HOJA GENERAL DE DATOS'!C191,'HOJA GENERAL DE DATOS'!D191,'HOJA GENERAL DE DATOS'!E191) -> 0000 | C215: 6 | D215: ='HOJA GENERAL DE DATOS'!B191 -> 0 | E215: ='HOJA GENERAL DE DATOS'!C191 -> 0 | F215: ='HOJA GENERAL DE DATOS'!D191 -> 0 | G215: ='HOJA GENERAL DE DATOS'!E191 -> 0 | H215: ='HOJA GENERAL DE DATOS'!F191 -> 0 | I215: ='HOJA GENERAL DE DATOS'!G191 -> 0 | J215: ='HOJA GENERAL DE DATOS'!H191 -> 0 | K215: ='HOJA GENERAL DE DATOS'!I191 -> 0 | L215: ='HOJA GENERAL DE DATOS'!J191 -> 0 | M215: ='HOJA GENERAL DE DATOS'!K191 -> 0 | N215: ='HOJA GENERAL DE DATOS'!L191 -> 0 | O215: ='HOJA GENERAL DE DATOS'!M191 -> 0 | P215: ='HOJA GENERAL DE DATOS'!N191 -> 0 | Q215: ='HOJA GENERAL DE DATOS'!O191 -> 0 | R215: ='HOJA GENERAL DE DATOS'!P191 -> 0 | AA215: 15 | AB215: 2
A216: 7 | B216: =CONCATENATE('HOJA GENERAL DE DATOS'!B192,'HOJA GENERAL DE DATOS'!C192,'HOJA GENERAL DE DATOS'!D192,'HOJA GENERAL DE DATOS'!E192) -> 0000 | C216: 7 | D216: ='HOJA GENERAL DE DATOS'!B192 -> 0 | E216: ='HOJA GENERAL DE DATOS'!C192 -> 0 | F216: ='HOJA GENERAL DE DATOS'!D192 -> 0 | G216: ='HOJA GENERAL DE DATOS'!E192 -> 0 | H216: ='HOJA GENERAL DE DATOS'!F192 -> 0 | I216: ='HOJA GENERAL DE DATOS'!G192 -> 0 | J216: ='HOJA GENERAL DE DATOS'!H192 -> 0 | K216: ='HOJA GENERAL DE DATOS'!I192 -> 0 | L216: ='HOJA GENERAL DE DATOS'!J192 -> 0 | M216: ='HOJA GENERAL DE DATOS'!K192 -> 0 | N216: ='HOJA GENERAL DE DATOS'!L192 -> 0 | O216: ='HOJA GENERAL DE DATOS'!M192 -> 0 | P216: ='HOJA GENERAL DE DATOS'!N192 -> 0 | Q216: ='HOJA GENERAL DE DATOS'!O192 -> 0 | R216: ='HOJA GENERAL DE DATOS'!P192 -> 0 | AA216: 16 | AB216: 2
A217: 8 | B217: =CONCATENATE('HOJA GENERAL DE DATOS'!B193,'HOJA GENERAL DE DATOS'!C193,'HOJA GENERAL DE DATOS'!D193,'HOJA GENERAL DE DATOS'!E193) -> 0000 | C217: 8 | D217: ='HOJA GENERAL DE DATOS'!B193 -> 0 | E217: ='HOJA GENERAL DE DATOS'!C193 -> 0 | F217: ='HOJA GENERAL DE DATOS'!D193 -> 0 | G217: ='HOJA GENERAL DE DATOS'!E193 -> 0 | H217: ='HOJA GENERAL DE DATOS'!F193 -> 0 | I217: ='HOJA GENERAL DE DATOS'!G193 -> 0 | J217: ='HOJA GENERAL DE DATOS'!H193 -> 0 | K217: ='HOJA GENERAL DE DATOS'!I193 -> 0 | L217: ='HOJA GENERAL DE DATOS'!J193 -> 0 | M217: ='HOJA GENERAL DE DATOS'!K193 -> 0 | N217: ='HOJA GENERAL DE DATOS'!L193 -> 0 | O217: ='HOJA GENERAL DE DATOS'!M193 -> 0 | P217: ='HOJA GENERAL DE DATOS'!N193 -> 0 | Q217: ='HOJA GENERAL DE DATOS'!O193 -> 0 | R217: ='HOJA GENERAL DE DATOS'!P193 -> 0 | AA217: 17.99 | AB217: 2
A218: 9 | B218: =CONCATENATE('HOJA GENERAL DE DATOS'!B194,'HOJA GENERAL DE DATOS'!C194,'HOJA GENERAL DE DATOS'!D194,'HOJA GENERAL DE DATOS'!E194) -> 0000 | C218: 9 | D218: ='HOJA GENERAL DE DATOS'!B194 -> 0 | E218: ='HOJA GENERAL DE DATOS'!C194 -> 0 | F218: ='HOJA GENERAL DE DATOS'!D194 -> 0 | G218: ='HOJA GENERAL DE DATOS'!E194 -> 0 | H218: ='HOJA GENERAL DE DATOS'!F194 -> 0 | I218: ='HOJA GENERAL DE DATOS'!G194 -> 0 | J218: ='HOJA GENERAL DE DATOS'!H194 -> 0 | K218: ='HOJA GENERAL DE DATOS'!I194 -> 0 | L218: ='HOJA GENERAL DE DATOS'!J194 -> 0 | M218: ='HOJA GENERAL DE DATOS'!K194 -> 0 | N218: ='HOJA GENERAL DE DATOS'!L194 -> 0 | O218: ='HOJA GENERAL DE DATOS'!M194 -> 0 | P218: ='HOJA GENERAL DE DATOS'!N194 -> 0 | Q218: ='HOJA GENERAL DE DATOS'!O194 -> 0 | R218: ='HOJA GENERAL DE DATOS'!P194 -> 0 | AA218: 18 | AB218: 3
A219: 10 | B219: =CONCATENATE('HOJA GENERAL DE DATOS'!B195,'HOJA GENERAL DE DATOS'!C195,'HOJA GENERAL DE DATOS'!D195,'HOJA GENERAL DE DATOS'!E195) -> 0000 | C219: 10 | D219: ='HOJA GENERAL DE DATOS'!B195 -> 0 | E219: ='HOJA GENERAL DE DATOS'!C195 -> 0 | F219: ='HOJA GENERAL DE DATOS'!D195 -> 0 | G219: ='HOJA GENERAL DE DATOS'!E195 -> 0 | H219: ='HOJA GENERAL DE DATOS'!F195 -> 0 | I219: ='HOJA GENERAL DE DATOS'!G195 -> 0 | J219: ='HOJA GENERAL DE DATOS'!H195 -> 0 | K219: ='HOJA GENERAL DE DATOS'!I195 -> 0 | L219: ='HOJA GENERAL DE DATOS'!J195 -> 0 | M219: ='HOJA GENERAL DE DATOS'!K195 -> 0 | N219: ='HOJA GENERAL DE DATOS'!L195 -> 0 | O219: ='HOJA GENERAL DE DATOS'!M195 -> 0 | P219: ='HOJA GENERAL DE DATOS'!N195 -> 0 | Q219: ='HOJA GENERAL DE DATOS'!O195 -> 0 | R219: ='HOJA GENERAL DE DATOS'!P195 -> 0 | AA219: 20.99 | AB219: 3
A220: 11 | B220: =CONCATENATE('HOJA GENERAL DE DATOS'!B196,'HOJA GENERAL DE DATOS'!C196,'HOJA GENERAL DE DATOS'!D196,'HOJA GENERAL DE DATOS'!E196) -> 0000 | C220: 11 | D220: ='HOJA GENERAL DE DATOS'!B196 -> 0 | E220: ='HOJA GENERAL DE DATOS'!C196 -> 0 | F220: ='HOJA GENERAL DE DATOS'!D196 -> 0 | G220: ='HOJA GENERAL DE DATOS'!E196 -> 0 | H220: ='HOJA GENERAL DE DATOS'!F196 -> 0 | I220: ='HOJA GENERAL DE DATOS'!G196 -> 0 | J220: ='HOJA GENERAL DE DATOS'!H196 -> 0 | K220: ='HOJA GENERAL DE DATOS'!I196 -> 0 | L220: ='HOJA GENERAL DE DATOS'!J196 -> 0 | M220: ='HOJA GENERAL DE DATOS'!K196 -> 0 | N220: ='HOJA GENERAL DE DATOS'!L196 -> 0 | O220: ='HOJA GENERAL DE DATOS'!M196 -> 0 | P220: ='HOJA GENERAL DE DATOS'!N196 -> 0 | Q220: ='HOJA GENERAL DE DATOS'!O196 -> 0 | R220: ='HOJA GENERAL DE DATOS'!P196 -> 0 | AA220: 21 | AB220: 4
A221: 12 | B221: =CONCATENATE('HOJA GENERAL DE DATOS'!B197,'HOJA GENERAL DE DATOS'!C197,'HOJA GENERAL DE DATOS'!D197,'HOJA GENERAL DE DATOS'!E197) -> 0000 | C221: 12 | D221: ='HOJA GENERAL DE DATOS'!B197 -> 0 | E221: ='HOJA GENERAL DE DATOS'!C197 -> 0 | F221: ='HOJA GENERAL DE DATOS'!D197 -> 0 | G221: ='HOJA GENERAL DE DATOS'!E197 -> 0 | H221: ='HOJA GENERAL DE DATOS'!F197 -> 0 | I221: ='HOJA GENERAL DE DATOS'!G197 -> 0 | J221: ='HOJA GENERAL DE DATOS'!H197 -> 0 | K221: ='HOJA GENERAL DE DATOS'!I197 -> 0 | L221: ='HOJA GENERAL DE DATOS'!J197 -> 0 | M221: ='HOJA GENERAL DE DATOS'!K197 -> 0 | N221: ='HOJA GENERAL DE DATOS'!L197 -> 0 | O221: ='HOJA GENERAL DE DATOS'!M197 -> 0 | P221: ='HOJA GENERAL DE DATOS'!N197 -> 0 | Q221: ='HOJA GENERAL DE DATOS'!O197 -> 0 | R221: ='HOJA GENERAL DE DATOS'!P197 -> 0 | AA221: 22 | AB221: 4
A222: 13 | B222: =CONCATENATE('HOJA GENERAL DE DATOS'!B198,'HOJA GENERAL DE DATOS'!C198,'HOJA GENERAL DE DATOS'!D198,'HOJA GENERAL DE DATOS'!E198) -> 0000 | C222: 13 | D222: ='HOJA GENERAL DE DATOS'!B198 -> 0 | E222: ='HOJA GENERAL DE DATOS'!C198 -> 0 | F222: ='HOJA GENERAL DE DATOS'!D198 -> 0 | G222: ='HOJA GENERAL DE DATOS'!E198 -> 0 | H222: ='HOJA GENERAL DE DATOS'!F198 -> 0 | I222: ='HOJA GENERAL DE DATOS'!G198 -> 0 | J222: ='HOJA GENERAL DE DATOS'!H198 -> 0 | K222: ='HOJA GENERAL DE DATOS'!I198 -> 0 | L222: ='HOJA GENERAL DE DATOS'!J198 -> 0 | M222: ='HOJA GENERAL DE DATOS'!K198 -> 0 | N222: ='HOJA GENERAL DE DATOS'!L198 -> 0 | O222: ='HOJA GENERAL DE DATOS'!M198 -> 0 | P222: ='HOJA GENERAL DE DATOS'!N198 -> 0 | Q222: ='HOJA GENERAL DE DATOS'!O198 -> 0 | R222: ='HOJA GENERAL DE DATOS'!P198 -> 0 | AA222: 23.99 | AB222: 4
A223: 14 | B223: =CONCATENATE('HOJA GENERAL DE DATOS'!B199,'HOJA GENERAL DE DATOS'!C199,'HOJA GENERAL DE DATOS'!D199,'HOJA GENERAL DE DATOS'!E199) -> 0000 | C223: 14 | D223: ='HOJA GENERAL DE DATOS'!B199 -> 0 | E223: ='HOJA GENERAL DE DATOS'!C199 -> 0 | F223: ='HOJA GENERAL DE DATOS'!D199 -> 0 | G223: ='HOJA GENERAL DE DATOS'!E199 -> 0 | H223: ='HOJA GENERAL DE DATOS'!F199 -> 0 | I223: ='HOJA GENERAL DE DATOS'!G199 -> 0 | J223: ='HOJA GENERAL DE DATOS'!H199 -> 0 | K223: ='HOJA GENERAL DE DATOS'!I199 -> 0 | L223: ='HOJA GENERAL DE DATOS'!J199 -> 0 | M223: ='HOJA GENERAL DE DATOS'!K199 -> 0 | N223: ='HOJA GENERAL DE DATOS'!L199 -> 0 | O223: ='HOJA GENERAL DE DATOS'!M199 -> 0 | P223: ='HOJA GENERAL DE DATOS'!N199 -> 0 | Q223: ='HOJA GENERAL DE DATOS'!O199 -> 0 | R223: ='HOJA GENERAL DE DATOS'!P199 -> 0 | AA223: 24 | AB223: 5
A224: 15 | B224: =CONCATENATE('HOJA GENERAL DE DATOS'!B200,'HOJA GENERAL DE DATOS'!C200,'HOJA GENERAL DE DATOS'!D200,'HOJA GENERAL DE DATOS'!E200) -> 0000 | C224: 15 | D224: ='HOJA GENERAL DE DATOS'!B200 -> 0 | E224: ='HOJA GENERAL DE DATOS'!C200 -> 0 | F224: ='HOJA GENERAL DE DATOS'!D200 -> 0 | G224: ='HOJA GENERAL DE DATOS'!E200 -> 0 | H224: ='HOJA GENERAL DE DATOS'!F200 -> 0 | I224: ='HOJA GENERAL DE DATOS'!G200 -> 0 | J224: ='HOJA GENERAL DE DATOS'!H200 -> 0 | K224: ='HOJA GENERAL DE DATOS'!I200 -> 0 | L224: ='HOJA GENERAL DE DATOS'!J200 -> 0 | M224: ='HOJA GENERAL DE DATOS'!K200 -> 0 | N224: ='HOJA GENERAL DE DATOS'!L200 -> 0 | O224: ='HOJA GENERAL DE DATOS'!M200 -> 0 | P224: ='HOJA GENERAL DE DATOS'!N200 -> 0 | Q224: ='HOJA GENERAL DE DATOS'!O200 -> 0 | R224: ='HOJA GENERAL DE DATOS'!P200 -> 0 | AA224: 25 | AB224: 5
A225: 16 | B225: =CONCATENATE('HOJA GENERAL DE DATOS'!B201,'HOJA GENERAL DE DATOS'!C201,'HOJA GENERAL DE DATOS'!D201,'HOJA GENERAL DE DATOS'!E201) -> 0000 | C225: 16 | D225: ='HOJA GENERAL DE DATOS'!B201 -> 0 | E225: ='HOJA GENERAL DE DATOS'!C201 -> 0 | F225: ='HOJA GENERAL DE DATOS'!D201 -> 0 | G225: ='HOJA GENERAL DE DATOS'!E201 -> 0 | H225: ='HOJA GENERAL DE DATOS'!F201 -> 0 | I225: ='HOJA GENERAL DE DATOS'!G201 -> 0 | J225: ='HOJA GENERAL DE DATOS'!H201 -> 0 | K225: ='HOJA GENERAL DE DATOS'!I201 -> 0 | L225: ='HOJA GENERAL DE DATOS'!J201 -> 0 | M225: ='HOJA GENERAL DE DATOS'!K201 -> 0 | N225: ='HOJA GENERAL DE DATOS'!L201 -> 0 | O225: ='HOJA GENERAL DE DATOS'!M201 -> 0 | P225: ='HOJA GENERAL DE DATOS'!N201 -> 0 | Q225: ='HOJA GENERAL DE DATOS'!O201 -> 0 | R225: ='HOJA GENERAL DE DATOS'!P201 -> 0 | AA225: 26.99 | AB225: 5
A226: 17 | B226: =CONCATENATE('HOJA GENERAL DE DATOS'!B202,'HOJA GENERAL DE DATOS'!C202,'HOJA GENERAL DE DATOS'!D202,'HOJA GENERAL DE DATOS'!E202) -> 0000 | C226: 17 | D226: ='HOJA GENERAL DE DATOS'!B202 -> 0 | E226: ='HOJA GENERAL DE DATOS'!C202 -> 0 | F226: ='HOJA GENERAL DE DATOS'!D202 -> 0 | G226: ='HOJA GENERAL DE DATOS'!E202 -> 0 | H226: ='HOJA GENERAL DE DATOS'!F202 -> 0 | I226: ='HOJA GENERAL DE DATOS'!G202 -> 0 | J226: ='HOJA GENERAL DE DATOS'!H202 -> 0 | K226: ='HOJA GENERAL DE DATOS'!I202 -> 0 | L226: ='HOJA GENERAL DE DATOS'!J202 -> 0 | M226: ='HOJA GENERAL DE DATOS'!K202 -> 0 | N226: ='HOJA GENERAL DE DATOS'!L202 -> 0 | O226: ='HOJA GENERAL DE DATOS'!M202 -> 0 | P226: ='HOJA GENERAL DE DATOS'!N202 -> 0 | Q226: ='HOJA GENERAL DE DATOS'!O202 -> 0 | R226: ='HOJA GENERAL DE DATOS'!P202 -> 0 | AA226: 27 | AB226: 6
A227: 18 | B227: =CONCATENATE('HOJA GENERAL DE DATOS'!B203,'HOJA GENERAL DE DATOS'!C203,'HOJA GENERAL DE DATOS'!D203,'HOJA GENERAL DE DATOS'!E203) -> 0000 | C227: 18 | D227: ='HOJA GENERAL DE DATOS'!B203 -> 0 | E227: ='HOJA GENERAL DE DATOS'!C203 -> 0 | F227: ='HOJA GENERAL DE DATOS'!D203 -> 0 | G227: ='HOJA GENERAL DE DATOS'!E203 -> 0 | H227: ='HOJA GENERAL DE DATOS'!F203 -> 0 | I227: ='HOJA GENERAL DE DATOS'!G203 -> 0 | J227: ='HOJA GENERAL DE DATOS'!H203 -> 0 | K227: ='HOJA GENERAL DE DATOS'!I203 -> 0 | L227: ='HOJA GENERAL DE DATOS'!J203 -> 0 | M227: ='HOJA GENERAL DE DATOS'!K203 -> 0 | N227: ='HOJA GENERAL DE DATOS'!L203 -> 0 | O227: ='HOJA GENERAL DE DATOS'!M203 -> 0 | P227: ='HOJA GENERAL DE DATOS'!N203 -> 0 | Q227: ='HOJA GENERAL DE DATOS'!O203 -> 0 | R227: ='HOJA GENERAL DE DATOS'!P203 -> 0 | AA227: 28 | AB227: 6
A228: 19 | B228: =CONCATENATE('HOJA GENERAL DE DATOS'!B204,'HOJA GENERAL DE DATOS'!C204,'HOJA GENERAL DE DATOS'!D204,'HOJA GENERAL DE DATOS'!E204) -> 0000 | C228: 19 | D228: ='HOJA GENERAL DE DATOS'!B204 -> 0 | E228: ='HOJA GENERAL DE DATOS'!C204 -> 0 | F228: ='HOJA GENERAL DE DATOS'!D204 -> 0 | G228: ='HOJA GENERAL DE DATOS'!E204 -> 0 | H228: ='HOJA GENERAL DE DATOS'!F204 -> 0 | I228: ='HOJA GENERAL DE DATOS'!G204 -> 0 | J228: ='HOJA GENERAL DE DATOS'!H204 -> 0 | K228: ='HOJA GENERAL DE DATOS'!I204 -> 0 | L228: ='HOJA GENERAL DE DATOS'!J204 -> 0 | M228: ='HOJA GENERAL DE DATOS'!K204 -> 0 | N228: ='HOJA GENERAL DE DATOS'!L204 -> 0 | O228: ='HOJA GENERAL DE DATOS'!M204 -> 0 | P228: ='HOJA GENERAL DE DATOS'!N204 -> 0 | Q228: ='HOJA GENERAL DE DATOS'!O204 -> 0 | R228: ='HOJA GENERAL DE DATOS'!P204 -> 0 | AA228: 29.99 | AB228: 6
A229: 20 | B229: =CONCATENATE('HOJA GENERAL DE DATOS'!B205,'HOJA GENERAL DE DATOS'!C205,'HOJA GENERAL DE DATOS'!D205,'HOJA GENERAL DE DATOS'!E205) -> 2MACHOS&HEMBRASENTREFINOINDEFINIDO | C229: 20 | D229: ='HOJA GENERAL DE DATOS'!B205 -> 2 | E229: ='HOJA GENERAL DE DATOS'!C205 -> MACHOS&HEMBRAS | F229: ='HOJA GENERAL DE DATOS'!D205 -> ENTREFINO | G229: ='HOJA GENERAL DE DATOS'!E205 -> INDEFINIDO | H229: ='HOJA GENERAL DE DATOS'!F205 -> 1 | I229: ='HOJA GENERAL DE DATOS'!G205 -> 54 | J229: ='HOJA GENERAL DE DATOS'!H205 -> 12600 | K229: ='HOJA GENERAL DE DATOS'!I205 -> 22400 | L229: ='HOJA GENERAL DE DATOS'!J205 -> 239 | M229: ='HOJA GENERAL DE DATOS'!K205 -> 3240 | N229: ='HOJA GENERAL DE DATOS'!L205 -> 0 | O229: ='HOJA GENERAL DE DATOS'!M205 -> 41.0041841 | P229: ='HOJA GENERAL DE DATOS'!N205 -> 774.36 | Q229: ='HOJA GENERAL DE DATOS'!O205 -> 0 | R229: ='HOJA GENERAL DE DATOS'!P205 -> 0 | AA229: 30 | AB229: 7
... 557 more rows

Sheet ECUACIONES
A1: ECUACIONES PRECIOS CORDEROS
A10: SEMANA | F10: MES
A11: PRECIO A 15kG | B11: PRECIO A 25KG | C11: PRECIO FINAL | F11: PRECIO A 15kG | G11: PRECIO A 25KG | H11: PRECIO FINAL
A12: =('GEST CHEQ SEM'!G11/'GEST CHEQ SEM'!G12)*15 ->  | B12: =(0.8445*A12)+23.98 ->  | C12: =(B12/25)*'GEST CHEQ SEM'!G13 ->  | F12: ='GEST CHEQ MES'!G11/'GEST CHEQ MES'!G12 ->  | G12: =(0.8445*F12)+23.98 ->  | H12: =(G12/25)*'GEST CHEQ MES'!G13 -> 
A14: ECUACIONES CALCULO MORTALIDAD POR COEF GRANJA
B16: CEBO LARGO
A25: ECUACIONES CALCULO MORTALIDAD POR AFORO
D34: AFORO(%) | E34: %MORT | I34: COEF GRANJA | J34: %MORT
C35: CEBO LARGO | D35: ='GEST CHEQ MES'!D35 ->  | E35: =(0.0095*D35)+0.003 ->  | H35: CEBO LARGO | I35: ='GEST CHEQ MES'!C24 ->  | J35: =(-0.0198*I35)+0.0194 -> 
C36: CEBO CORTO | D36: ='GEST CHEQ MES'!D35 ->  | E36: =(0.005*D36) ->  | H36: CEBO CORTO | I36: ='GEST CHEQ MES'!C24 ->  | J36: =(-0.0195*I36)+0.0181 -> 
B37: SOLUCION | C37: =VLOOKUP('ENLACES DATOS'!C97,C35:E36,3,FALSE) ->  | G37: SOLUCION | H37: =VLOOKUP('ENLACES DATOS'!C97,H35:J36,3,FALSE) -> 
A41: ECUACIONES CALCULO GMD E IC LINEAL
B43: CALCULO LINEAL (ECUACIONES REGRESION) | D43: COD
D45: COD | E45: GMD ENTRADA 1 | F45: GMD ENTRADA 2 | G45: GMD SALIDA 1 | H45: GMD SALIDA 2 | I45: FC SEXO GMD | J45: FC RAZA GMD | K45: FC EPOCA GMD | L45: IC ENTRADA 1 | M45: IC ENTRADA 2 | N45: IC SALIDA 1 | O45: IC SALIDA 2 | P45: FC SEXO IC | Q45: FC RAZA IC | R45: FC EPOCA IC
B46: 1 | C46: MACHOSCARNICO&CRUZADOINVIERNO | D46: 1 | E46: 0.0008 | F46: 0.3091 | G46: 0.0016 | H46: 0.2876 | I46: 1.083291853 | J46: 1 | K46: 1 | L46: 0.1171 | M46: 0.9815 | N46: 0.1006 | O46: 0.6679 | P46: 0.9722436055 | Q46: 1 | R46: 1
B47: 1 | C47: MACHOSCARNICO&CRUZADOVERANO | D47: 2 | E47: 0.0008 | F47: 0.3091 | G47: 0.0016 | H47: 0.2876 | I47: 1.083291853 | J47: 1 | K47: 0.9597266434 | L47: 0.1171 | M47: 0.9815 | N47: 0.1006 | O47: 0.6679 | P47: 0.9722436055 | Q47: 1 | R47: 1.00668769
B48: 1 | C48: MACHOSCARNICO&CRUZADOINDEFINIDO | D48: 3 | E48: 0.0008 | F48: 0.3091 | G48: 0.0016 | H48: 0.2876 | I48: 1.083291853 | J48: 1 | K48: 0.9597266434 | L48: 0.1171 | M48: 0.9815 | N48: 0.1006 | O48: 0.6679 | P48: 0.9722436055 | Q48: 1 | R48: 1.00668769
B49: 1 | C49: MACHOSENTREFINOINVIERNO | D49: 4 | E49: 0.0008 | F49: 0.3091 | G49: 0.0016 | H49: 0.2876 | I49: 1.083291853 | J49: 0.9312701847 | K49: 1 | L49: 0.1171 | M49: 0.9815 | N49: 0.1006 | O49: 0.6679 | P49: 0.9722436055 | Q49: 1.055239676 | R49: 1
B50: 1 | C50: MACHOSENTREFINOVERANO | D50: 5 | E50: 0.0008 | F50: 0.3091 | G50: 0.0016 | H50: 0.2876 | I50: 1.083291853 | J50: 0.9312701847 | K50: 0.9597266434 | L50: 0.1171 | M50: 0.9815 | N50: 0.1006 | O50: 0.6679 | P50: 0.9722436055 | Q50: 1.055239676 | R50: 1.00668769
B51: 1 | C51: MACHOSENTREFINOINDEFINIDO | D51: 6 | E51: 0.0008 | F51: 0.3091 | G51: 0.0016 | H51: 0.2876 | I51: 1.083291853 | J51: 0.9312701847 | K51: 0.9597266434 | L51: 0.1171 | M51: 0.9815 | N51: 0.1006 | O51: 0.6679 | P51: 0.9722436055 | Q51: 1.055239676 | R51: 1.00668769
B52: 1 | C52: MACHOSINDEFINIDAINVIERNO | D52: 7 | E52: 0.0008 | F52: 0.3091 | G52: 0.0016 | H52: 0.2876 | I52: 1.083291853 | J52: 0.9312701847 | K52: 1 | L52: 0.1171 | M52: 0.9815 | N52: 0.1006 | O52: 0.6679 | P52: 0.9722436055 | Q52: 1.055239676 | R52: 1
B53: 1 | C53: MACHOSINDEFINIDAVERANO | D53: 8 | E53: 0.0008 | F53: 0.3091 | G53: 0.0016 | H53: 0.2876 | I53: 1.083291853 | J53: 0.9312701847 | K53: 0.9597266434 | L53: 0.1171 | M53: 0.9815 | N53: 0.1006 | O53: 0.6679 | P53: 0.9722436055 | Q53: 1.055239676 | R53: 1.00668769
B54: 1 | C54: MACHOSINDEFINIDAINDEFINIDO | D54: 9 | E54: 0.0008 | F54: 0.3091 | G54: 0.0016 | H54: 0.2876 | I54: 1.083291853 | J54: 0.9312701847 | K54: 0.9597266434 | L54: 0.1171 | M54: 0.9815 | N54: 0.1006 | O54: 0.6679 | P54: 0.9722436055 | Q54: 1.055239676 | R54: 1.00668769
B55: 1 | C55: HEMBRASCARNICO&CRUZADOINVIERNO | D55: 10 | E55: 0.0008 | F55: 0.3091 | G55: 0.0016 | H55: 0.2876 | I55: 0.8844208749 | J55: 1.073802229 | K55: 1 | L55: 0.1171 | M55: 0.9815 | N55: 0.1006 | O55: 0.6679 | P55: 1.103699152 | Q55: 0.9476520102 | R55: 1
B56: 1 | C56: HEMBRASCARNICO&CRUZADOVERANO | D56: 11 | E56: 0.0008 | F56: 0.3091 | G56: 0.0016 | H56: 0.2876 | I56: 0.8844208749 | J56: 1.073802229 | K56: 0.9597266434 | L56: 0.1171 | M56: 0.9815 | N56: 0.1006 | O56: 0.6679 | P56: 1.103699152 | Q56: 0.9476520102 | R56: 1.00668769
B57: 1 | C57: HEMBRASCARNICO&CRUZADOINDEFINIDO | D57: 12 | E57: 0.0008 | F57: 0.3091 | G57: 0.0016 | H57: 0.2876 | I57: 0.8844208749 | J57: 1.073802229 | K57: 0.9597266434 | L57: 0.1171 | M57: 0.9815 | N57: 0.1006 | O57: 0.6679 | P57: 1.103699152 | Q57: 0.9476520102 | R57: 1.00668769
B58: 1 | C58: HEMBRASENTREFINOINVIERNO | D58: 13 | E58: 0.0008 | F58: 0.3091 | G58: 0.0016 | H58: 0.2876 | I58: 0.8844208749 | J58: 1 | K58: 1 | L58: 0.1171 | M58: 0.9815 | N58: 0.1006 | O58: 0.6679 | P58: 1.103699152 | Q58: 1 | R58: 1
B59: 1 | C59: HEMBRASENTREFINOVERANO | D59: 14 | E59: 0.0008 | F59: 0.3091 | G59: 0.0016 | H59: 0.2876 | I59: 0.8844208749 | J59: 1 | K59: 0.9597266434 | L59: 0.1171 | M59: 0.9815 | N59: 0.1006 | O59: 0.6679 | P59: 1.103699152 | Q59: 1 | R59: 1.00668769
B60: 1 | C60: HEMBRASENTREFINOINDEFINIDO | D60: 15 | E60: 0.0008 | F60: 0.3091 | G60: 0.0016 | H60: 0.2876 | I60: 0.8844208749 | J60: 1 | K60: 0.9597266434 | L60: 0.1171 | M60: 0.9815 | N60: 0.1006 | O60: 0.6679 | P60: 1.103699152 | Q60: 1 | R60: 1.00668769
B61: 1 | C61: HEMBRASINDEFINIDAINVIERNO | D61: 16 | E61: 0.0008 | F61: 0.3091 | G61: 0.0016 | H61: 0.2876 | I61: 0.8844208749 | J61: 1 | K61: 1 | L61: 0.1171 | M61: 0.9815 | N61: 0.1006 | O61: 0.6679 | P61: 1.103699152 | Q61: 1 | R61: 1
B62: 1 | C62: HEMBRASINDEFINIDAVERANO | D62: 17 | E62: 0.0008 | F62: 0.3091 | G62: 0.0016 | H62: 0.2876 | I62: 0.8844208749 | J62: 1 | K62: 0.9597266434 | L62: 0.1171 | M62: 0.9815 | N62: 0.1006 | O62: 0.6679 | P62: 1.103699152 | Q62: 1 | R62: 1.00668769
B63: 1 | C63: HEMBRASINDEFINIDAINDEFINIDO | D63: 18 | E63: 0.0008 | F63: 0.3091 | G63: 0.0016 | H63: 0.2876 | I63: 0.8844208749 | J63: 1 | K63: 0.9597266434 | L63: 0.1171 | M63: 0.9815 | N63: 0.1006 | O63: 0.6679 | P63: 1.103699152 | Q63: 1 | R63: 1.00668769
B64: 1 | C64: MACHOS&HEMBRASCARNICO&CRUZADOINVIERNO | D64: 19 | E64: 0.0008 | F64: 0.3091 | G64: 0.0016 | H64: 0.2876 | I64: 1 | J64: 1 | K64: 1 | L64: 0.1171 | M64: 0.9815 | N64: 0.1006 | O64: 0.6679 | P64: 1 | Q64: 1 | R64: 1
B65: 1 | C65: MACHOS&HEMBRASCARNICO&CRUZADOVERANO | D65: 20 | E65: 0.0008 | F65: 0.3091 | G65: 0.0016 | H65: 0.2876 | I65: 1 | J65: 1 | K65: 0.9597266434 | L65: 0.1171 | M65: 0.9815 | N65: 0.1006 | O65: 0.6679 | P65: 1 | Q65: 1 | R65: 1.00668769
B66: 1 | C66: MACHOS&HEMBRASCARNICO&CRUZADOINDEFINIDO | D66: 21 | E66: 0.0008 | F66: 0.3091 | G66: 0.0016 | H66: 0.2876 | I66: 1 | J66: 1 | K66: 0.9597266434 | L66: 0.1171 | M66: 0.9815 | N66: 0.1006 | O66: 0.6679 | P66: 1 | Q66: 1 | R66: 1.00668769
B67: 1 | C67: MACHOS&HEMBRASENTREFINOINVIERNO | D67: 22 | E67: 0.0008 | F67: 0.3091 | G67: 0.0016 | H67: 0.2876 | I67: 1 | J67: 0.9312701847 | K67: 1 | L67: 0.1171 | M67: 0.9815 | N67: 0.1006 | O67: 0.6679 | P67: 1 | Q67: 1.055239676 | R67: 1
B68: 1 | C68: MACHOS&HEMBRASENTREFINOVERANO | D68: 23 | E68: 0.0008 | F68: 0.3091 | G68: 0.0016 | H68: 0.2876 | I68: 1 | J68: 0.9312701847 | K68: 0.9597266434 | L68: 0.1171 | M68: 0.9815 | N68: 0.1006 | O68: 0.6679 | P68: 1 | Q68: 1.055239676 | R68: 1.00668769
B69: 1 | C69: MACHOS&HEMBRASENTREFINOINDEFINIDO | D69: 24 | E69: 0.0008 | F69: 0.3091 | G69: 0.0016 | H69: 0.2876 | I69: 1 | J69: 0.9312701847 | K69: 0.9597266434 | L69: 0.1171 | M69: 0.9815 | N69: 0.1006 | O69: 0.6679 | P69: 1 | Q69: 1.055239676 | R69: 1.00668769
B70: 1 | C70: MACHOS&HEMBRASINDEFINIDAINVIERNO | D70: 25 | E70: 0.0008 | F70: 0.3091 | G70: 0.0016 | H70: 0.2876 | I70: 1 | J70: 0.9312701847 | K70: 1 | L70: 0.1171 | M70: 0.9815 | N70: 0.1006 | O70: 0.6679 | P70: 1 | Q70: 1.055239676 | R70: 1
B71: 1 | C71: MACHOS&HEMBRASINDEFINIDAVERANO | D71: 26 | E71: 0.0008 | F71: 0.3091 | G71: 0.0016 | H71: 0.2876 | I71: 1 | J71: 0.9312701847 | K71: 0.9597266434 | L71: 0.1171 | M71: 0.9815 | N71: 0.1006 | O71: 0.6679 | P71: 1 | Q71: 1.055239676 | R71: 1.00668769
B72: 1 | C72: MACHOS&HEMBRASINDEFINIDAINDEFINIDO | D72: 27 | E72: 0.0008 | F72: 0.3091 | G72: 0.0016 | H72: 0.2876 | I72: 1 | J72: 0.9312701847 | K72: 0.9597266434 | L72: 0.1171 | M72: 0.9815 | N72: 0.1006 | O72: 0.6679 | P72: 1 | Q72: 1.055239676 | R72: 1.00668769
A74: ECUACNINES NECESIDADES ENERGIA | V74: ENTREFINOS
D75: COD | E75: %GRASA 1 | F75: %GRASA 2 | G75: %PROTEINA | H75: F.CORR.SEXO | I75: MANT 1 | J75: CREC GRASA | K75: CREC PROT | L75: KCAL A UFV | M75: FACTOR COOR EPOCA | N75: FACTOR RECOM
C76: MACHOSCARNICO&CRUZADOINVIERNO | D76: 1 | E76: 0.0104 | F76: 0.062 | G76: 0.15 | H76: 1 | I76: 74 | J76: 9.5 | K76: 5.7 | L76: 1820 | M76: 1.03 | N76: 1 | V76: PESO | W76: 20 | X76: 25
C77: MACHOSCARNICO&CRUZADOVERANO | D77: 2 | E77: 0.0104 | F77: 0.062 | G77: 0.15 | H77: 1 | I77: 74 | J77: 9.5 | K77: 5.7 | L77: 1820 | M77: 1.05 | N77: 1 | V77: %GRASA | W77: 0.23 | X77: 0.278
C78: MACHOSCARNICO&CRUZADOINDEFINIDO | D78: 3 | E78: 0.0104 | F78: 0.062 | G78: 0.15 | H78: 1 | I78: 74 | J78: 9.5 | K78: 5.7 | L78: 1820 | M78: 1.01 | N78: 1
C79: MACHOSENTREFINOINVIERNO | D79: 4 | E79: 0.0096 | F79: 0.038 | G79: 0.15 | H79: 1 | I79: 74 | J79: 9.5 | K79: 5.7 | L79: 1820 | M79: 1.03 | N79: 1.08 | V79: CRUZADOS
C80: MACHOSENTREFINOVERANO | D80: 5 | E80: 0.0096 | F80: 0.038 | G80: 0.15 | H80: 1 | I80: 74 | J80: 9.5 | K80: 5.7 | L80: 1820 | M80: 1.05 | N80: 1.06
C81: MACHOSENTREFINOINDEFINIDO | D81: 6 | E81: 0.0096 | F81: 0.038 | G81: 0.15 | H81: 1 | I81: 74 | J81: 9.5 | K81: 5.7 | L81: 1820 | M81: 1.01 | N81: 1.06 | V81: PESO | W81: 20 | X81: 25
C82: MACHOSINDEFINIDAINVIERNO | D82: 7 | E82: 0.0096 | F82: 0.038 | G82: 0.15 | H82: 1 | I82: 74 | J82: 9.5 | K82: 5.7 | L82: 1820 | M82: 1.03 | N82: 1.02 | V82: %GRASA | W82: 0.18 | X82: 0.22
C83: MACHOSINDEFINIDAVERANO | D83: 8 | E83: 0.0096 | F83: 0.038 | G83: 0.15 | H83: 1 | I83: 74 | J83: 9.5 | K83: 5.7 | L83: 1820 | M83: 1.05 | N83: 1.02
C84: MACHOSINDEFINIDAINDEFINIDO | D84: 9 | E84: 0.0096 | F84: 0.038 | G84: 0.15 | H84: 1 | I84: 74 | J84: 9.5 | K84: 5.7 | L84: 1820 | M84: 1.01 | N84: 1.02
C85: HEMBRASCARNICO&CRUZADOINVIERNO | D85: 10 | E85: 0.0104 | F85: 0.062 | G85: 0.15 | H85: 1.1 | I85: 74 | J85: 9.5 | K85: 5.7 | L85: 1820 | M85: 1.03 | N85: 0.99
C86: HEMBRASCARNICO&CRUZADOVERANO | D86: 11 | E86: 0.0104 | F86: 0.062 | G86: 0.15 | H86: 1.1 | I86: 74 | J86: 9.5 | K86: 5.7 | L86: 1820 | M86: 1.05 | N86: 0.975
C87: HEMBRASCARNICO&CRUZADOINDEFINIDO | D87: 12 | E87: 0.0104 | F87: 0.062 | G87: 0.15 | H87: 1.1 | I87: 74 | J87: 9.5 | K87: 5.7 | L87: 1820 | M87: 1.01 | N87: 0.99
C88: HEMBRASENTREFINOINVIERNO | D88: 13 | E88: 0.0096 | F88: 0.038 | G88: 0.15 | H88: 1.1 | I88: 74 | J88: 9.5 | K88: 5.7 | L88: 1820 | M88: 1.03 | N88: 1.03
C89: HEMBRASENTREFINOVERANO | D89: 14 | E89: 0.0096 | F89: 0.038 | G89: 0.15 | H89: 1.1 | I89: 74 | J89: 9.5 | K89: 5.7 | L89: 1820 | M89: 1.05 | N89: 1.03
C90: HEMBRASENTREFINOINDEFINIDO | D90: 15 | E90: 0.0096 | F90: 0.038 | G90: 0.15 | H90: 1.1 | I90: 74 | J90: 9.5 | K90: 5.7 | L90: 1820 | M90: 1.01 | N90: 1.03
C91: HEMBRASINDEFINIDAINVIERNO | D91: 16 | E91: 0.0096 | F91: 0.038 | G91: 0.15 | H91: 1.1 | I91: 74 | J91: 9.5 | K91: 5.7 | L91: 1820 | M91: 1.03 | N91: 1.03
C92: HEMBRASINDEFINIDAVERANO | D92: 17 | E92: 0.0096 | F92: 0.038 | G92: 0.15 | H92: 1.1 | I92: 74 | J92: 9.5 | K92: 5.7 | L92: 1820 | M92: 1.05 | N92: 1.01
C93: HEMBRASINDEFINIDAINDEFINIDO | D93: 18 | E93: 0.0096 | F93: 0.038 | G93: 0.15 | H93: 1.1 | I93: 74 | J93: 9.5 | K93: 5.7 | L93: 1820 | M93: 1.01 | N93: 1.01
C94: MACHOS&HEMBRASCARNICO&CRUZADOINVIERNO | D94: 19 | E94: 0.0104 | F94: 0.062 | G94: 0.15 | H94: 1 | I94: 74 | J94: 9.5 | K94: 5.7 | L94: 1820 | M94: 1.03 | N94: 1
C95: MACHOS&HEMBRASCARNICO&CRUZADOVERANO | D95: 20 | E95: 0.0104 | F95: 0.062 | G95: 0.15 | H95: 1 | I95: 74 | J95: 9.5 | K95: 5.7 | L95: 1820 | M95: 1.05 | N95: 0.975
C96: MACHOS&HEMBRASCARNICO&CRUZADOINDEFINIDO | D96: 21 | E96: 0.0104 | F96: 0.062 | G96: 0.15 | H96: 1 | I96: 74 | J96: 9.5 | K96: 5.7 | L96: 1820 | M96: 1.01 | N96: 0.99
C97: MACHOS&HEMBRASENTREFINOINVIERNO | D97: 22 | E97: 0.0096 | F97: 0.038 | G97: 0.15 | H97: 1 | I97: 74 | J97: 9.5 | K97: 5.7 | L97: 1820 | M97: 1.03 | N97: 1.08
C98: MACHOS&HEMBRASENTREFINOVERANO | D98: 23 | E98: 0.0096 | F98: 0.038 | G98: 0.15 | H98: 1 | I98: 74 | J98: 9.5 | K98: 5.7 | L98: 1820 | M98: 1.05 | N98: 1.04
C99: MACHOS&HEMBRASENTREFINOINDEFINIDO | D99: 24 | E99: 0.0096 | F99: 0.038 | G99: 0.15 | H99: 1 | I99: 74 | J99: 9.5 | K99: 5.7 | L99: 1820 | M99: 1.01 | N99: 1.04
C100: MACHOS&HEMBRASINDEFINIDAINVIERNO | D100: 25 | E100: 0.0096 | F100: 0.038 | G100: 0.15 | H100: 1 | I100: 74 | J100: 9.5 | K100: 5.7 | L100: 1820 | M100: 1.03 | N100: 1.04
C101: MACHOS&HEMBRASINDEFINIDAVERANO | D101: 26 | E101: 0.0096 | F101: 0.038 | G101: 0.15 | H101: 1 | I101: 74 | J101: 9.5 | K101: 5.7 | L101: 1820 | M101: 1.05 | N101: 1.02
C102: MACHOS&HEMBRASINDEFINIDAINDEFINIDO | D102: 27 | E102: 0.0096 | F102: 0.038 | G102: 0.15 | H102: 1 | I102: 74 | J102: 9.5 | K102: 5.7 | L102: 1820 | M102: 1.01 | N102: 1.02
A104: ECUACIONES CALCULO ENERGIA PIENSOS
C105: HUMEDAD | D105: 10
C106: FIBRA BRUTA | D106: 3.4
C107: PROTEINA BRUTA | D107: 17
C108: GRASA BRUTA | D108: 3.3
C109: CENIZAS | D109: 6
D111: dMO | E111: dE | F111: EB(smo) | G111: EB(sss) | H111: ED (sss) | I111: NA | J111: EM/ED | K111: EM | L111: q | M111: kl | N111: km | O111: kf | P111: kmf | Q111: ENERGIA NETA LACTACION | R111: ENERGIA NETA MANT Y CEBO | S111: UFL | T111: UFC
C112: PIENSOS COMPUESTOS | D112: =95.8-(0.191*D106)-2.54 -> 92.6106 | E112: =((D112-3.5+(0.0046*D107)+(0.0155*D108))/100) -> 0.8923995 | F112: =4134+(1.473*E107)+(5.239*E108)+(0.925*E106)-(4.44*E109) -> 4134 | G112: =(F112*(1000-D109))/1000 -> 4109.196 | H112: =F112*E112 -> 3689.179533 | I112: 1 | J112: =(84.17-(0.0099*D106)-(0.0196*D107)+(2.2*I112))/100 -> 0.8600314 | K112: =H112*J112 -> 3172.810239 | L112: =K112/G112 -> 0.7721243374 | M112: =0.6+(0.24*(L112-0.57)) -> 0.648509841 | N112: =(0.287*L112)+0.554 -> 0.7755996848 | O112: =(0.78*L112)+0.006 -> 0.6082569831 | P112: =(N112*O112*1.5)/(O112+(0.5*N112)) -> 0.7104473043 | Q112: =K112*M112 -> 2057.598663 | R112: =K112*P112 -> 2254.114481 | S112: =Q112/1700 -> 1.210352155 | T112: =R112/1820 -> 1.23852444
A117: ECUACIONES EXPORTACIÓN | E117: Ax | F117: B | G117: R2
D118: GMD (PE) | E118: 0.0039 | F118: 0.1886 | G118: 0.36
D119: GMD (PS) | E119: 0.0056 | F119: 0.0901 | G119: 0.598
D120: GMD (Pmedio) | E120: 0.0049 | F120: 0.1388 | G120: 0.489
D121: IC (PE) | E121: 0.0249 | F121: 3.2403 | G121: 0.44
D122: IC (PS) | E122: 0.0267 | F122: 3.0058 | G122: 0.2
D123: IC (Pmedio) | E123: 0.0266 | F123: 3.0873 | G123: 0.3
A126: DURABILIDAD CARNE | C126: ecuacion leonel | D126: coef | E126: 0.1
C127: de dosis de vitE a TBARS | D127: b1 | E127: 0.09
D128: b2 | E128: 2.29
D129: b3 | E129: 4.11
D130: b3/b2 | E130: =E129/E128 -> 1.794759825
C132: ecuacion 1 CSIC | D132: ax | E132: -1.19
C133: de TBARS a nota visual | D133: b | E133: 3.1
C134: ecuación 2 NANTA | D134: ax | E134: -1.26
C135: de TBARS a nota visual | D135: b | E135: 3.14
C136: ecuación 3 NANTA | D136: ax | E136: -0.2562 | F136: -0.2329880632 | G136: -0.2795456113
C137: de nota visual a TBARS | D137: b | E137: 1.037 | F137: 1.107109214 | G137: 0.9672206068

Sheet CREDITOS GESTICOR
B7: CREDITOS BASES DE DATOS GESTICOR MODEL
B10: MODULO SALUD | C10: Nº BAJAS | D10: ='HOJA GENERAL DE DATOS'!A478 -> 35347
C11: Nº SEMANAS (BAJAS) | D11: ='HOJA GENERAL DE DATOS'!C481 -> 2678.857143
C12: Nº MESES (BAJAS) | D12: ='HOJA GENERAL DE DATOS'!B481 -> 625.0666667
C13: Nº MESES (MORBILIDAD) | D13: ='HOJA GENERAL DE DATOS'!A484 -> 235
C14: Nº MESES( DECOMISOS) | D14: ='HOJA GENERAL DE DATOS'!B484 -> 204
C15: Nº PHS PANZA | D15: ='HOJA GENERAL DE DATOS'!D484 -> 1077
B17: MODULO MEJORA | C17: Nº ENSAYOS CEBO | D17: ='HOJA GENERAL DE DATOS'!A489 -> 352
C18: Nº CORDEROS | D18: ='HOJA GENERAL DE DATOS'!A492 -> 16157
C19: Nº CONTROLES PESO | D19: ='HOJA GENERAL DE DATOS'!A495 -> 567
C20: Nº Phs CONTROLADOS | D20: ='HOJA GENERAL DE DATOS'!A500 -> 5293
C21: Nº EE CONTROLADOS | D21: ='HOJA GENERAL DE DATOS'!B500 -> 5378
B23: MODULO SOSTENIBILIDAD Y B.A. | C23: Nº CONTROLES B.A. | D23: ='HOJA GENERAL DE DATOS'!A505 -> 452
C24: Nº CONTROLES PPCC | D24: ='HOJA GENERAL DE DATOS'!A511 -> 8

Sheet CALCULO THI
A7: CALCULO THI (Temperature Humidity Index)
A9: GANADERO
A11: "MEDICIÓN A LA ALTURA DE LOS ANIMALES"
A12: DATOS GENERALES | B12: FECHA
B13: TEMPERATURA (ºC)
B14: HUMEDAD (%)
A17: DIAGNÓSTICO | B17: THI (INDICE Tª/HUMEDAD) | C17: =IF('ENLACES DATOS'!C829="","",'ENLACES DATOS'!C829) -> 
B18: =IF('ENLACES DATOS'!C834="","",'ENLACES DATOS'!C834) -> 

Sheet AMBIENTALES ADMISIBLES
A5: CHEQUEO VALORES AMBIENTALES
A9: GANADERO
A11: ESTACION
C12: OBTENIDO | D12: ADMISIBLE
A13: TEMPERATURA (ºC) | B13: EXTERIOR
B14: INTERIOR NAVE | D14: =IF(C14="","",'ENLACES DATOS'!I733) -> 
B15: ALTURA ANIMALES | D15: =IF(C15="","",'ENLACES DATOS'!I734) -> 
B16: CAMA | D16: =IF(C16="","",'ENLACES DATOS'!I735) -> 
A18: HUMEDAD RELATIVA (%) | B18: EXTERIOR
B19: INTERIOR NAVE | D19: =IF(C19="","",'ENLACES DATOS'!I736) -> 
B20: ALTURA ANIMALES | D20: =IF(C20="","",'ENLACES DATOS'!I737) -> 
B21: CAMA | D21: =IF(C21="","",'ENLACES DATOS'!I738) -> 
A23: VELOCIDAD AIRE (m/s) | B23: EXTERIOR
B24: INTERIOR NAVE | D24: =IF(C24="","",'ENLACES DATOS'!I739) -> 
B25: ALTURA ANIMALES
A27: RESULTADO CHEQUEO
A28: NAVE | B28: AISLAMIENTO | C28: =IF('ENLACES DATOS'!I743="","",'ENLACES DATOS'!I743) -> 
B29: VENTILACION | C29: =IF('ENLACES DATOS'!I744="","",'ENLACES DATOS'!I744) -> 
A31: ANIMALES | B31: DENSIDAD | C31: =IF('ENLACES DATOS'!I746="","",'ENLACES DATOS'!I746) -> 
A33: CAMA | B33: CAMA | C33: =IF('ENLACES DATOS'!I748="","",'ENLACES DATOS'!I748) -> 

Sheet PRODUCTOS GESTICOR
A7: ELECCION PRODUCTO GESTICOR
A8: GANADERO:
A9: DATOS DE CEBO
A11: DATOS GENERALES | B11: FECHA | C11: 2021-08-01
B12: UFV | C12: 1.02 | D12: =IF('GEST CALC ENER'!C32="","",'GEST CALC ENER'!C32) -> 
B13: ENFOQUE GESTICOR | C13: EFICIENCIA | D13: =IF('GEST CALC ENER'!C33="","",'GEST CALC ENER'!C33) -> 
A15: BAREMOS ENERGÍA | B15: =IF(C13="","",IF(C13="BAJO ENGRASAMIENTO","Valores de Energía desde 0.94UFV hasta 0.98UFV",IF(C13="SEGURIDAD","Energía desde 0.98UFV hasta 1.03UFV",IF(C13="EFICIENCIA","Energía desde 1.02UFV en adelante","Energía igual a 1.04UFV ")))) -> Energía desde 1.02UFV en adelante
A17: PIENSO RECOMENDADO | B17: =IF(C13="","",'ENLACES DATOS'!B714) -> 1504 GGR | C17: =IF(C13="","",'ENLACES DATOS'!C714) -> GESTICOR LIGERO
A20: PERFIL NUTRICIONAL | B20: Humedad (%) | C20: =IF($C$17="","",'ENLACES DATOS'!E714/10) -> 11
B21: Proteína Bruta (%) | C21: =IF($C$17="","",'ENLACES DATOS'!F714/10) -> 17.7
B22: Fibra Bruta (%) | C22: =IF($C$17="","",'ENLACES DATOS'!G714/10) -> 3.4
B23: Grasa Bruta (%) | C23: =IF($C$17="","",'ENLACES DATOS'!H714/10) -> 2.7
B24: Cenizas (%) | C24: =IF($C$17="","",'ENLACES DATOS'!I714/10) -> 6.4
B25: Almidon+Azucares (%) | C25: =IF($C$17="","",'ENLACES DATOS'!J714/10) -> 42
B26: UFV(2007) | C26: =IF($C$17="","",'ENLACES DATOS'!D714/100) -> 1.02
A28: PRESENTACION | B28: =IF(C13="","",'ENLACES DATOS'!M714) -> GRANULADO 3,5
A30: MODO DE EMPLEO | B30: =IF(C17="","",'ENLACES DATOS'!K714) -> Pienso compuesto complememtario de paja destinado a corderos de engorde a partir del destete hasta el sacrificio guardando el correspondiente periodo de espera si ha lugar.
A32: PRECAUCIONES DE USO | B32: =IF(C17="","",'ENLACES DATOS'!L714) -> Los animales dispondrán de paja a libre disposición y agua limpia y fresca Los animales dispondrán siempre a voluntad este producto evitando que se queden sin él.

Sheet GEST TENDENCIAS
A5: TENDENCIAS ECONOMÍA | F5: TENDENCIAS ECONOMÍA | K5: TENDENCIAS ECONOMÍA
A7: GANADERO: | F7: GANADERO: | G7: =IF(B7="","",B7) ->  | K7: GANADERO: | L7: =IF(G7="","",G7) -> 
A8: FECHA | F8: FECHA | G8: =IF(B8="","",B8) ->  | K8: FECHA | L8: =IF(G8="","",G8) -> 
A9: INGRESOS Y GASTOS | F9: DESGLOSE CONCEPTOS | K9: GRAFICA
A11: DESCRIPCION | B11: Kilos Compra | D11: Kilos/cordero | K11: VARIABLES
B12: Consumo Medio Diario | D12: Kilos/cordero.día
B13: Estancia media | D13: dias/cordero
B14: Kilos Venta | D14: Kilos/cordero
A16: GASTOS | B16: Precio Compra | D16: Euros/cordero
B17: Amortización | D17: Euros/cordero
B18: Mano de Obra | D18: Euros/cordero
B19: Recogida y transporte | D19: Euros/cordero
B20: Bajas | D20: Euros/cordero
B21: Financieros | D21: Euros/cordero
B22: Coste Pienso (Euros/Tm) | D22: Euros/Tm
B23: Coste paja (Euros/Tm) | D23: Euros/Tm
A25: INGRESOS | B25: Precio Venta | D25: Euros/cordero
B26: Precio Piel | D26: Euros/cordero
B27: Otros Ingresos | D27: Euros/cordero
A29: POR CORDERO | B29: Coste Alimentación | C29: =IF(C22="","",((((C22/1000)*C12)+((C23/1000)*0.15))*C13)) ->  | D29: Euros/cordero
B30: Costes Totales (sin lechal) | C30: =IF(C29="","",(C17+C18+C19+C21+C20+C29)) ->  | D30: Euros/cordero
B31: Costes Totales | C31: =IF(C30="","",C30+C16) ->  | D31: Euros/cordero
B32: Ingresos Totales | C32: =IF(C26="","",C26+C27+C25) ->  | D32: Euros/cordero
B33: Beneficios | C33: =IF(C31="","",C32-C31) ->  | D33: Euros/cordero
B34: Precio Umbral (compra) | C34: =IF(C33="","",(C32-C30)) ->  | D34: Euros/cordero
B35: Productividad Umbral (venta) | C35: =IF(C16="","",C31-C27-C26) ->  | D35: Euros/cordero
A37: POR KILO REPUESTO | B37: Coste Alimentación | C37: =IF(C29="","",C29/($C$14-$C$11)) ->  | D37: Euros/Kg repuesto
B38: Costes Totales (sin lechal) | C38: =IF(C30="","",C30/($C$14-$C$11)) ->  | D38: Euros/Kg repuesto
B39: Costes Totales | D39: Euros/Kg repuesto
B40: Ingresos Totales | D40: Euros/Kg repuesto
B41: Beneficios | D41: Euros/Kg repuesto
B42: Precio Umbral (compra) | D42: Euros/Kg repuesto
B43: Productividad Umbral (venta) | D43: Euros/Kg repuesto
A45: OTROS DATOS | B45: Precio Compra Kilo Vivo | C45: =IF(C16="","",C16/C11) ->  | D45: Euros/cordero
B46: Precio Venta Kilo Vivo | C46: =IF(C25="","",C25/C14) ->  | D46: Euros/cordero
B47: Rentabilidad | C47: =IF(C33="","",C33/C31) ->  | D47: Euros/cordero
A135: 1 | B135: 2 | C135: 3 | D135: 4 | E135: 5 | F135: 6 | G135: 7 | H135: 8 | I135: 9 | J135: 10 | K135: 11 | L135: 12 | M135: 13 | N135: 14 | O135: 15 | P135: 16 | Q135: 17 | R135: 18 | S135: 19 | T135: 20 | U135: 21 | V135: 22 | W135: 23 | X135: 24 | Y135: 25 | Z135: 26 | AA135: 27
C136: 2020-01-01 | D136: 2020-02-01 | E136: 2020-03-01 | F136: 2020-04-01 | G136: 2020-05-01 | H136: 2020-06-01 | I136: 2020-07-01 | J136: 2020-08-01 | K136: 2020-09-01 | L136: 2020-10-01 | M136: 2020-11-01 | N136: 2020-12-01 | O136: 2021-01-01 | P136: 2021-02-01 | Q136: 2021-03-01 | R136: 2021-04-01 | S136: 2021-05-01 | T136: 2021-06-01 | U136: 2021-07-01 | V136: 2021-08-01 | W136: 2021-09-01 | X136: 2021-10-01 | Y136: 2021-11-01 | Z136: 2021-12-01 | AA136: 2022-01-01
A137: Kilos Compra | C137: 15 | D137: 15 | E137: 15 | F137: 15 | G137: 15 | H137: 15 | I137: 15 | J137: 15 | K137: 15 | L137: 15 | M137: 15 | N137: 15 | O137: 15 | P137: 15 | Q137: 15 | R137: 15 | S137: 15 | T137: 15 | U137: 15 | V137: 15 | W137: 15 | X137: 15 | Y137: 15 | Z137: 15 | AA137: 15
A138: Consumo Medio Diario | C138: 0.95 | D138: 0.95 | E138: 0.95 | F138: 0.95 | G138: 0.95 | H138: 0.95 | I138: 0.95 | J138: 0.95 | K138: 0.95 | L138: 0.95 | M138: 0.95 | N138: 0.95 | O138: 0.95 | P138: 0.95 | Q138: 0.95 | R138: 0.95 | S138: 0.95 | T138: 0.95 | U138: 0.95 | V138: 0.95 | W138: 0.95 | X138: 0.95 | Y138: 0.95 | Z138: 0.95 | AA138: 0.95
A139: Estancia media | C139: 35 | D139: 35 | E139: 35 | F139: 35 | G139: 35 | H139: 35 | I139: 35 | J139: 35 | K139: 35 | L139: 35 | M139: 35 | N139: 35 | O139: 35 | P139: 35 | Q139: 35 | R139: 35 | S139: 35 | T139: 35 | U139: 35 | V139: 35 | W139: 35 | X139: 35 | Y139: 35 | Z139: 35 | AA139: 35
A140: Kilos Venta | C140: 25 | D140: 25 | E140: 25 | F140: 25 | G140: 25 | H140: 25 | I140: 25 | J140: 25 | K140: 25 | L140: 25 | M140: 25 | N140: 25 | O140: 25 | P140: 25 | Q140: 25 | R140: 25 | S140: 25 | T140: 25 | U140: 25 | V140: 25 | W140: 25 | X140: 25 | Y140: 25 | Z140: 25 | AA140: 25
A141: Precio Compra | C141: 52.95 | D141: 54.7875 | E141: 56.58 | F141: 48.45 | G141: 41.52 | H141: 48.9375 | I141: 54.9 | J141: 54.9 | K141: 55.1625 | L141: 55.95 | M141: 55.95 | N141: 55.95 | O141: 55.95 | P141: 52.95 | Q141: 54.378 | R141: 55.505 | S141: 53.93 | T141: 55.95 | U141: 55.95 | V141: 57.168 | W141: 60.4725 | X141: 68.4575 | Y141: 76.935 | Z141: 72.932 | AA141: 58.9875
A142: Amortización | C142: 0.3 | D142: 0.3 | E142: 0.3 | F142: 0.3 | G142: 0.3 | H142: 0.3 | I142: 0.3 | J142: 0.3 | K142: 0.3 | L142: 0.3 | M142: 0.3 | N142: 0.3 | O142: 0.3 | P142: 0.3 | Q142: 0.3 | R142: 0.3 | S142: 0.3 | T142: 0.3 | U142: 0.3 | V142: 0.3 | W142: 0.3 | X142: 0.3 | Y142: 0.3 | Z142: 0.3 | AA142: 0.3
A143: Mano de Obra | C143: 1.56 | D143: 1.56 | E143: 1.56 | F143: 1.56 | G143: 1.56 | H143: 1.56 | I143: 1.56 | J143: 1.56 | K143: 1.56 | L143: 1.56 | M143: 1.56 | N143: 1.56 | O143: 1.56 | P143: 1.56 | Q143: 1.56 | R143: 1.56 | S143: 1.56 | T143: 1.56 | U143: 1.56 | V143: 1.56 | W143: 1.56 | X143: 1.56 | Y143: 1.56 | Z143: 1.56 | AA143: 1.56
A144: Recogida y transporte | C144: 0.5 | D144: 0.5 | E144: 0.5 | F144: 0.5 | G144: 0.5 | H144: 0.5 | I144: 0.5 | J144: 0.5 | K144: 0.5 | L144: 0.5 | M144: 0.5 | N144: 0.5 | O144: 0.5 | P144: 0.5 | Q144: 0.5 | R144: 0.5 | S144: 0.5 | T144: 0.5 | U144: 0.5 | V144: 0.5 | W144: 0.5 | X144: 0.5 | Y144: 0.5 | Z144: 0.5 | AA144: 0.5
A145: Bajas | C145: 1.02 | D145: 1.02 | E145: 1.02 | F145: 1.02 | G145: 1.35 | H145: 1.38 | I145: 1.43 | J145: 1.4 | K145: 1.03 | L145: 1.03 | M145: 1.03 | N145: 1.03 | O145: 1.02 | P145: 1.02 | Q145: 1.02 | R145: 1.02 | S145: 1.35 | T145: 1.38 | U145: 1.43 | V145: 1.4 | W145: 1.03 | X145: 1.03 | Y145: 1.03 | Z145: 1.03 | AA145: 0.5
A146: Financieros | C146: 0.2 | D146: 0.2 | E146: 0.2 | F146: 0.2 | G146: 0.2 | H146: 0.2 | I146: 0.2 | J146: 0.2 | K146: 0.2 | L146: 0.2 | M146: 0.2 | N146: 0.2 | O146: 0.2 | P146: 0.2 | Q146: 0.2 | R146: 0.2 | S146: 0.2 | T146: 0.2 | U146: 0.2 | V146: 0.2 | W146: 0.2 | X146: 0.2 | Y146: 0.2 | Z146: 0.2 | AA146: 0.2
A147: Coste Pienso (Euros/Tm) | C147: 263 | D147: 265 | E147: 265 | F147: 268 | G147: 252 | H147: 252 | I147: 247 | J147: 250 | K147: 248 | L147: 257 | M147: 272 | N147: 277 | O147: 185 | P147: 296 | Q147: 310 | R147: 308 | S147: 305 | T147: 310 | U147: 303 | V147: 298 | W147: 307 | X147: 317 | Y147: 332 | Z147: 353 | AA147: 361
A148: Coste paja (Euros/Tm) | C148: 55 | D148: 55 | E148: 55 | F148: 55 | G148: 55 | H148: 55 | I148: 55 | J148: 55 | K148: 55 | L148: 55 | M148: 65 | N148: 65 | O148: 65 | P148: 65 | Q148: 65 | R148: 65 | S148: 65 | T148: 65 | U148: 65 | V148: 65 | W148: 65 | X148: 65 | Y148: 65 | Z148: 70 | AA148: 70
A149: Precio Venta | C149: 84 | D149: 79.75 | E149: 82.2 | F149: 73.125 | G149: 65 | H149: 73.25 | I149: 79 | J149: 79 | K149: 79 | L149: 79 | M149: 79 | N149: 81.4 | O149: 82 | P149: 77 | Q149: 79.6 | R149: 83 | S149: 81.2 | T149: 82 | U149: 82 | V149: 82 | W149: 82.75 | X149: 88.75 | Y149: 101.75 | Z149: 104.2 | AA149: 92
A150: Precio Piel | C150: 7.5 | D150: 7.5 | E150: 7.5 | F150: 6 | G150: 4.5 | H150: 3.5 | I150: 2.5 | J150: 2.5 | K150: 2.5 | L150: 2.5 | M150: 2.5 | N150: 2.5 | O150: 2.5 | P150: 3.5 | Q150: 3.5 | R150: 3.5 | S150: 3.7 | T150: 4 | U150: 4 | V150: 4 | W150: 4 | X150: 4 | Y150: 4.5 | Z150: 4.5 | AA150: 4.5
A151: Otros Ingresos | C151: 0 | D151: 0 | E151: 0 | F151: 0 | G151: 0 | H151: 0 | I151: 0 | J151: 0 | K151: 0 | L151: 0 | M151: 0 | N151: 0 | O151: 0 | P151: 0 | Q151: 0 | R151: 0 | S151: 0 | T151: 0 | U151: 0 | V151: 0 | W151: 0 | X151: 0 | Y151: 0 | Z151: 0 | AA151: 0
A152: Coste Alimentación (animal) | B152: =IF(B147="","",((((B147/1000)*B138)+((B148/1000)*0.15))*B139)) ->  | C152: =IF(C147="","",((((C147/1000)*C138)+((C148/1000)*0.15))*C139)) -> 9.0335 | D152: =IF(D147="","",((((D147/1000)*D138)+((D148/1000)*0.15))*D139)) -> 9.1 | E152: 9.1 | F152: 9.19975 | G152: 8.66775 | H152: 8.66775 | I152: 8.5015 | J152: 8.60125 | K152: =IF(K147="","",((((K147/1000)*K138)+((K148/1000)*0.15))*K139)) -> 8.53475 | L152: 8.834 | M152: 9.38525 | N152: 9.5515 | O152: 6.4925 | P152: =IF(P147="","",((((P147/1000)*P138)+((P148/1000)*0.15))*P139)) -> 10.18325 | Q152: 10.64875 | R152: 10.58225 | S152: 10.4825 | T152: 10.64875 | U152: 10.416 | V152: 10.24975 | W152: 10.549 | X152: =IF(X147="","",((((X147/1000)*X138)+((X148/1000)*0.15))*X139)) -> 10.8815 | Y152: 11.38025 | Z152: 12.10475 | AA152: 12.37075
A153: Costes Totales (sin lechal)(animal) | B153: =IF(B152="","",(B152+B146+B145+B144+B143+B142)) ->  | C153: =IF(C152="","",(C152+C146+C145+C144+C143+C142)) -> 12.6135 | D153: =IF(D152="","",(D152+D146+D145+D144+D143+D142)) -> 12.68 | E153: 12.68 | F153: 12.77975 | G153: 12.57775 | H153: 12.60775 | I153: 12.4915 | J153: 12.56125 | K153: =IF(K152="","",(K152+K146+K145+K144+K143+K142)) -> 12.12475 | L153: =IF(L152="","",(L152+L146+L145+L144+L143+L142)) -> 12.424 | M153: =IF(M152="","",(M152+M146+M145+M144+M143+M142)) -> 12.97525 | N153: =IF(N152="","",(N152+N146+N145+N144+N143+N142)) -> 13.1415 | O153: =IF(O152="","",(O152+O146+O145+O144+O143+O142)) -> 10.0725 | P153: =IF(P152="","",(P152+P146+P145+P144+P143+P142)) -> 13.76325 | Q153: =IF(Q152="","",(Q152+Q146+Q145+Q144+Q143+Q142)) -> 14.22875 | R153: =IF(R152="","",(R152+R146+R145+R144+R143+R142)) -> 14.16225 | S153: =IF(S152="","",(S152+S146+S145+S144+S143+S142)) -> 14.3925 | T153: =IF(T152="","",(T152+T146+T145+T144+T143+T142)) -> 14.58875 | U153: =IF(U152="","",(U152+U146+U145+U144+U143+U142)) -> 14.406 | V153: =IF(V152="","",(V152+V146+V145+V144+V143+V142)) -> 14.20975 | W153: =IF(W152="","",(W152+W146+W145+W144+W143+W142)) -> 14.139 | X153: =IF(X152="","",(X152+X146+X145+X144+X143+X142)) -> 14.4715 | Y153: =IF(Y152="","",(Y152+Y146+Y145+Y144+Y143+Y142)) -> 14.97025 | Z153: =IF(Z152="","",(Z152+Z146+Z145+Z144+Z143+Z142)) -> 15.69475 | AA153: =IF(AA152="","",(AA152+AA146+AA145+AA144+AA143+AA142)) -> 15.43075
A154: Costes Totales (animal) | B154: =IF(B153="","",B153+B141) ->  | C154: =IF(C153="","",C153+C141+C152) -> 74.597 | D154: =IF(D153="","",D153+D141+D152) -> 76.5675 | E154: 78.36 | F154: 70.4295 | G154: 62.7655 | H154: 70.213 | I154: 75.893 | J154: 76.0625 | K154: 75.822 | L154: 77.208 | M154: 78.3105 | N154: 78.643 | O154: 72.515 | P154: 76.8965 | Q154: 79.2555 | R154: 80.2495 | S154: 78.805 | T154: 81.1875 | U154: 80.772 | V154: 81.6275 | W154: 85.1605 | X154: 93.8105 | Y154: 103.2855 | Z154: 100.7315 | AA154: 86.789
A155: Ingresos Totales (animal) | B155: =IF(B149="","",B149+B150+B151) ->  | C155: =IF(C149="","",C149+C150+C151) -> 91.5 | D155: =IF(D149="","",D149+D150+D151) -> 87.25 | E155: 89.7 | F155: 79.125 | G155: 69.5 | H155: 76.75 | I155: 81.5 | J155: 81.5 | K155: 81.5 | L155: 81.5 | M155: 81.5 | N155: 83.9 | O155: 84.5 | P155: 80.5 | Q155: 83.1 | R155: 86.5 | S155: 84.9 | T155: 86 | U155: 86 | V155: 86 | W155: 86.75 | X155: 92.75 | Y155: 106.25 | Z155: 108.7 | AA155: 96.5
A156: Beneficios (animal) | B156: =IF(B154="","",B155-B154) ->  | C156: =IF(C154="","",C155-C154) -> 16.903 | D156: =IF(D154="","",D155-D154) -> 10.6825 | E156: 11.34 | F156: 8.6955 | G156: 6.7345 | H156: 6.537 | I156: 5.607 | J156: 5.4375 | K156: =IF(K154="","",K155-K154) -> 5.678 | L156: =IF(L154="","",L155-L154) -> 4.292 | M156: =IF(M154="","",M155-M154) -> 3.1895 | N156: =IF(N154="","",N155-N154) -> 5.257 | O156: =IF(O154="","",O155-O154) -> 11.985 | P156: =IF(P154="","",P155-P154) -> 3.6035 | Q156: =IF(Q154="","",Q155-Q154) -> 3.8445 | R156: =IF(R154="","",R155-R154) -> 6.2505 | S156: =IF(S154="","",S155-S154) -> 6.095 | T156: =IF(T154="","",T155-T154) -> 4.8125 | U156: =IF(U154="","",U155-U154) -> 5.228 | V156: =IF(V154="","",V155-V154) -> 4.3725 | W156: =IF(W154="","",W155-W154) -> 1.5895 | X156: =IF(X154="","",X155-X154) -> -1.0605 | Y156: =IF(Y154="","",Y155-Y154) -> 2.9645 | Z156: =IF(Z154="","",Z155-Z154) -> 7.9685 | AA156: =IF(AA154="","",AA155-AA154) -> 9.711
A157: Precio Umbral (compra)(animal) | B157: =IF(B156="","",(B155-B153)) ->  | C157: =IF(C156="","",(C155-C153)) -> 78.8865 | D157: =IF(D156="","",(D155-D153)) -> 74.57 | E157: 77.02 | F157: 66.34525 | G157: 56.92225 | H157: 64.14225 | I157: 69.0085 | J157: 68.93875 | K157: =IF(K156="","",(K155-K153)) -> 69.37525 | L157: =IF(L156="","",(L155-L153)) -> 69.076 | M157: =IF(M156="","",(M155-M153)) -> 68.52475 | N157: =IF(N156="","",(N155-N153)) -> 70.7585 | O157: =IF(O156="","",(O155-O153)) -> 74.4275 | P157: =IF(P156="","",(P155-P153)) -> 66.73675 | Q157: =IF(Q156="","",(Q155-Q153)) -> 68.87125 | R157: =IF(R156="","",(R155-R153)) -> 72.33775 | S157: =IF(S156="","",(S155-S153)) -> 70.5075 | T157: =IF(T156="","",(T155-T153)) -> 71.41125 | U157: =IF(U156="","",(U155-U153)) -> 71.594 | V157: =IF(V156="","",(V155-V153)) -> 71.79025 | W157: =IF(W156="","",(W155-W153)) -> 72.611 | X157: =IF(X156="","",(X155-X153)) -> 78.2785 | Y157: =IF(Y156="","",(Y155-Y153)) -> 91.27975 | Z157: =IF(Z156="","",(Z155-Z153)) -> 93.00525 | AA157: =IF(AA156="","",(AA155-AA153)) -> 81.06925
A158: Productividad Umbral (venta)(animal) | B158: =B154-B150-B151 ->  | C158: =C154-C150-C151 -> 67.097 | D158: =D154-D150-D151 -> 69.0675 | E158: 70.86 | F158: 64.4295 | G158: 58.2655 | H158: 66.713 | I158: 73.393 | J158: 73.5625 | K158: =K154-K150-K151 -> 73.322 | L158: 74.708 | M158: 75.8105 | N158: 76.143 | O158: 70.015 | P158: =IF(P154="","",P154-P150-P151) -> 73.3965 | Q158: 75.7555 | R158: 76.7495 | S158: 75.105 | T158: 77.1875 | U158: 76.772 | V158: 77.6275 | W158: 81.1605 | X158: 89.8105 | Y158: 98.7855 | Z158: 96.2315 | AA158: 82.289
A159: Coste Alimentación (Kg) | B159: =IF(B152="","",B152/($C$14-$C$11)) ->  | C159: =IF(C152="","",C152/(C140-C137)) -> 0.90335 | D159: =IF(D152="","",D152/(D140-D137)) -> 0.91 | E159: 0.91 | F159: 0.919975 | G159: 0.866775 | H159: 0.866775 | I159: 0.85015 | J159: 0.860125 | K159: 0.853475 | L159: 0.8834 | M159: 0.938525 | N159: 0.95515 | O159: 0.64925 | P159: 1.018325 | Q159: 1.064875 | R159: 1.058225 | S159: 1.04825 | T159: 1.064875 | U159: 1.0416 | V159: 1.024975 | W159: 1.0549 | X159: 1.08815 | Y159: 1.138025 | Z159: 1.210475 | AA159: 1.237075
A160: Costes Totales (sin lechal)(Kg) | B160: =IF(B153="","",B153/($C$14-$C$11)) ->  | C160: =IF(C153="","",C153/(C140-C137)) -> 1.26135 | D160: =IF(D153="","",D153/(D140-D137)) -> 1.268 | E160: 1.268 | F160: 1.277975 | G160: 1.257775 | H160: 1.260775 | I160: 1.24915 | J160: 1.256125 | K160: 1.212475 | L160: 1.2424 | M160: 1.297525 | N160: 1.31415 | O160: 1.00725 | P160: 1.376325 | Q160: 1.422875 | R160: 1.416225 | S160: 1.43925 | T160: 1.458875 | U160: 1.4406 | V160: 1.420975 | W160: 1.4139 | X160: 1.44715 | Y160: 1.497025 | Z160: 1.569475 | AA160: 1.543075
A161: Costes Totales (Kg) | B161: =IF(B154="","",B154/($C$14-$C$11)) ->  | C161: =IF(C154="","",C154/(C140-C137)) -> 7.4597 | D161: =IF(D154="","",D154/(D140-D137)) -> 7.65675 | E161: 7.836 | F161: 7.04295 | G161: 6.27655 | H161: 7.0213 | I161: 7.5893 | J161: 7.60625 | K161: 7.5822 | L161: 7.7208 | M161: 7.83105 | N161: 7.8643 | O161: 7.2515 | P161: 7.68965 | Q161: 7.92555 | R161: 8.02495 | S161: 7.8805 | T161: 8.11875 | U161: 8.0772 | V161: 8.16275 | W161: 8.51605 | X161: 9.38105 | Y161: 10.32855 | Z161: 10.07315 | AA161: 8.6789
A162: Ingresos Totales (Kg) | B162: =IF(B155="","",B155/($C$14-$C$11)) ->  | C162: =IF(C155="","",C155/(C140-C137)) -> 9.15 | D162: =IF(D155="","",D155/(D140-D137)) -> 8.725 | E162: 8.97 | F162: 7.9125 | G162: 6.95 | H162: 7.675 | I162: 8.15 | J162: 8.15 | K162: 8.15 | L162: 8.15 | M162: 8.15 | N162: 8.39 | O162: 8.45 | P162: 8.05 | Q162: 8.31 | R162: 8.65 | S162: 8.49 | T162: 8.6 | U162: 8.6 | V162: 8.6 | W162: 8.675 | X162: 9.275 | Y162: 10.625 | Z162: 10.87 | AA162: 9.65
A163: Beneficios (Kg) | B163: =IF(B156="","",B156/($C$14-$C$11)) ->  | C163: =IF(C156="","",C156/(C140-C137)) -> 1.6903 | D163: =IF(D156="","",D156/(D140-D137)) -> 1.06825 | E163: 1.134 | F163: 0.86955 | G163: 0.67345 | H163: 0.6537 | I163: 0.5607 | J163: 0.54375 | K163: 0.5678 | L163: 0.4292 | M163: 0.31895 | N163: 0.5257 | O163: 1.1985 | P163: 0.36035 | Q163: 0.38445 | R163: 0.62505 | S163: 0.6095 | T163: 0.48125 | U163: 0.5228 | V163: 0.43725 | W163: 0.15895 | X163: -0.10605 | Y163: 0.29645 | Z163: 0.79685 | AA163: 0.9711
A164: Precio Umbral (compra)(Kg) | B164: =IF(B157="","",B157/($C$14-$C$11)) ->  | C164: =IF(C157="","",C157/(C140-C137)) -> 7.88865 | D164: =IF(D157="","",D157/(D140-D137)) -> 7.457 | E164: 7.702 | F164: 6.634525 | G164: 5.692225 | H164: 6.414225 | I164: 6.90085 | J164: 6.893875 | K164: 6.937525 | L164: 6.9076 | M164: 6.852475 | N164: 7.07585 | O164: 7.44275 | P164: 6.673675 | Q164: 6.887125 | R164: 7.233775 | S164: 7.05075 | T164: 7.141125 | U164: 7.1594 | V164: 7.179025 | W164: 7.2611 | X164: 7.82785 | Y164: 9.127975 | Z164: 9.300525 | AA164: 8.106925
A165: Productividad Umbral (venta)(Kg) | B165: =IF(B158="","",B158/($C$14-$C$11)) ->  | C165: =IF(C158="","",C158/(C140-C137)) -> 6.7097 | D165: =IF(D158="","",D158/(D140-D137)) -> 6.90675 | E165: 7.086 | F165: 6.44295 | G165: 5.82655 | H165: 6.6713 | I165: 7.3393 | J165: 7.35625 | K165: 7.3322 | L165: 7.4708 | M165: 7.58105 | N165: 7.6143 | O165: 7.0015 | P165: 7.33965 | Q165: 7.57555 | R165: 7.67495 | S165: 7.5105 | T165: 7.71875 | U165: 7.6772 | V165: 7.76275 | W165: 8.11605 | X165: 8.98105 | Y165: 9.87855 | Z165: 9.62315 | AA165: 8.2289
A166: Precio Compra Kilo Vivo | B166: =IF(B141="","",B141/B137) ->  | C166: =IF(C141="","",C141/C137) -> 3.53 | D166: =IF(D141="","",D141/D137) -> 3.6525 | E166: 3.772 | F166: 3.23 | G166: 2.768 | H166: 3.2625 | I166: 3.66 | J166: 3.66 | K166: =IF(K141="","",K141/K137) -> 3.6775 | L166: 3.73 | M166: 3.73 | N166: 3.73 | O166: 3.73 | P166: =IF(P141="","",P141/P137) -> 3.53 | Q166: 3.6252 | R166: 3.700333333 | S166: 3.595333333 | T166: 3.73 | U166: 3.73 | V166: 3.8112 | W166: 4.0315 | X166: =IF(X141="","",X141/X137) -> 4.563833333 | Y166: 5.129 | Z166: 4.862133333 | AA166: 3.9325
A167: Precio Venta Kilo Vivo | B167: =IF(B149="","",B149/B140) ->  | C167: =IF(C149="","",C149/C140) -> 3.36 | D167: =IF(D149="","",D149/D140) -> 3.19 | E167: 3.288 | F167: 2.925 | G167: 2.6 | H167: 2.93 | I167: 3.16 | J167: 3.16 | K167: =IF(K149="","",K149/K140) -> 3.16 | L167: 3.16 | M167: 3.16 | N167: 3.256 | O167: 3.28 | P167: =IF(P149="","",P149/P140) -> 3.08 | Q167: 3.184 | R167: 3.32 | S167: 3.248 | T167: 3.28 | U167: 3.28 | V167: 3.28 | W167: 3.31 | X167: =IF(X149="","",X149/X140) -> 3.55 | Y167: 4.07 | Z167: 4.168 | AA167: 3.68
A168: Rentabilidad | B168: =IF(B156="","",B156/B154) ->  | C168: =IF(C156="","",C156/C154) -> 0.2265908817 | D168: =IF(D156="","",D156/D154) -> 0.1395174193 | E168: 0.1447166922 | F168: 0.1234638894 | G168: 0.1072962057 | H168: 0.09310241693 | I168: 0.07388033152 | J168: 0.07148726376 | K168: =IF(K156="","",K156/K154) -> 0.07488591702 | L168: 0.05559009429 | M168: 0.04072889332 | N168: 0.06684638175 | O168: 0.1652761498 | P168: =IF(P156="","",P156/P154) -> 0.04686169071 | Q168: 0.04850767455 | R168: 0.07788833575 | S168: 0.0773428082 | T168: 0.05927636644 | U168: 0.06472539989 | V168: 0.05356650639 | W168: 0.01866475655 | X168: =IF(X156="","",X156/X154) -> -0.0113047047 | Y168: 0.02870199592 | Z168: 0.07910633714 | AA168: 0.1118920601
A173: =IF(L11="","",L11) ->  | C173: =IF(C141="","",VLOOKUP($A173,$A$137:$AL$168,C135,FALSE)) ->  | D173: =IF(D141="","",VLOOKUP($A173,$A$137:$AL$168,D135,FALSE)) ->  | E173: =IF(E141="","",VLOOKUP($A173,$A$137:$AL$168,E135,FALSE)) -> 
A174: =IF(L12="","",L12) ->  | C174: =IF(C141="","",VLOOKUP($A174,$A$137:$AL$168,C135,FALSE)) ->  | D174: =IF(D141="","",VLOOKUP($A174,$A$137:$AL$168,D135,FALSE)) -> 
C175: =IF(C141="","",VLOOKUP($A175,$A$137:$AL$168,C135,FALSE)) ->  | D175: =IF(D141="","",VLOOKUP($A175,$A$137:$AL$168,D135,FALSE)) -> 
C176: =IF(C141="","",VLOOKUP($A176,$A$137:$AL$168,C135,FALSE)) ->  | D176: =IF(D141="","",VLOOKUP($A176,$A$137:$AL$168,D135,FALSE)) -> 

Sheet GEST CUENTA EXPL
A5: CUENTA EXPLOTACION CEBO CORDEROS | F5: CUENTA EXPLOTACION CEBO CORDEROS | K5: CUENTA EXPLOTACION CEBO CORDEROS
A7: GANADERO: | B7: EJEMPLO | F7: GANADERO: | G7: =IF(B7="","",B7) -> EJEMPLO | K7: GANADERO: | L7: =IF(G7="","",G7) -> EJEMPLO
A8: FECHA | B8: 2022-02-14 | F8: FECHA | G8: =IF(B8="","",B8) -> 2022-02-14 | K8: FECHA | L8: =IF(G8="","",G8) -> 2022-02-14
A9: INGRESOS Y GASTOS | F9: RESULTADOS | K9: RESUMEN Y GRAFICOS
M10: E/AÑO | N10: E/CORDERO
K11: GASTOS | L11: COSTO CORDERO | M11: =IF(C16="","",C16*C13) -> 2610000 | N11: =IF(C16="","",C16) -> 58 | O11: Euros
A12: DESCRIPCION | B12: Superficie | C12: 3150 | D12: m2 | F12: DESCRIPCION | G12: Superficie | H12: =IF(C12="","",C12) -> 3150 | I12: m2 | L12: AMORTIZACION | M12: =IF(H20="","",H20) -> 25000 | N12: =IF(I20="","",I20) -> 0.5555555556 | O12: Euros
B13: Nº animales/año | C13: 45000 | D13: corderos | G13: Nº animales/año | H13: =IF(C13="","",C13) -> 45000 | I13: corderos | L13: MANO OBRA | M13: =IF(H22="","",H22) -> 70000 | N13: =IF(I22="","",I22) -> 1.555555556 | O13: Euros
B14: Estancia media | C14: 35 | D14: dias | G14: Estancia media | H14: 35 | I14: dias | L14: ALIMENTACION | M14: =IF(H26="","",H26) -> 544398.75 | N14: =IF(I26="","",I26) -> 12.09775 | O14: Euros
B15: Mano de Obra | C15: 5 | D15: operario | G15: Mano de Obra | H15: 5 | I15: operario | L15: COMPRA&PORTE | M15: =IF(H28="","",H28) -> 25000 | N15: =IF(I28="","",I28) -> 0.5555555556 | O15: Euros
B16: Precio Cordero | C16: 58 | D16: Euros | G16: Precio Cordero | H16: 58 | I16: Euros | L16: BAJAS | M16: =IF(H30="","",H30) -> 57420 | N16: =IF(I30="","",I30) -> 1.276 | O16: Euros
L17: FINANCIEROS Y OTROS | M17: =IF(H32="","",H32) -> 12000 | N17: =IF(I32="","",I32) -> 0.2666666667 | O17: Euros
A18: COSTOS | B18: CONCEPTO | C18: EUROS | F18: COSTOS | G18: CONCEPTO | H18: E/AÑO | I18: E/CORDERO | L18: TOTAL COSTOS | M18: =IF(C16="","",SUM(M11:M17)) -> 3343818.75 | N18: =IF(C16="","",SUM(N11:N17)) -> 74.30708333 | O18: Euros
K19: INGRESOS | L19: VENTA CORDEROS | M19: =IF(H36="","",H36) -> 3300750 | N19: 73.35 | O19: Euros
A20: AMORTIZACION | B20: Costo Instalación | C20: 500000 | D20: Euros | F20: AMORTIZACION | G20: Costo Instalación | H20: =IF(C20="","",C20/C21) -> 25000 | I20: =IF(C20="","",H20/C13) -> 0.5555555556 | J20: Euros | L20: VENTA PIEL | M20: 198045 | N20: 4.401 | O20: Euros
B21: Años Amortización | C21: 20 | D21: Euros | L21: OTROS | M21: 0 | N21: 0 | O21: Euros
F22: MANO OBRA | G22: Costo anual | H22: =IF(C23="","",(C23*C15)) -> 70000 | I22: =IF(C23="","",H22/C13) -> 1.555555556 | L22: TOTAL INGRESOS | M22: =IF(M19="","",SUM(M19:M21)) -> 3498795 | N22: =IF(N19="","",SUM(N19:N21)) -> 77.751 | O22: Euros
A23: MANO OBRA | B23: Costo por operario | C23: 14000 | D23: Euros | K23: BALANCE | L23: BENEFICIOS | M23: =IF(M18="","",M22-M18) -> 154976.25 | N23: =IF(N18="","",N22-N18) -> 3.443916667 | O23: Euros
F24: ALIMENTACION | G24: Costo Pienso | H24: =IF(C25="","",(((C25/1000)*C27)*C14)*C13) -> 531168.75 | I24: =IF(C25="","",H24/C13) -> 11.80375 | J24: Euros
A25: ALIMENTACION | B25: Costo Tm Pienso | C25: 355 | D25: Euros/Tm | G25: Costo Paja | H25: =IF(C26="","",(((C26/1000)*0.12)*C14)*C13) -> 13230 | I25: =IF(C26="","",H25/C13) -> 0.294 | J25: Euros
B26: Costo Tm de Paja | C26: 70 | D26: Euros/Tm | G26: TOTAL Alimentación | H26: =IF(H24="","",SUM(H24:H25)) -> 544398.75 | I26: =IF(I24="","",SUM(I24:I25)) -> 12.09775 | J26: Euros
B27: Consumo Medio Diario | C27: 0.95 | D27: Kg/cordero/día
F28: COMPRA&PORTE | G28: Costo Total | H28: =IF(C29="","",C29) -> 25000 | I28: =IF(C29="","",H28/C13) -> 0.5555555556 | J28: Euros
A29: COMPRA Y TRANSPORTE | B29: Costo Total | C29: 25000 | D29: Euros
F30: BAJAS Y OTROS | G30: Total Bajas | H30: =IF(C31="","",(C31*C13)*C16) -> 57420 | I30: =IF(C31="","",H30/C13) -> 1.276 | J30: Euros
A31: BAJAS Y OTROS | B31: % BAJAS (sobre total) | C31: 0.022 | D31: %
F32: FINANCIEROS Y OTROS | G32: Costo Total | H32: =IF(C33="","",C33) -> 12000 | I32: =IF(C33="","",H32/C13) -> 0.2666666667 | J32: Euros
A33: FINANCIEROS Y OTROS | B33: Costo Total | C33: 12000 | D33: Euros
F34: INGRESOS | G34: CONCEPTO | H34: E/AÑO | I34: E/CORDERO
A35: INGRESOS | B35: CONCEPTO | C35: EUROS
F36: VENTA CORDEROS | G36: Ingresos Corderos | H36: =IF(C37="","",(C13-(C13*C31))*C37) -> 3300750 | I36: =IF(C37="","",H36/$C$13) -> 73.35 | J36: Euros
A37: VENTA CORDEROS | B37: Precio Venta Unidad | C37: 75 | D37: Euros | F37: PIEL | G37: Ingresos Piel | H37: =IF(C38="","",($C$13-($C$13*$C$31))*C38) -> 198045 | I37: =IF(C38="","",H37/$C$13) -> 4.401 | J37: Euros
A38: PIEL | B38: Precio Venta Unidad | C38: 4.5 | D38: Euros | F38: OTROS INGRESOS | G38: Ingresos Otros | H38: =IF(C39="","",($C$13-($C$13*$C$31))*C39) -> 0 | I38: =IF(C39="","",H38/$C$13) -> 0 | J38: Euros
A39: OTROS INGRESOS | B39: Precio Venta Unidad | C39: 0 | D39: Euros

Sheet GEST FINANCIACION
C4: FINANCIACION CEBADERO CORDEROS
B5: GANADERO:
B6: FECHA
B8: CORDEROS | C8: Nº CORDEROS ENTRADOS | E8: corderos
C9: PRECIO/CORDERO (Euros) | E9: Euros/cordero
C10: PESO VIVO ENTRADA | E10: Kg/cordero
C11: PESO VIVO SALIDA | E11: Kg/cordero
C12: CAPACIDAD MATANZA SEMANAL | E12: corderos
C13: PLAZO PAGO CORDEROS | E13: dias
C14: PLAZO COBRO MATADERO | E14: dias
C15: FECHA ENTRADA CORDEROS
B17: PIENSO | C17: CONSUMO MEDIO DIARIO | E17: Kg./cordero y dia
C18: PRECIO PIENSO | E18: Euros/Tm pienso
C19: MORTALIDAD ESTIMADA (%)
C20: PLAZO COBRO PIENSO | E20: dias
C22: DIAS ESTANCIA ESTIMADOS | D22: =IF(D10="","",(D11-D10)/0.29) ->  | E22: dias estancia media
C23: FECHA MATANZA ESTIMADA | D23: =IF(D15="","",D15+D22) -> 
C24: FECHA PAGO CORDEROS | D24: =IF(D15="","",D15+D13) -> 
C25: FECHA COBRO MATADERO | D25: =IF(D14="","",D23+D14) -> 
C26: DIAS FINANCIACION | D26: =IF(D25="","",D25-D24) ->  | E26: dias
C28: CONSUMO TOTAL DE PIENSO | D28: =IF(D17="","",((D8*D17*D22)-((D8*D19)*D17*(D22/2)))/1000) ->  | E28: Tm pienso
C29: FECHA VENCIMIENTO PIENSO | D29: =IF(D20="","",D15+D20) -> 
C31: EUROS FINANC. CORDEROS | D31: =IF(D9="","",D8*D9) ->  | E31: Euros
C32: EUROS FINANCIACION PIENSO | D32: =IF(D18="","",D28*D18) ->  | E32: Euros
C33: EUROS FINANCIACION TOTAL | D33: =IF(D18="","",D31+D32) ->  | E33: Euros
D41: SEMANA | E41: SEMANA | F41: SEMANA | G41: SEMANA | H41: SEMANA | I41: SEMANA | J41: SEMANA | K41: SEMANA | L41: SEMANA | M41: SEMANA | N41: SEMANA | O41: SEMANA | P41: SEMANA | Q41: SEMANA | R41: SEMANA | S41: SEMANA | T41: SEMANA | U41: SEMANA | V41: SEMANA | W41: SEMANA | X41: SEMANA | Y41: SEMANA | Z41: SEMANA | AA41: SEMANA | AB41: SEMANA | AC41: SEMANA | AD41: SEMANA | AE41: SEMANA | AF41: SEMANA | AG41: SEMANA | AH41: SEMANA | AI41: SEMANA | AJ41: SEMANA | AK41: SEMANA | AL41: SEMANA | AM41: SEMANA | AN41: SEMANA | AO41: SEMANA | AP41: SEMANA | AQ41: SEMANA | AR41: SEMANA | AS41: SEMANA | AT41: SEMANA | AU41: SEMANA | AV41: SEMANA | AW41: SEMANA | AX41: SEMANA | AY41: SEMANA | AZ41: SEMANA | BA41: SEMANA | BB41: SEMANA | BC41: SEMANA | BD41: SEMANA
D42: 0 | E42: 1 | F42: 2 | G42: 3 | H42: 4 | I42: 5 | J42: 6 | K42: 7 | L42: 8 | M42: 9 | N42: 10 | O42: 11 | P42: 12 | Q42: 13 | R42: 14 | S42: 15 | T42: 16 | U42: 17 | V42: 18 | W42: 19 | X42: 20 | Y42: 21 | Z42: 22 | AA42: 23 | AB42: 24 | AC42: 25 | AD42: 26 | AE42: 27 | AF42: 28 | AG42: 29 | AH42: 30 | AI42: 31 | AJ42: 32 | AK42: 33 | AL42: 34 | AM42: 35 | AN42: 36 | AO42: 37 | AP42: 38 | AQ42: 39 | AR42: 40 | AS42: 41 | AT42: 42 | AU42: 43 | AV42: 44 | AW42: 45 | AX42: 46 | AY42: 47 | AZ42: 48 | BA42: 49 | BB42: 50 | BC42: 51 | BD42: 52
C43: FECHA | D43: =IF(D15="","",D15) ->  | E43: =IF(D43>$D$25,"",D43+7) -> 
B44: CORDEROS | C44: CORDEROS PRESENTES | D44: =IF(D12="",D8,D12) -> 0 | E44: =IF(E43>$D$23,"",IF(E42<($D$8/$D$12),(((D44+$D$12)-((D44+$D$12)*(($D$19/$D$22)*7)))),D44)) ->  | F44: =IF(F43>$D$23,"",IF(F42<($D$8/$D$12),(((E44+$D$12)-((E44+$D$12)*(($D$19/$D$22)*7)))),E44)) -> 
C45: CORDEROS PENDIENTES PAGO | D45: =$D$8/($D$8/$D$12) ->  | E45: =IF(E43>$D$25,"",IF(D45<D8,(D45+($D$8/($D$8/$D$12))),$D$8)) -> 
C46: SALDO CORDEROS (EUROS) | D46: =IF(D43<$D$24,0,IF(D43>$D$25,"",D45*$D$9)) ->  | E46: =IF(E43>$D$25,"",IF(E43<$D$24,0,IF(E45=$D$8,$D$31,(D46+(E45-D45)*$D$9)))) ->  | F46: =IF(F43>$D$25,"",IF(F43<$D$24,0,IF(F45=$D$8,$D$31,(E46+(F45-E45)*$D$9)))) ->  | G46: =IF(G43>$D$25,"",IF(G43<$D$24,0,IF(G45=$D$8,$D$31,(F46+(G45-F45)*$D$9)))) ->  | H46: =IF(H43>$D$25,"",IF(H43<$D$24,0,IF(H45=$D$8,$D$31,(G46+(H45-G45)*$D$9)))) ->  | I46: =IF(I43>$D$25,"",IF(I43<$D$24,0,IF(I45=$D$8,$D$31,(H46+(I45-H45)*$D$9)))) -> 
C47: DIAS FINANCIACION CORDEROS | D47: =IF(D43="","",IF(D46=0,0,IF(D43>$D$25,0,$D$25-D43))) -> 
B48: PIENSO | C48: PIENSO SERVIDO | D48: =IF(D43>$D$29,"",(D28/(D23-D15))*7) ->  | E48: =IF(E43>$D$29,"",IF(D48<($D$28-$D$48),(D48+($D$28/($D$23-$D$15))*7),$D$28)) -> 
C49: SALDO PIENSO (EUROS) | D49: =IF(D43>$D$29,"",D48*$D$18) ->  | E49: =IF(E43>$D$29,"",E48*$D$18) -> 
C50: DIAS FINANCIACION PIENSO | D50: =IF(D43>$D$29,"",$D$29-D43) ->  | E50: =IF(E43>$D$29,"",$D$29-E43) -> 
C51: SALDO TOTAL (EUROS) | D51: =IF(D49="","",IF(D46="","",D46+D49)) ->  | E51: =IF(E49="","",IF(E46="","",E46+E49)) -> 
C52: DIAS MEDIOS FINANCIACION | D52: =IF(D50="","",IF(D47="","",((D46*D47)+(D49*D50))/D51)) ->  | E52: =IF(E50="","",IF(E47="","",((E46*E47)+(E49*E50))/E51)) -> 

Sheet GEST PPCC
A5: EVALUACIÓN PUNTOS CRITICOS | E5: EVALUACIÓN PUNTOS CRITICOS
A7: GANADERO: | E7: GANADERO: | F7: =IF(B7="","",B7) -> 
A8: FECHA | E8: FECHA | F8: =IF(B8="","",B8) -> 
A9: PUNTUACIONES PARAMETROS (0 a 4)
A11: BASES PPCC | B11: INDICADORES | C11: PUNTUACION
A12: ALIMENTACION | B12: Calidad del agua | D12: =IF(C12="","",'ENLACES DATOS'!L647) -> 
B13: Tipo de piensos utilizados | D13: =IF(C13="","",'ENLACES DATOS'!L648) -> 
B14: Metro lineal comedero/m2 | D14: =IF(C14="","",'ENLACES DATOS'!L649) -> 
B15: Puntos de agua/m2 | D15: =IF(C15="","",'ENLACES DATOS'!L650) -> 
B16: Metro lineal forrajera/m2 | D16: =IF(C16="","",'ENLACES DATOS'!L651) -> 
A17: SANIDAD | B17: Control de Orígenes | D17: =IF(C17="","",'ENLACES DATOS'!L652) -> 
B18: Profilaxis a la entrada | D18: =IF(C18="","",'ENLACES DATOS'!L653) -> 
B19: Manejo de enfermos | D19: =IF(C19="","",'ENLACES DATOS'!L654) -> 
B20: Plan DDD | D20: =IF(C20="","",'ENLACES DATOS'!L655) -> 
B21: Gestión de Bajas | D21: =IF(C21="","",'ENLACES DATOS'!L656) -> 
A22: INSTALACIONES Y BA | B22: Densidad de animales | D22: =IF(C22="","",'ENLACES DATOS'!L657) -> 
B23: Aislamiento y ventilación | D23: =IF(C23="","",'ENLACES DATOS'!L658) -> 
B24: Frecuencia limpieza de comederos | D24: =IF(C24="","",'ENLACES DATOS'!L659) -> 
B25: Sistemas de medicación | D25: =IF(C25="","",'ENLACES DATOS'!L660) -> 
B26: Gestión de estiércol | D26: =IF(C26="","",'ENLACES DATOS'!L661) -> 
A27: ZOOTECNICOS | B27: Control de peso de entrada y salida | D27: =IF(C27="","",'ENLACES DATOS'!L662) -> 
B28: Dias de estancia. | D28: =IF(C28="","",'ENLACES DATOS'!L663) -> 
B29: Porcentaje de bajas | D29: =IF(C29="","",'ENLACES DATOS'!L664) -> 
B30: Gestión de lotes | D30: =IF(C30="","",'ENLACES DATOS'!L665) -> 
B31: Corderos vendidos /m2 | D31: =IF(C31="","",'ENLACES DATOS'!L666) -> 
A32: ECONOMIA | B32: UTH | D32: =IF(C32="","",'ENLACES DATOS'!L667) -> 
B33: Forma de comercialización | D33: =IF(C33="","",'ENLACES DATOS'!L668) -> 
B34: Amortización instalaciones | D34: =IF(C34="","",'ENLACES DATOS'!L669) -> 
B35: Cualificación del personal | D35: =IF(C35="","",'ENLACES DATOS'!L670) -> 
B36: GMD e I.C. | D36: =IF(C36="","",'ENLACES DATOS'!L671) -> 
A38: BASES | B38: REALES | C38: MEDIOS
A39: ALIMENTACION | B39: =IF(C12="","",'ENLACES DATOS'!C675) ->  | C39: =IF(C12="","",'ENLACES DATOS'!D675) ->  | D39: =IF(B39="","",'ENLACES DATOS'!G675) -> 
A40: SANIDAD | B40: =IF(C13="","",'ENLACES DATOS'!C676) ->  | C40: =IF(C13="","",'ENLACES DATOS'!D676) ->  | D40: =IF(B40="","",'ENLACES DATOS'!G676) -> 
A41: INTALAC. Y BA | B41: =IF(C14="","",'ENLACES DATOS'!C677) ->  | C41: =IF(C14="","",'ENLACES DATOS'!D677) ->  | D41: =IF(B41="","",'ENLACES DATOS'!G677) -> 
A42: ZOOTECNICOS | B42: =IF(C15="","",'ENLACES DATOS'!C678) ->  | C42: =IF(C15="","",'ENLACES DATOS'!D678) ->  | D42: =IF(B42="","",'ENLACES DATOS'!G678) -> 
A43: ECONOMIA | B43: =IF(C16="","",'ENLACES DATOS'!C679) ->  | C43: =IF(C16="","",'ENLACES DATOS'!D679) ->  | D43: =IF(B43="","",'ENLACES DATOS'!G679) -> 

Sheet CRITERIOS PPCC
A6: CRITERIOS PUNTUACION PPCC | G6: CRITERIOS PUNTUACION PPCC | M6: CRITERIOS PUNTUACION PPCC | S6: CRITERIOS PUNTUACION PPCC | Y6: CRITERIOS PUNTUACION PPCC
A7: GANADERO: | G7: GANADERO: | H7: =IF(B7="","",B7) ->  | M7: GANADERO: | N7: =IF(H7="","",H7) ->  | S7: GANADERO: | T7: =IF(N7="","",N7) ->  | Y7: GANADERO: | Z7: =IF(T7="","",T7) -> 
A8: FECHA | G8: FECHA | H8: =IF(B8="","",B8) ->  | M8: FECHA | N8: =IF(H8="","",H8) ->  | S8: FECHA | T8: =IF(N8="","",N8) ->  | Y8: FECHA | Z8: =IF(T8="","",T8) -> 
A9: HOJA DE PUNTUACION (0 a 4) | G9: HOJA DE PUNTUACION (0 a 4) | M9: HOJA DE PUNTUACION (0 a 4) | S9: HOJA DE PUNTUACION (0 a 4) | Y9: HOJA DE PUNTUACION (0 a 4)
A11: ALIMENTACION | G11: SANIDAD | M11: INSTALACIONES Y B.A. | S11: INDICES ZOOTÉCNICOS | Y11: INDICES ECONÓMICOS
A13: CALIDAD DEL AGUA | B13: Calidad OK , controles periodicos y deposito con posibilidad de cloracion | C13: 4 | G13: CONTROL DE ORIGENES | H13: Compra siempre a mismos proveedores con control de los mismos | I13: 4 | M13: DENSIDAD DE ANIMALES | N13: < 1,5 corderos/m2 | O13: 4 | S13: CONTROL DE PESO DE ENTRADA Y SALIDA | T13: Control de pesos de entrada y salida y controles periodicos | U13: 4 | Y13: CORDEROS/UTH | Z13: >1000 | AA13: 4
B14: Calidad OK y deposito y controles ocasionales y cloracion | C14: 3 | H14: Compra siempre a mismos proveedores sin control de los mismos | I14: 3 | N14: De 1,5 a 2 corderos m2 | O14: 3 | T14: Control de pesos de entrada y salida y controles ocasionales | U14: 3 | Z14: 800-1000 | AA14: 3
B15: Calidad OK y deposito y cloración | C15: 2 | H15: Compra a algunos proveedores y bastantes ocasionales | I15: 2 | N15: De 2 a 2,3 corderos/m2 | O15: 2 | T15: Control de pesos de entrada y salida o control de pesos de entrada o salida y controles periodicos u ocasionales | U15: 2 | Z15: 600-800 | AA15: 2
B16: Calidad OK | C16: 1 | H16: Compra mayoritariamente a proveedores ocasionales | I16: 1 | N16: De 2,3 a 2,5 corderos/m2 | O16: 1 | T16: Control de pesos de entrada o salida | U16: 1 | Z16: 400-600 | AA16: 1
B17: Calidad no conforme | C17: 0 | H17: Compra aleatoria | I17: 0 | N17: Más de 2,5 corderos/m2 | O17: 0 | T17: No controla ni entrada ni salida | U17: 0 | Z17: <400 | AA17: 0
A18: TIPO DE PIENSOS UTILIZADOS | B18: Adaptacion medicado y retirada y correctos | C18: 4 | G18: PROFILAXIS A LA ENTRADA | H18: Tratamientos sistemático (agua o iny)+ vacunas que procedan (según patología) a la entrada + lotes por peso + apartar los enfermos en un hospital | I18: 4 | M18: AISLAMIENTO Y VENTILACION | N18: Aparatos de medida y control. Adecuado dimensionado de naves. Condiciones excelentes en temperatura, ventilación (sin corrientes) y carga amoniaco.Buen aislamiento | O18: 4 | S18: DIAS DE ESTANCIA | T18: < 15 dias | U18: 4 | Y18: FORMA DE COMERCIALIZACION | Z18: Comercialización asegurada y solvente a mercados con alto valor añadido | AA18: 4
B19: Medicado y retirada y correctos | C19: 3 | H19: Tratamientos (agua o iny) a la entrada, No vacuna, CON lotes y CON hospital | I19: 3 | N19: Correcto dimensionado y adecuadas condiciones ambientales.Buen aislamiento | O19: 3 | T19: 15-20 dias | U19: 3 | Z19: Comercialización asegurada y solvente mediante contratos | AA19: 3
B20: Solo medicado o solo retirada y correctos | C20: 2 | H20: Tratamientos ocasionales a la entrada CON lotes SIN apartar los enfermos en un hospital | I20: 2 | N20: Correcto dimensionado pero condiciones poco adecuadas en un parámetro | O20: 2 | T20: 20-25 dias | U20: 2 | Z20: Comercialización ocasional a particular solvente | AA20: 2
B21: Incorrectos pero más de 1 pienso | C21: 1 | H21: Tratamientos ocasionales a la entrada, sin lotes ni controles de enfermos | I21: 1 | N21: Incorrecto dimensionado y condiciones inadecuadas en tª o ventilación o carga amoniaco. | O21: 1 | T21: 25-30 dias | U21: 1 | Z21: Comercialización ocasional | AA21: 1
B22: 1 pienso solo e incorrecto | C22: 0 | H22: No trata hasta que mueren, o ni eso | I22: 0 | N22: Incorrecto dimensionado e inadecuadas condiciones en los tres parámetros y mal aislamiento | O22: 0 | T22: > 30 dias | U22: 0 | Z22: Problemas de comercialización | AA22: 0
A23: CORDEROS/M LINEAL COMEDERO | B23: < 40 corderos | C23: 4 | G23: MANEJO DE ENFERMOS | H23: Necropsias y diagnóstico, ttos inyectables y al agua, apartando en hospital | I23: 4 | M23: FRECUENCIA LIMPIEZA DE COMEDEROS | N23: Diariamente todos los comederos | O23: 4 | S23: PORCENTAJE DE BAJAS | T23: < 1% | U23: 4 | Y23: AMORTIZACION INSTALACIONES | Z23: Menos del 5% de gastos totales | AA23: 4
B24: 40-60 corderos | C24: 3 | H24: ttos inyectables o al agua, apartando en hospital | I24: 3 | N24: Cada dos días todos los comederos | O24: 3 | T24: 1-1,2% | U24: 3 | Z24: Entre 5 y 10 % de gastos totales | AA24: 3
B25: 60-80 corderos | C25: 2 | H25: Ttos inyectables o al agua, sin apartar al hospital | I25: 2 | N25: Dos veces a la semana todos los comederos. | O25: 2 | T25: 1,2-1,5% | U25: 2 | Z25: Entre 10 y 15% de gastos totales | AA25: 2
B26: 80-100 corderos | C26: 1 | H26: Ttos al agua | I26: 1 | N26: Una vez a la semana todos los comederos | O26: 1 | T26: 1,5-2% | U26: 1 | Z26: Entre 15 y 20% de gastos totales | AA26: 1
B27: >100 corderos | C27: 0 | H27: No trata | I27: 0 | N27: Ocasionalmente cuando hace falta o nunca | O27: 0 | T27: >2% | U27: 0 | Z27: Más del 20% de gastos totales o no sabe/no contesta | AA27: 0
A28: CORDEROS POR PUNTO DE AGUA | B28: < 30 corderos | C28: 4 | G28: PLAN DDD | H28: Sistema automatizado de desinfección/desinsectación (nebulización) a empresa externa especializada | I28: 4 | M28: SISTEMAS DE MEDICACION | N28: Sistema dosificación automática con doble vía de agua en todos los parques. | O28: 4 | S28: GESTION DE LOTES | T28: Clasificación sistemática por peso sexo y origen | U28: 4 | Y28: CUALIFICACION DEL PERSONAL | Z28: Corderos justos por trabajador cualificado e implicado | AA28: 4
B29: 30-50 corderos | C29: 3 | H29: Sistema automatizado de desinfección/desinsectación (nebulización) | I29: 3 | N29: Sistema automático con posibilidad de medicar algunos parques. | O29: 3 | T29: Clasificación sistemática por peso y sexo. | U29: 3 | Z29: Suficientes corderos por trabajador con conocimientos | AA29: 3
B30: 50-70 corderos | C30: 2 | H30: Sistema manual de desinfección/desinsectación | I30: 2 | N30: Depósitos móviles para llevar a determinados corrales | O30: 2 | T30: Clasificación sistemática por peso. | U30: 2 | Z30: Bastantes corderos por trabajador. Trabajador con ciertos conocimientos. | AA30: 2
B31: 70-90 corderos | C31: 1 | H31: Desinfección/desinsectación ocasional | I31: 1 | N31: Depósito para medicar enfermería y corrales desados | O31: 1 | T31: Clasificación ocasional por alguna de ellas | U31: 1 | Z31: Muchos corderos por trabajador con poca cualificacion | AA31: 1
B32: >90 corderos | C32: 0 | H32: No se hacen tratamientos | I32: 0 | N32: No hay posibilidad de medicar el agua | O32: 0 | T32: No clasifica | U32: 0 | Z32: Falta evidente de mano de obra Y poco cualificada | AA32: 0
A33: CORDEROS/M LINEAL FORRAJERA | B33: > 25 corderos | C33: 4 | G33: GESTION DE BAJAS | H33: Necropsia de los cadáveres sistemática, con confirmación laboratorial | I33: 4 | M33: GESTION DE ESTIERCOL | N33: Saca estiercol cada entrada de animales | O33: 4 | S33: CORDEROS VENDIDOS/M2 | T33: > 30 corderos/m2 año | U33: 4 | Y33: GMD e IC | Z33: Controla los consumos de pienso y calcula los Indices Tecnicos. Valores apropiados | AA33: 4
B34: 25-35 corderos | C34: 3 | H34: Necropsia de los cadáveres sistemática, sin confirmación laboratorial | I34: 3 | N34: Saca estiercol cada 1-3 meses | O34: 3 | T34: 25-30 corderos/m2 año | U34: 3 | Z34: Controla los consumos u los Indices Tecnicos.- Valores bastante variabes | AA34: 3
B35: 35-45 corderos | C35: 2 | H35: Necropsia ocasional con confirmación ocasional, por el mismo veterinario | I35: 2 | N35: Saca estiercol cada 3-6 meses | O35: 2 | T35: 20-25 corderos/m2 año | U35: 2 | Z35: Controla ocasionalmente los Indices tecnicos o los controla siempre pero no son adecuados | AA35: 2
B36: 45-55 corderos | C36: 1 | H36: Necropsia ocasional con confirmación ocasional con veterinario ocasional o variable (casas comerciales varias, etc) | I36: 1 | N36: Saca estiercol cada 6-8 meses | O36: 1 | T36: 15-20corderos/m2 año | U36: 1 | Z36: No controla indices tecnicos pero intuye que tiene unos valores aceptables | AA36: 1
B37: >55 corderos | C37: 0 | H37: No se realizan diagnósticos | I37: 0 | N37: Saca estiercol cada más de 8 meses | O37: 0 | T37: <15 corderos/m2 año | U37: 0 | Z37: No controla indices tecnicos y tiene valores no adecuados | AA37: 0

Sheet GEST BA
A7: EVALUACIÓN BIENESTAR ANIMAL | E7: EVALUACIÓN BIENESTAR ANIMAL
A8: GANADERO: | E8: GANADERO: | F8: =IF(B8="","",B8) -> 
A9: FECHA | E9: FECHA | F9: =IF(B9="","",B9) -> 
A10: PUNTUACIONES PARAMETROS B.A. (3 a 8) | E10: GRAFICOS. DIAGNOSTICO
A11: B.A. | B11: PARAMETRO | C11: PUNTUACION | D11: CALIFICACION
A12: B.A. AMBIENTE | B12: TEMPERATURA | D12: =IF(C12="","",'ENLACES DATOS'!G621) -> 
B13: CORRIENTES AIRE | D13: =IF(C13="","",'ENLACES DATOS'!G622) -> 
B14: VENTILACION | D14: =IF(C14="","",'ENLACES DATOS'!G623) -> 
B15: AMBIENTE CARGADO | D15: =IF(C15="","",'ENLACES DATOS'!G624) -> 
A16: B.A.MANEJO | B16: DENSIDAD ANIMALES | D16: =IF(C16="","",'ENLACES DATOS'!G625) -> 
B17: CALIDAD CAMA | D17: =IF(C17="","",'ENLACES DATOS'!G626) -> 
B18: CONFORT ANIMALES | D18: =IF(C18="","",'ENLACES DATOS'!G627) -> 
B19: ANIMALES ESTRESADOS | D19: =IF(C19="","",'ENLACES DATOS'!G628) -> 
B20: LIMPIEZA ANIMALES | D20: =IF(C20="","",'ENLACES DATOS'!G629) -> 
A21: B.A.INSTALACIONES | B21: COMEDEROS PIENSO | D21: =IF(C21="","",'ENLACES DATOS'!G630) -> 
B22: COMEDEROS PAJA | D22: =IF(C22="","",'ENLACES DATOS'!G631) -> 
B23: BEBEDEROS | D23: =IF(C23="","",'ENLACES DATOS'!G632) -> 
A24: OTROS PARAMETROS | B24: CONSISTENCIA HECES(1a5) | D24: =IF(C24="","",'ENLACES DATOS'!G633) -> 
B25: ESTADO CORPORAL(1a5) | D25: =IF(C25="","",'ENLACES DATOS'!G634) -> 
A27: GLOBALES | B27: Nº CHEQUEOS | C27: =IF(C12="","",'ENLACES DATOS'!B620) -> 
B28: BA AMBIENTE | C28: =IF(C12="","",'ENLACES DATOS'!G637) -> 
B29: BA MANEJO | C29: =IF(C17="","",'ENLACES DATOS'!G638) -> 
B30: BA INSTALACIONES | C30: =IF(C21="","",'ENLACES DATOS'!G639) -> 
B31: BA GLOBAL | C31: =IF(C12="","",'ENLACES DATOS'!G640) -> 
A34: COMENTARIOS:
A35: =IF(C12="","",IF('ENLACES DATOS'!F637<'ENLACES DATOS'!D637,"NECESARIO REVISAR BA AMBIENTE",IF('ENLACES DATOS'!F637>'ENLACES DATOS'!E637,"EXCELENTE CALIFICACION BA AMBIENTE","BA AMBIENTE DENTRO DE LOS VALORES MEDIOS"))) -> 
A36: =IF(C12="","",IF('ENLACES DATOS'!F638<'ENLACES DATOS'!D638,"NECESARIO REVISAR BA MANEJO",IF('ENLACES DATOS'!F638>'ENLACES DATOS'!E638,"EXCELENTE CALIFICACION BA MANEJO","BA MANEJO DENTRO DE LOS VALORES MEDIOS"))) -> 
A37: =IF(C12="","",IF('ENLACES DATOS'!F639<'ENLACES DATOS'!D639,"NECESARIO REVISAR BA INSTALACIONES",IF('ENLACES DATOS'!F639>'ENLACES DATOS'!E639,"EXCELENTE CALIFICACION BA INSTALACIONES","BA INSTALACIONES DENTRO DE LOS VALORES MEDIOS"))) -> 
A38: =IF(C12="","",IF('ENLACES DATOS'!F640<'ENLACES DATOS'!D640,"NECESARIO REVISAR BA GLOBAL",IF('ENLACES DATOS'!F640>'ENLACES DATOS'!E640,"EXCELENTE CALIFICACION BA GLOBAL","BA GLOBAL DENTRO DE LOS VALORES MEDIOS"))) -> 

Sheet HOJA PUNTUACION BA
A6: CRITERIOS PUNTUACION BIENESTAR ANIMAL | G6: CRITERIOS PUNTUACION BIENESTAR ANIMAL
A7: GANADERO: | G7: GANADERO: | H7: =IF(B7="","",B7) -> 
A8: FECHA | G8: FECHA | H8: =IF(B8="","",B8) -> 
A9: HOJA DE PUNTUACION (3 a 8) | G9: HOJA DE PUNTUACION
A10: BA AMBIENTE | B10: TEMPERATURA | C10: Menos de 1ºC y más de 32ºC | D10: 3-4 | G10: BA INSTALACIONES | H10: COMEDEROS PIENSO | I10: O sucios o vacios o poco espacio | J10: 3-4
C11: Entre 1 y 15 y entre 25 y 32 | D11: 5-6 | I11: Limpios y llenos y espacio suficiente | J11: 5-6
C12: Entre 15 y 25 ºC | D12: 7-8 | I12: Muy limpios y sobrado espacio. Llenos | J12: 7-8
B13: CORRIENTES AIRE | C13: Corrientes de lleno en los animales | D13: 3-4 | H13: COMEDEROS PAJA | I13: O sucios o vacios o poco espacio | J13: 3-4
C14: Hay algunas corrientes . Animales porotegidos | D14: 5-6 | I14: Limpios y llenos y espacio suficiente | J14: 5-6
C15: No hay corrientes en toda la nave | D15: 7-8 | I15: Muy limpios y sobrado espacio. Llenos | J15: 7-8
B16: VENTILACION | C16: Ni entradas y salidas ni volumen estático | D16: 3-4 | H16: BEBEDEROS | I16: O sucios o vacios o poco espacio | J16: 3-4
C17: Cummple bien alguno d elos requisitos | D17: 5-6 | I17: Limpios y llenos y espacio suficiente | J17: 5-6
C18: Entradas y salidas/animal correctas. Adecuado volumen estático | D18: 7-8 | I18: Muy limpios y sobrado espacio. Distancias cortas para beber | J18: 7-8
B19: AMBIENTE CARGADO | C19: Tufo evidente con irritacion en ojos | D19: 3-4 | G19: ESTADO ANIMALES | H19: CONSISTENCIA HECES (1a5) | I19: Diarrea | J19: 2
C20: Se percibe un leve tufo | D20: 5-6 | I20: Varias bolas unidas | J20: 3
C21: No hay nada de tufo. No olor en ropa | D21: 7-8 | I21: Cagarruta definida y dura | J21: 4
A22: BA MANEJO | B22: DENSIDAD ANIMALES | C22: Menos de 0.3m2 por cordero presente | D22: 3-4 | H22: ESTADO CORPORAL 1a5) | I22: Caquécticos | J22: 1
C23: Entre 0.3m2 y 0.5m2 por cordero presente | D23: 5-6 | I23: Curvatura cóncava grupa y columna vertebral | J23: 2
C24: Más de 0.5m2 por cordero presente | D24: 7-8 | I24: No hay curvatura en columna vertebral | J24: 3
B25: CALIDAD CAMA | C25: O sucia o humeda o ambas | D25: 3-4 | I25: Curvatura convexa en grupa y columna | J25: 4
C26: Limpia y seca | D26: 5-6 | I26: Animal muy engrasado | J26: 5
C27: Abundante limpia y seca | D27: 7-8
B28: CONFORT ANIMALES | C28: Hay ruidos, humedad, mal islamiento o goteoç | D28: 3-4
C29: Ausencia de las anteriores. Buenas condiciones para que los animales se tumben. | D29: 5-6
C30: Además, distancias adecuadas entre forrajeras, agua y comederas | D30: 7-8
B31: ANIMALES ESTRESADOS | C31: Lamen paredes, suelo, de pie más del 60% | D31: 3-4
C32: 60-80% tumbados y comiendo. No signos de estrés | D32: 5-6
C33: Tumbados tranquilamente más del 80% | D33: 7-8
B34: LIMPIEZA ANIMALES | C34: Sucios | D34: 3-4
C35: Limpios. Algo de suciedad en patas | D35: 5-6
C36: Muy limpios y relucientes | D36: 7-8

Sheet CRITERIOS BA
A6: CRITERIOS BIENESTAR ANIMAL | G6: CRITERIOS BIENESTAR ANIMAL | N6: CRITERIOS BIENESTAR ANIMAL | U6: CRITERIOS BIENESTAR ANIMAL | AC6: CRITERIOS BIENESTAR ANIMAL
A7: GANADERO:
A8: FECHA

Sheet GEST EE
A7: EVALUACIÓN ESTADO ENGRASAMIENTO
A8: GANADERO:
A9: FECHA
A10: DATOS PUNTUACIÓN EE (1a5)
A11: SEXO | B11: EE (1 a 5)
C29: EE MEDIO | D29: VARIABILIDAD EE | E29: % MUESTRA
A30: OBTENIDOS | B30: MACHOS | C30: =IF(B12="","",'ENLACES DATOS'!B608) ->  | D30: =IF(B12="","",'ENLACES DATOS'!E608) ->  | E30: =IF(B12="","",'ENLACES DATOS'!D608/'ENLACES DATOS'!B605) -> 
B31: HEMBRAS | C31: =IF(B12="","",'ENLACES DATOS'!B609) ->  | D31: =IF(B12="","",'ENLACES DATOS'!E609) ->  | E31: =IF(B13="","",'ENLACES DATOS'!D609/'ENLACES DATOS'!B605) -> 
A32: ESPERADOS | B32: MACHOS | C32: =IF(B12="","",'ENLACES DATOS'!J535) ->  | D32: =IF(B12="","",'ENLACES DATOS'!N535) -> 
B33: HEMBRAS | C33: =IF(B12="","",'ENLACES DATOS'!J536) ->  | D33: =IF(B12="","",'ENLACES DATOS'!N536) -> 
C35: MAXIMO | D35: MINIMO
A36: ADMISIBLES | B36: MACHOS | C36: =IF(B12="","",'ENLACES DATOS'!L535) ->  | D36: =IF(B12="","",'ENLACES DATOS'!M535) -> 
B37: HEMBRAS | C37: =IF(B12="","",'ENLACES DATOS'!L536) ->  | D37: =IF(B14="","",'ENLACES DATOS'!M536) -> 
A39: MACHOS | B39: =IF(B12="","",IF(C30>C36,"ALTO NIVEL ENGRASAMIENTO",IF(C30>C32,"ENGRASAMIENTO MAYOR AL ESPERADO","ENGRASAMIENTO MENOR AL ESPERADO"))) ->  | D39: =IF(B12="","",IF(D30>D32,"ALTA VARIABILIDAD","VARIABILIDAD ADECUADA")) -> 
A40: HEMBRAS | B40: =IF(B12="","",IF(C31>C37,"ALTO NIVEL ENGRASAMIENTO",IF(C31>C33,"ENGRASAMIENTO MAYOR AL ESPERADO","ENGRASAMIENTO MENOR AL ESPERADO"))) ->  | D40: =IF(B12="","",IF(D31>D33,"ALTA VARIABILIDAD","VARIABILIDAD ADECUADA")) -> 

Sheet GEST CALIDAD CANAL
A7: EVALUACIÓN CALIDAD CANAL | E7: EVALUACIÓN CALIDAD CANAL
A8: GANADERO: | E8: GANADERO: | F8: =IF(B8="","",B8) -> 
A9: FECHA | E9: FECHA | F9: =IF(B9="","",B9) -> 
A10: DATOS pHs CANALES (Semimembranoso) | E10: GRAFICOS. DIAGNOSTICO
A11: ANIMAL | B11: pH | D11: Desv. St.
A12: CORDERO 1 | C12: =IF(B12="","",IF('ENLACES DATOS'!D498="","OK","Valor excesivamente alto")) ->  | D12: =IF(B12="","",IF('ENLACES DATOS'!F498="","OK","Fuera de desviación")) -> 
A13: CORDERO 2 | C13: =IF(B13="","",IF('ENLACES DATOS'!D499="","OK","Valor excesivamente alto")) ->  | D13: =IF(B13="","",IF('ENLACES DATOS'!F499="","OK","Fuera de desviación")) -> 
A14: CORDERO 3 | C14: =IF(B14="","",IF('ENLACES DATOS'!D500="","OK","Valor excesivamente alto")) ->  | D14: =IF(B14="","",IF('ENLACES DATOS'!F500="","OK","Fuera de desviación")) -> 
A15: CORDERO 4 | C15: =IF(B15="","",IF('ENLACES DATOS'!D501="","OK","Valor excesivamente alto")) ->  | D15: =IF(B15="","",IF('ENLACES DATOS'!F501="","OK","Fuera de desviación")) -> 
A16: CORDERO 5 | C16: =IF(B16="","",IF('ENLACES DATOS'!D502="","OK","Valor excesivamente alto")) ->  | D16: =IF(B16="","",IF('ENLACES DATOS'!F502="","OK","Fuera de desviación")) -> 
A17: CORDERO 6 | C17: =IF(B17="","",IF('ENLACES DATOS'!D503="","OK","Valor excesivamente alto")) ->  | D17: =IF(B17="","",IF('ENLACES DATOS'!F503="","OK","Fuera de desviación")) -> 
A18: CORDERO 7 | C18: =IF(B18="","",IF('ENLACES DATOS'!D504="","OK","Valor excesivamente alto")) ->  | D18: =IF(B18="","",IF('ENLACES DATOS'!F504="","OK","Fuera de desviación")) -> 
A19: CORDERO 8 | C19: =IF(B19="","",IF('ENLACES DATOS'!D505="","OK","Valor excesivamente alto")) ->  | D19: =IF(B19="","",IF('ENLACES DATOS'!F505="","OK","Fuera de desviación")) -> 
A20: CORDERO 9 | C20: =IF(B20="","",IF('ENLACES DATOS'!D506="","OK","Valor excesivamente alto")) ->  | D20: =IF(B20="","",IF('ENLACES DATOS'!F506="","OK","Fuera de desviación")) -> 
A21: CORDERO 10 | C21: =IF(B21="","",IF('ENLACES DATOS'!D507="","OK","Valor excesivamente alto")) ->  | D21: =IF(B21="","",IF('ENLACES DATOS'!F507="","OK","Fuera de desviación")) -> 
A22: CORDERO 11 | C22: =IF(B22="","",IF('ENLACES DATOS'!D508="","OK","Valor excesivamente alto")) ->  | D22: =IF(B22="","",IF('ENLACES DATOS'!F508="","OK","Fuera de desviación")) -> 
A23: CORDERO 12 | C23: =IF(B23="","",IF('ENLACES DATOS'!D509="","OK","Valor excesivamente alto")) ->  | D23: =IF(B23="","",IF('ENLACES DATOS'!F509="","OK","Fuera de desviación")) -> 
A24: CORDERO 13 | C24: =IF(B24="","",IF('ENLACES DATOS'!D510="","OK","Valor excesivamente alto")) ->  | D24: =IF(B24="","",IF('ENLACES DATOS'!F510="","OK","Fuera de desviación")) -> 
A25: CORDERO 14 | C25: =IF(B25="","",IF('ENLACES DATOS'!D511="","OK","Valor excesivamente alto")) ->  | D25: =IF(B25="","",IF('ENLACES DATOS'!F511="","OK","Fuera de desviación")) -> 
A26: CORDERO 15 | C26: =IF(B26="","",IF('ENLACES DATOS'!D512="","OK","Valor excesivamente alto")) ->  | D26: =IF(B26="","",IF('ENLACES DATOS'!F512="","OK","Fuera de desviación")) -> 
A27: CORDERO 16 | C27: =IF(B27="","",IF('ENLACES DATOS'!D513="","OK","Valor excesivamente alto")) ->  | D27: =IF(B27="","",IF('ENLACES DATOS'!F513="","OK","Fuera de desviación")) -> 
A29: OBTENIDOS | B29: pH | C29: =IF(B12="","",'ENLACES DATOS'!B515) -> 
B30: VARIABILIDAD | C30: =IF(B12="","",'ENLACES DATOS'!D516) -> 
A32: ESPERADOS | B32: pH | C32: =IF(B12="","",'ENLACES DATOS'!B519) -> 
B33: VARIABILIDAD | C33: =IF(B12="","",'ENLACES DATOS'!D520) -> 
A35: COMENTARIOS:
A36: =IF(B12="","",IF('ENLACES DATOS'!C519<'ENLACES DATOS'!B520,"VALORES ADECUADOS DE pH","VALORES DE pH EXCESIVAMENTE ALTOS")) -> 
A37: =IF(B12="","",IF('ENLACES DATOS'!C520<0,"DATOS DESVIADOS DENTRO DE LA NORMALIDAD","ALTAS DESVIACIONES EN GLOBAL")) -> 
A38: =IF(B12="","",IF('ENLACES DATOS'!B521<0.121,"BAJO % DE REGISTROS FUERA DE DESVIACION","ALTO % DE REGISTROS FUERA DE DESVIACIÓN")) -> 
A39: =IF(B12="","",IF('ENLACES DATOS'!B522<0.12,"BAJO PORCENTAJE CON VALORES BAJOS","ALTO PORCENTAJE CON VALORES ALTOS")) -> 

Sheet GEST EVALUAC CEBO
A7: EVALUACIÓN/COMPARACIÓN PRUEBA CEBO
A8: GANADERO:
A9: DATOS DE CEBO
C10: PIENSO 1 | D10: PIENSO 2
A11: DATOS GENERALES | B11: FECHA ENTRADA
B12: PESO ENTRADA (KG)
B13: G.M.D. (Kg/día)
B14: I.C.
B15: PRECIO PIENSO
A17: PREVER FECHA SALIDA | B17: PESO SALIDA (KG)
B18: FECHA PREV. SALIDA | C18: =IF(C17="","",((C17-C12)/C13)+C11) ->  | D18: =IF(D17="","",((D17-D12)/D13)+D11) -> 
A20: PREVER PESO SALIDA | B20: FECHA SALIDA
B21: PESO PREV.SALIDA | C21: =IF(C20="","",((C20-C11)*C13)+C12) ->  | D21: =IF(D20="","",((D20-D11)*D13)+D12) -> 
A23: COSTES | B23: COSTE CORDERO | C23: =IF(C14="","",((C17-C12)*C14)*(C15/1000)) ->  | D23: =IF(D14="","",((D17-D12)*D14)*(D15/1000)) -> 
B24: COSTE CORDERO/DIA | C24: =IF(C13="","",C23/((C17-C12)/C13)) ->  | D24: =IF(D13="","",D23/((D17-D12)/D13)) -> 
B25: COSTE KILO REPUESTO | C25: =IF(C14="","",C23/(C17-C12)) ->  | D25: =IF(D14="","",D23/(D17-D12)) -> 
A27: PRECIOS REALES | B27: I.C. ESTIMADO | C27: =IF(C14="","",D25/(C15/1000)) ->  | D27: =IF(D14="","",(C25/(D15/1000))) -> 
B28: PRECIO PIENSO EST. | C28: =IF(C15="","",(D25/C14)*1000) ->  | D28: =IF(D15="","",(C25/D14)*1000) -> 
B29: DIFERENCIA REAL | C29: =IF(C15="","",C15-C28) ->  | D29: =IF(D15="","",D15-D28) -> 

Sheet GEST EXPORTACION
B9: SIMULACION | D9: GMD | E9: IC | F9: CMD
B10: PE | D10: =IF($C$10="","",'ENLACES DATOS'!D840) ->  | E10: =IF($C$10="","",'ENLACES DATOS'!E840) ->  | F10: =IF(C10="","",(D10*E10)) -> 
B11: PS | D11: =IF($C$11="","",'ENLACES DATOS'!D841) ->  | E11: =IF($C$11="","",'ENLACES DATOS'!E841) ->  | F11: =IF(C11="","",(D11*E11)) -> 
B12: Pmedio | C12: =IF(C10="","",AVERAGE(C10:C11)) ->  | D12: =IF($C$11="","",'ENLACES DATOS'!D842) ->  | E12: =IF($C$11="","",'ENLACES DATOS'!E842) ->  | F12: =IF(C10="","",(D12*E12)) -> 
B13: CRUZADOS | D13: =IF(C10="","",AVERAGE(D10:D12)) ->  | E13: =IF(C10="","",AVERAGE(E10:E12)) ->  | F13: =IF(C10="","",(D13*E13)) -> 
B14: MERINOS | D14: =IF(C10="","",((IF(C12<55,(D13*0.9),(D13*0.875))))) ->  | E14: =IF(C10="","",((IF(C12<55,(E13*1.1),(E13*1.125))))) ->  | F14: =IF(C10="","",(D14*E14)) -> 

Sheet GEST CALC ENER
A7: CALCULOS ENERGÍA PIENSOS | E7: CALCULOS ENERGÍA PIENSOS
A8: GANADERO: | E8: GANADERO: | F8: =IF(B8="","",B8) -> 
A9: DATOS DE CEBO | E9: SIMULADOR ENERGIAS
A11: DATOS GENERALES | B11: FECHA SIMULACION | E11: DATOS DEL PIENSO | F11: HUMEDAD
B12: SEXO | F12: FIBRA BRUTA
B13: Nº MACHOS | F13: PROTEINA BRUTA
B14: Nº HEMBRAS | F14: GRASA BRUTA
B15: RAZA | F15: CENIZAS
B16: EPOCA DEL AÑO | F16: PRECIO (Euros/Tm)
F17: UFV PIENSO
A18: DATOS PESOS | B18: PESO ENTRADA (KG)
B19: PESO SALIDA (KG) | E19: UFV/KG PIENSO | F19: CALCULADA | G19: =IF(G11="","",'ENLACES DATOS'!U487) -> 
F20: EUROS/1000 UFV | G20: =IF(G19="","",G16/G19) -> 
A21: RESULTADOS TECNICOS | B21: Nº PRUEBAS | C21: =IF(C18="","",'ENLACES DATOS'!H387) -> 
B22: Nº CORDEROS | C22: =IF(C12="","",'ENLACES DATOS'!I387) ->  | E22: INDICES TECNICOS | F22: GMD | G22: =IF(G11="","",'ENLACES DATOS'!E490) -> 
B23: GMD CALCULADA | C23: =IF($C$18="","",'ENLACES DATOS'!Y470) ->  | F23: IC | G23: =IF(G11="","",'ENLACES DATOS'!G490) -> 
B24: IC CALCULADO | C24: =IF($C$18="","",'ENLACES DATOS'!AA470) -> 
B25: CONSUMO DIARIO | C25: =IF($C$18="","",('ENLACES DATOS'!AC470)) ->  | E25: DATOS ECONOMICOS | F25: DIAS EN CEBO | G25: =IF(G11="","",'ENLACES DATOS'!F490) -> 
F26: COSTE TOTAL | G26: =IF(G16="","",G28*(C13+C14)) -> 
A27: ENERGIAS | B27: UFV MEDIA OBTENIDA | C27: =IF($C$18="","",IF('ENLACES DATOS'!$F$387=0,"NO DISPONIBLE",'ENLACES DATOS'!F387/100)) ->  | F27: COSTE DIARIO | G27: =IF(G16="","",G26/G25) -> 
B28: UFV MAX | C28: =IF($C$18="","",IF('ENLACES DATOS'!$F$387=0,"NO DISPONIBLE",('ENLACES DATOS'!F387+'ENLACES DATOS'!G387)/100)) ->  | F28: COSTE CORDERO | G28: =IF(G16="","",(C19-C18)*G30) -> 
B29: UFV MIN | C29: =IF($C$18="","",IF('ENLACES DATOS'!$F$387=0,"NO DISPONIBLE",('ENLACES DATOS'!F387-'ENLACES DATOS'!G387)/100)) ->  | F29: COSTE CORDERO/DIA | G29: =IF(G16="","",G28/G25) -> 
B30: UFV DIARIA | C30: =IF(C18="","",'ENLACES DATOS'!Q474) ->  | F30: COSTE KILO REPUESTO | G30: =IF(G16="","",(G16/1000)*G23) -> 
A32: UFV/KG PIENSO | B32: CALCULADA | C32: =IF(C25="","",C30/C25) -> 
B33: RECOMENDADA | C33: =IF(C18="","",C32*'ENLACES DATOS'!L474) -> 

Sheet GEST IND TECN
A7: SIMULADOR INDICES TÉCNICOS | E7: SIMULADOR INDICES TÉCNICOS
A8: GANADERO: | E8: GANADERO: | F8: =IF(B8="","",B8) -> 
A9: DATOS DE CEBO | E9: DATOS ECONÓMICOS
A11: DATOS GENERALES | B11: FECHA SIMULACION | E11: PRECIO PIENSO | F11: PRECIO PIENSO (Euros/Tm)
B12: SEXO
B13: Nº MACHOS | E13: CONSUMOS | F13: Nº CORDEROS | G13: =IF(C12="","",C13+C14) -> 
B14: Nº HEMBRAS | F14: Nº DIAS EN CEBO | G14: =IF(C32="","",G20/C32) -> 
B15: RAZA | F15: CONSUMO PIENSO TOTAL | G15: =IF(C35="","",(G17*G13)) -> 
B16: EPOCA DEL AÑO | F16: CONSUMO DIARIO | G16: =IF(C35="","",G15/G14) -> 
F17: CONSUMO CORDERO | G17: =IF(C35="","",C35*G20) -> 
A18: DATOS PESOS | B18: PESO ENTRADA (KG) | F18: CONSUMO MEDIO DIARIO | G18: =IF(C35="","",G17/G14) -> 
B19: PESO SALIDA (KG) | F19: KILOS REPUESTOS | G19: =IF(G20="","",G20*G13) -> 
F20: KILOS RESPUESTOS/CORDERO | G20: =IF($C$18="","",(C19-C18)) -> 
A21: HISTORICOS OBTENIDOS | B21: Nº PRUEBAS | C21: =IF($C$12="","",'ENLACES DATOS'!H209) ->  | F21: ENERGIA CONSUMIDA | G21: =IF(C29="","",G17*C29) -> 
B22: Nº CORDEROS | C22: =IF(C12="","",'ENLACES DATOS'!I209) ->  | F22: UFV/KG REPUESTO | G22: =IF(C18="","",G21/G20) -> 
B23: GMD (Kg/´dia) | C23: =IF($C$18="","",'ENLACES DATOS'!L209/1000) -> 
B24: GMD max | C24: =IF($C$18="","",('ENLACES DATOS'!L209+'ENLACES DATOS'!Q209)/1000) ->  | E24: EUROS | F24: EUROS TOTALES | G24: =IF(G11="","",(G15*(G11/1000))) -> 
B25: GMD min | C25: =IF($C$18="","",('ENLACES DATOS'!L209-'ENLACES DATOS'!Q209)/1000) ->  | F25: EUROS DIA | G25: =IF(G11="","",G16*(G11/1000)) -> 
B26: IC (Kg pienso/Kg repuesto) | C26: =IF($C$18="","",('ENLACES DATOS'!M209/1000)) ->  | F26: EUROS /CORDERO | G26: =IF(G11="","",G17*(G11/1000)) -> 
B27: IC max | C27: =IF($C$18="","",('ENLACES DATOS'!M209+'ENLACES DATOS'!R209)/1000) ->  | F27: EUROS CORDERO/DIA | G27: =IF(G11="","",G18*(G11/1000)) -> 
B28: IC min | C28: =IF($C$18="","",('ENLACES DATOS'!M209-'ENLACES DATOS'!R209)/1000) ->  | F28: EUROS/KILO REPUESTO | G28: =IF(G11="","",(G24/G19)) -> 
B29: ENERGÍA (UFV2007) | C29: =IF($C$18="","",('ENLACES DATOS'!N209/100)) ->  | F29: EUROS/UFV | G29: =IF(G11="","",(G28/G22)) -> 
A31: GMD | B31: OBTENIDA | C31: =IF($C$18="","",C23) -> 
B32: CALCULADA | C32: =IF($C$18="","",'ENLACES DATOS'!Y350) -> 
A34: I.C. | B34: OBTENIDO | C34: =IF($C$18="","",C26) -> 
B35: CALCULADO | C35: =IF($C$18="","",'ENLACES DATOS'!AA350) -> 
A37: COMENTARIOS
A38: =IF(C12="","",IF(C31>C32,"LOS RESULTADOS HISTÓRICOS OBTENIDOS SUPERAN A LOS PREVISIBLES EN GMD","PEORES RESULTADOS EN GMD OBTENIDOS QUE LOS ESPERADOS")) -> 
A39: =IF(C12="","",IF(C26<C35,"LOS RESULTADOS DE IC HISTÓRICOS MEJORAN LOS PREVISTOS","LOS RESULTADOS DE IC PREVISTOS MEJORAN LOS HISTÓRICOS")) -> 

Sheet GEST CHEQ SEM
A7: EVALUACIÓN DATOS SANIDAD SEMANALES | E7: EVALUACIÓN DATOS SANIDAD SEMANALES
A8: GANADERO: | E8: GANADERO: | F8: =IF(B8="","",B8) -> 
A9: ENFOQUE TÉCNICO | E9: ENFOQUE ECONÓMICO
A11: DATOS CEBADERO | B11: CEBADERO | E11: DATOS VALORACION | F11: PRECIO COMPRAS
B12: FECHA | F12: PESOS COMPRAS
B13: CENSO | F13: PESOS BAJAS
B14: CAPACIDAD
B15: Nº BAJAS | E15: Nº BAJAS | F15: SEMANA | G15: =IF(C15="","",C15) -> 
B16: Nº GRANJAS | F16: MES | G16: =IF(C15="","",G17/12) -> 
F17: AÑO | G17: =IF(C15="","",G15/'ENLACES DATOS'!D25) -> 
A18: OBTENIDOS | B18: AFORO (%) | C18: =IF(C13="","",C13/C14) -> 
B19: MORT.SEMAN. | C19: =IF(C15="","",C15/C13) ->  | D19: =IF(C15="","",IF(C19>C26,"ATENCION!","")) ->  | E19: PERDIDAS ECONÓMICAS | F19: SEMANA | G19: =IF(G11="","",G15*ECUACIONES!$C$12) -> 
B20: COEF.GRANJA | C20: =IF(C16="","",(C16/C15)) ->  | D20: =IF(C16="","",IF(C20<(C24-(C24*0.1)),"ATENCION!","")) ->  | F20: MES | G20: =IF(G11="","",G16*ECUACIONES!$C$12) -> 
F21: AÑO | G21: =IF(G11="","",G17*ECUACIONES!$C$12) -> 
A22: ESPERADOS | B22: MORT.SEMANAL | C22: =IF(C15="","",'ENLACES DATOS'!D14) -> 
B23: MORBILIDAD | C23: =IF(C15="","",'ENLACES DATOS'!D18/4) -> 
B24: COEF.GRANJA | C24: =IF(C16="","",'ENLACES DATOS'!F14) -> 
A26: MAXIMOS | B26: MORT.SEMANAL | C26: =IF(C15="","",'ENLACES DATOS'!E14) -> 
B27: MORBILIDAD | C27: =IF(C15="","",('ENLACES DATOS'!E18/4)) -> 
B28: Nº BAJAS SEMANA | C28: =IF(C15="","",(C26*C13)) -> 
A30: MENSUALES | B30: % MORT.OBTENIDO | C30: =IF(C15="","",C19*4) -> 
B31: % MORT.ESPERADO | C31: =IF(C15="","",'ENLACES DATOS'!D15) -> 
B32: % MORT.MAXIMO | C32: =IF(C15="","",'ENLACES DATOS'!E15) -> 
A35: COMENTARIOS:
A36: AFORO: | B36: =IF(C13="","",IF(C18>1,"ATENCIÓN A LA DENSIDAD DE ANIMALES","DENSIDAD ADECUADA")) -> 
A37: MORTALIDAD: | B37: =IF(C15="","",IF(C19>C26,"MORTALIDAD POR ENCIMA DEL MÁXIMO ASUMIBLE",IF(C19>C22,"MORTALIDAD MAYOR DE LA ESPERADA","TASA DE MORTALIDAD NORMAL"))) -> 
B38: =IF(C16="","",IF(C20<C24,"ATENCIÓN A LA CALIDAD DE LAS COMPRAS","GESTIÓN DE COMPRAS CORRECTA")) -> 
A39: EFICACIA MANEJO | B39: =IF(C15="","",(C19-C23)/(C22-C23)) ->  | C39: =IF(C15="","","OPTIMO= POR ENCIMA DE 1") -> 
B40: =IF(C15="","",IF(B39<0.1,"ATENCION A PROBLEMAS DE ADAPTACIÓN",IF(B39<0.9,"REALIZAR Y/O O REPLANTEARSE LOS TRATAMIENTOS","MANEJO BUENO O ACEPTABLE"))) -> 

Sheet GEST CHEQ MES
A7: EVALUACIÓN DATOS SANIDAD MENSUALES | E7: EVALUACIÓN DATOS SANIDAD MENSUALES | I7: EVALUACIÓN DATOS SANIDAD MENSUALES
A8: GANADERO: | E8: GANADERO: | F8: =IF(B8="","",B8) ->  | I8: GANADERO: | J8: =IF(B8="","",B8) -> 
A9: ENFOQUE TÉCNICO | E9: ENFOQUE ECONÓMICO | I9: DECOMISOS
A11: DATOS CEBADERO | B11: CEBADERO | E11: DATOS VALORACION | F11: PRECIO COMPRAS | I11: DECOMISOS MENSUALES | J11: PULMON | L11: =IF(K11="","",IF(K11>K19,"ALARMA",(IF(K11>K15,"ATENCION","OK")))) -> 
B12: FECHA | F12: PESOS COMPRAS | J12: HIGADO | L12: =IF(K12="","",IF(K12>K20,"ALARMA",(IF(K12>K16,"ATENCION","OK")))) -> 
B13: CENSO | F13: PESOS BAJAS | J13: CANALES
B14: CAPACIDAD
B15: Nº BAJAS | E15: Nº BAJAS | F15: SEMANA | G15: =IF(C15="","",C15/4) ->  | I15: ESPERADOS | J15: PULMON | K15: =IF(K11="","",VLOOKUP('ENLACES DATOS'!$E$97,'HOJA GENERAL DE DATOS'!$A$155:$H$166,2,FALSE)) -> 
B16: Nº GRANJAS | F16: MES | G16: =IF(C15="","",C15) ->  | J16: HIGADO | K16: =IF(K12="","",VLOOKUP('ENLACES DATOS'!$E$97,'HOJA GENERAL DE DATOS'!$A$155:$H$166,4,FALSE)) -> 
F17: AÑO | G17: =IF(C15="","",G16/'ENLACES DATOS'!D117) ->  | J17: CANALES | K17: =IF(K13="","",VLOOKUP('ENLACES DATOS'!$E$97,'HOJA GENERAL DE DATOS'!$A$155:$H$166,5,FALSE)) -> 
A18: MORTALIDAD | B18: MORT.REAL | C18: =IF(C15="","",C15/C13) ->  | D18: =IF(C18>C22,"¡ATENCION!","") -> 
B19: HISTORICO ESPERADO | C19: =IF(C15="","",'ENLACES DATOS'!D106) ->  | E19: PERDIDAS ECONÓMICAS | F19: SEMANA | G19: =IF(G11="","",G15*ECUACIONES!$H$12) ->  | I19: MAXIMOS | J19: PULMON | K19: =IF(K11="","",VLOOKUP('ENLACES DATOS'!$E$97,'HOJA GENERAL DE DATOS'!$A$155:$H$166,6,FALSE)) -> 
B20: POR AFORO (ESTIMADA) | C20: =IF(C15="","",ECUACIONES!C37) ->  | F20: MES | G20: =IF(G11="","",G16*ECUACIONES!$H$12) ->  | J20: HIGADO | K20: =IF(K12="","",VLOOKUP('ENLACES DATOS'!$E$97,'HOJA GENERAL DE DATOS'!$A$155:$H$166,7,FALSE)) -> 
B21: POR COEF.GR. (ESTIMADA) | C21: =IF(C16="","",ECUACIONES!H37) ->  | F21: AÑO | G21: =IF(G11="","",G17*ECUACIONES!$H$12) ->  | J21: CANALES | K21: =IF(K13="","",VLOOKUP('ENLACES DATOS'!$E$97,'HOJA GENERAL DE DATOS'!$A$155:$H$166,8,FALSE)) -> 
B22: MAXIMA | C22: =IF(C15="","",'ENLACES DATOS'!E106) -> 
A24: COEF.GRANJA | B24: REAL | C24: =IF(C16="","",C16/C15) -> 
B25: HISTORICO ESPERADO | C25: =IF(C16="","",'ENLACES DATOS'!F106) -> 
A27: MORBILIDAD | B27: HISTORICA ESPERADA | C27: =IF(C15="","",'ENLACES DATOS'!C111) -> 
B28: MAXIMA | C28: =IF(C15="","",'ENLACES DATOS'!D111) -> 
A34: COMENTARIOS:
A35: AFORO: | B35: =IF(C13="","",IF(D35>1,"ATENCIÓN A LA DENSIDAD DE ANIMALES","DENSIDAD ADECUADA")) ->  | D35: =IF(C13="","",(C13/C14)) -> 
A36: MORTALIDAD: | B36: =IF(C15="","",IF(C18>C22,"MORTALIDAD POR ENCIMA DEL MÁXIMO ASUMIBLE",IF(C18>C19,"MORTALIDAD MAYOR DE LA ESPERADA","TASA DE MORTALIDAD NORMAL"))) -> 
B37: =IF(C16="","",IF(C24<C25,"ATENCIÓN A LA CALIDAD DE LAS COMPRAS","GESTIÓN DE COMPRAS CORRECTA")) -> 
A38: EFICACIA MANEJO | B38: =IF(C15="","",(C18-C27)/(C19-C27)) ->  | C38: =IF(C15="","","OPTIMO= POR ENCIMA DE 1") -> 
B39: =IF(C15="","",IF(B38<0.4,"ATENCION A PROBLEMAS DE ADAPTACIÓN",IF(B38<0.9,"REALIZAR Y/O O REPLANTEARSE LOS TRATAMIENTOS","MANEJO BUENO O ACEPTABLE"))) -> 

Sheet GEST RUMEN
A7: EVALUACIÓN SALUD RUMINAL | E7: EVALUACIÓN SALUD RUMINAL
A8: GANADERO: | E8: GANADERO: | F8: =IF(B8="","",B8) -> 
A9: FECHA | E9: FECHA | F9: =IF(B9="","",B9) -> 
A10: DATOS pHs PANZAS | E10: GRAFICOS. DIAGNOSTICO
A11: ANIMAL | B11: pH | D11: Desv. St.
A12: CORDERO 1 | C12: =IF(B12="","",IF('ENLACES DATOS'!D150="","OK","Valor excesivamente bajo")) ->  | D12: =IF(B12="","",IF('ENLACES DATOS'!F150="","OK","Fuera de desviación")) -> 
A13: CORDERO 2 | C13: =IF(B13="","",IF('ENLACES DATOS'!D151="","OK","Valor excesivamente bajo")) ->  | D13: =IF(B13="","",IF('ENLACES DATOS'!F151="","OK","Fuera de desviación")) -> 
A14: CORDERO 3 | C14: =IF(B14="","",IF('ENLACES DATOS'!D152="","OK","Valor excesivamente bajo")) ->  | D14: =IF(B14="","",IF('ENLACES DATOS'!F152="","OK","Fuera de desviación")) -> 
A15: CORDERO 4 | C15: =IF(B15="","",IF('ENLACES DATOS'!D153="","OK","Valor excesivamente bajo")) ->  | D15: =IF(B15="","",IF('ENLACES DATOS'!F153="","OK","Fuera de desviación")) -> 
A16: CORDERO 5 | C16: =IF(B16="","",IF('ENLACES DATOS'!D154="","OK","Valor excesivamente bajo")) ->  | D16: =IF(B16="","",IF('ENLACES DATOS'!F154="","OK","Fuera de desviación")) -> 
A17: CORDERO 6 | C17: =IF(B17="","",IF('ENLACES DATOS'!D155="","OK","Valor excesivamente bajo")) ->  | D17: =IF(B17="","",IF('ENLACES DATOS'!F155="","OK","Fuera de desviación")) -> 
A18: CORDERO 7 | C18: =IF(B18="","",IF('ENLACES DATOS'!D156="","OK","Valor excesivamente bajo")) ->  | D18: =IF(B18="","",IF('ENLACES DATOS'!F156="","OK","Fuera de desviación")) -> 
A19: CORDERO 8 | C19: =IF(B19="","",IF('ENLACES DATOS'!D157="","OK","Valor excesivamente bajo")) ->  | D19: =IF(B19="","",IF('ENLACES DATOS'!F157="","OK","Fuera de desviación")) -> 
A20: CORDERO 9 | C20: =IF(B20="","",IF('ENLACES DATOS'!D158="","OK","Valor excesivamente bajo")) ->  | D20: =IF(B20="","",IF('ENLACES DATOS'!F158="","OK","Fuera de desviación")) -> 
A21: CORDERO 10 | C21: =IF(B21="","",IF('ENLACES DATOS'!D159="","OK","Valor excesivamente bajo")) ->  | D21: =IF(B21="","",IF('ENLACES DATOS'!F159="","OK","Fuera de desviación")) -> 
A22: CORDERO 11 | C22: =IF(B22="","",IF('ENLACES DATOS'!D160="","OK","Valor excesivamente bajo")) ->  | D22: =IF(B22="","",IF('ENLACES DATOS'!F160="","OK","Fuera de desviación")) -> 
A23: CORDERO 12 | C23: =IF(B23="","",IF('ENLACES DATOS'!D161="","OK","Valor excesivamente bajo")) ->  | D23: =IF(B23="","",IF('ENLACES DATOS'!F161="","OK","Fuera de desviación")) -> 
A24: CORDERO 13 | C24: =IF(B24="","",IF('ENLACES DATOS'!D162="","OK","Valor excesivamente bajo")) ->  | D24: =IF(B24="","",IF('ENLACES DATOS'!F162="","OK","Fuera de desviación")) -> 
A25: CORDERO 14 | C25: =IF(B25="","",IF('ENLACES DATOS'!D163="","OK","Valor excesivamente bajo")) ->  | D25: =IF(B25="","",IF('ENLACES DATOS'!F163="","OK","Fuera de desviación")) -> 
A26: CORDERO 15 | C26: =IF(B26="","",IF('ENLACES DATOS'!D164="","OK","Valor excesivamente bajo")) ->  | D26: =IF(B26="","",IF('ENLACES DATOS'!F164="","OK","Fuera de desviación")) -> 
A27: CORDERO 16 | C27: =IF(B27="","",IF('ENLACES DATOS'!D165="","OK","Valor excesivamente bajo")) ->  | D27: =IF(B27="","",IF('ENLACES DATOS'!F165="","OK","Fuera de desviación")) -> 
A29: OBTENIDOS | B29: pH | C29: =IF(B12="","",'ENLACES DATOS'!B167) -> 
B30: VARIABILIDAD | C30: =IF(B12="","",'ENLACES DATOS'!D168) -> 
A32: ESPERADOS | B32: pH | C32: =IF(B12="","",'ENLACES DATOS'!B171) -> 
B33: VARIABILIDAD | C33: =IF(B12="","",'ENLACES DATOS'!D172) -> 
A35: COMENTARIOS:
A36: =IF(B12="","",IF('ENLACES DATOS'!C171>-'ENLACES DATOS'!B172,"VALORES ADECUADOS DE pH","VALORES DE pH EXCESIVAMENTE BAJOS")) -> 
A37: =IF(B12="","",IF('ENLACES DATOS'!C172<0,"DATOS DESVIADOS DENTRO DE LA NORMALIDAD","ALTAS DESVIACIONES EN GLOBAL")) -> 
A38: =IF(B12="","",IF('ENLACES DATOS'!B173<0.12,"BAJO % DE REGISTROS FUERA DE DESVIACION","ALTO % DE REGISTROS FUERA DE DESVIACIÓN")) -> 
A39: =IF(B12="","",IF('ENLACES DATOS'!B174<0.12,"BAJO PORCENTAJE CON VALORES BAJOS","ALTO PORCENTAJE CON VALORES BAJOS")) -> 

Sheet GEST DURAB CARNE
A7: PREDICCION DURABILIDAD BANDEJAS
A8: GANADERO:
A9: FECHA
A11: INCORPORACION vitE
A13: CEBO 14 DIAS | B13: DIAS EMBANDEJADO | D13: dias
B14: VITAMINA E SINTETICA (mg) | D14: ppm
B15: VITAMINA E NATURAL (mg) | D15: ppm
A17: EVALUACION CARNE | B17: TBARS (mgMA/Kg) | C17: =IF('ENLACES DATOS'!G867="","",'ENLACES DATOS'!G867) ->  | D17: REF <0.350
B18: NOTA VISUAL 1 (0 a 4) | C18: =IF('ENLACES DATOS'!G868="","",'ENLACES DATOS'!G868) ->  | D18: =IF(C17="","",AVERAGE(C18:C19)) -> 
B19: NOTA VISUAL 2 (0 a 4) | C19: =IF('ENLACES DATOS'!G869="","",'ENLACES DATOS'!G869) -> 
A22: NOTA VISUAL
A23: INTRODUCIR NOTA | B23: NOTA VISUAL (0 a 4)
A25: PREDICCION | B25: TBARS (mgMA/Kg).RANGO Y MEDIA | C25: =IF('ENLACES DATOS'!I872="","",'ENLACES DATOS'!I872) ->  | D25: =IF('ENLACES DATOS'!J872="","",'ENLACES DATOS'!J872) -> 
C26: =IF(C23="","",'ENLACES DATOS'!G872) -> 

Sheet MODULO SALUD
B2: GESTICOR MODULO SALUD

Sheet MODULO MEJORA
B2: GESTICOR MODULO MEJORA

Sheet MODULO BA&SOSTENIBILIDAD
B2: GESTICOR MODULO B.A. & SOSTENIBILIDAD

Sheet MODULO ECONOMIA
B2: GESTICOR MODULO ECONOMIA

Sheet GESTICOR MODEL
B2: GESTICOR MODEL
